Transaction Date,Local Authority Department,Beneficiary,Purpose of Expenditure,Amount (excluding VAT),Non Recoverable VAT,Merchant Category
 01-03-2021,Corporate Budgets,Juniper Ventures Ltd,Events,9563.36,0.00,COMMERCIAL SUPPLIER 
 01-03-2021,Environment and Sustainable Transport,Danfo (Uk) Limited,Cleaning Services,2460.29,0.00,VENDOR 
 01-03-2021,Children and Young People,Keys Education & Care Ltd,Residential Placements - Private Contractors Payment,7450.00,0.00,VENDOR 
 01-03-2021,Children and Young People,Keys Education & Care Ltd,Residential Placements - Private Contractors Payment,7450.00,0.00,VENDOR 
 01-03-2021,Children and Young People,Keys Education & Care Ltd,Residential Placements - Private Contractors Payment,7450.00,0.00,VENDOR 
 01-03-2021,Children and Young People,Keys Education & Care Ltd,Residential Placements - Private Contractors Payment,7450.00,0.00,VENDOR 
 01-03-2021,Balance Sheet,Project Centre Ltd,Capital Outlay,3473.00,0.00,COMMERCIAL SUPPLIER 
 01-03-2021,Balance Sheet,Project Centre Ltd,Capital Outlay,28451.20,0.00,COMMERCIAL SUPPLIER 
 01-03-2021,"People, Policy and Performance",Bethany-Rose Yates Photography,Design And Photographic Costs,1000.00,0.00,INDIVIDUALS 
 01-03-2021,oneSource - Non Shared,Sully Form Ltd,"Maintenance - Equipment, Furniture And Materials",452.50,0.00,VENDOR 
 01-03-2021,Balance Sheet,Rooff Limited,Capital Outlay,85071.45,0.00,CIS 
 01-03-2021,Environment and Sustainable Transport,Greenham Trading Ltd,Highway Services,183.26,0.00,COMMERCIAL SUPPLIER 
 01-03-2021,Environment and Sustainable Transport,Greenham Trading Ltd,Highway Services,1.24,0.00,COMMERCIAL SUPPLIER 
 01-03-2021,Environment and Sustainable Transport,Greenham Trading Ltd,Highway Services,35.16,0.00,COMMERCIAL SUPPLIER 
 01-03-2021,oneSource - Non Shared,Medigold Health Consultancy Ltd.,Professional Services - General,26405.37,0.00,VENDOR 
 01-03-2021,oneSource - Non Shared,Medigold Health Consultancy Ltd.,Professional Services - General,1220.00,0.00,VENDOR 
 01-03-2021,Environment and Sustainable Transport,N Z Panelcraft Of Plaistow,Highway Services,270.30,0.00,VENDOR 
 01-03-2021,Children and Young People,NKB & Associates Ltd,Section 17 - Private Contractors Payment,576.56,0.00,NON COMMERCIAL SUPPLIER 
 01-03-2021,Children and Young People,NKB & Associates Ltd,Section 17 - Private Contractors Payment,461.25,0.00,NON COMMERCIAL SUPPLIER 
 01-03-2021,Dedicated Schools Budget,Sir George Monoux College,Professional Services - General,2646.83,0.00,COMMERCIAL SUPPLIER 
 01-03-2021,Dedicated Schools Budget,Sir George Monoux College,Professional Services - General,2646.83,0.00,COMMERCIAL SUPPLIER 
 01-03-2021,oneSource,Daisy Corporate Services Trading Ltd,Land Line Telephone Costs,6664.06,0.00,COMMERCIAL SUPPLIER 
 01-03-2021,oneSource,Daisy Corporate Services Trading Ltd,Land Line Telephone Costs,3197.50,0.00,COMMERCIAL SUPPLIER 
 01-03-2021,Housing Revenue Account,Daisy Corporate Services Trading Ltd,Cyclical/Planned Maintenance - Mechanical And Electrical,384.78,0.00,COMMERCIAL SUPPLIER 
 01-03-2021,oneSource,Daisy Corporate Services Trading Ltd,Land Line Telephone Costs,22729.53,0.00,COMMERCIAL SUPPLIER 
 01-03-2021,Housing Revenue Account,Daisy Corporate Services Trading Ltd,Land Line Telephone Costs,2076.02,0.00,COMMERCIAL SUPPLIER 
 01-03-2021,Balance Sheet,Stannah Lift Services Ltd,Capital Outlay,284.60,0.00,CIS 
 01-03-2021,RMS,David & Roger Franklin Ltd,"Purchase - Equipment, Furniture And Materials",146.86,0.00,VENDOR 
 01-03-2021,RMS,David & Roger Franklin Ltd,"Purchase - Equipment, Furniture And Materials",282.00,0.00,VENDOR 
 01-03-2021,RMS,David & Roger Franklin Ltd,"Purchase - Equipment, Furniture And Materials",112.96,0.00,VENDOR 
 01-03-2021,RMS,David & Roger Franklin Ltd,"Purchase - Equipment, Furniture And Materials",9.00,0.00,VENDOR 
 01-03-2021,Balance Sheet,The Lock Father,Capital Outlay,12286.99,0.00,COMMERCIAL SUPPLIER 
 01-03-2021,Children and Young People,Redspot Care Ltd.,Additional Placements - Third Party,308.08,0.00,VENDOR 
 01-03-2021,Children and Young People,Care 2 Share Ltd,Residential Placements - Private Contractors Payment,3349.96,0.00,VENDOR 
 01-03-2021,Children and Young People,Care 2 Share Ltd,Residential Placements - Private Contractors Payment,3350.00,0.00,VENDOR 
 01-03-2021,Children and Young People,Care 2 Share Ltd,Residential Placements - Private Contractors Payment,3350.00,0.00,VENDOR 
 01-03-2021,Children and Young People,Care 2 Share Ltd,Residential Placements - Private Contractors Payment,3350.00,0.00,VENDOR 
 01-03-2021,Children and Young People,Care 2 Share Ltd,Residential Placements - Private Contractors Payment,3500.00,0.00,VENDOR 
 01-03-2021,Children and Young People,Care 2 Share Ltd,Residential Placements - Private Contractors Payment,3500.00,0.00,VENDOR 
 01-03-2021,Children and Young People,Care 2 Share Ltd,Residential Placements - Private Contractors Payment,3500.00,0.00,VENDOR 
 01-03-2021,Children and Young People,Care 2 Share Ltd,Residential Placements - Private Contractors Payment,3500.00,0.00,VENDOR 
 01-03-2021,Children and Young People,Care 2 Share Ltd,Residential Placements - Private Contractors Payment,3350.00,0.00,VENDOR 
 01-03-2021,Children and Young People,Care 2 Share Ltd,Residential Placements - Private Contractors Payment,3350.00,0.00,VENDOR 
 01-03-2021,Children and Young People,Care 2 Share Ltd,Residential Placements - Private Contractors Payment,3350.00,0.00,VENDOR 
 01-03-2021,Children and Young People,Care 2 Share Ltd,Residential Placements - Private Contractors Payment,3350.00,0.00,VENDOR 
 01-03-2021,Children and Young People,Kidatu Ltd,Legal Fees,321.12,0.00,COMMERCIAL SUPPLIER 
 01-03-2021,Balance Sheet,L M Installations Ltd,Capital Outlay,29124.75,0.00,CIS 
 01-03-2021,Housing Revenue Account,TEB Builders Ltd,"Maintenance - Equipment, Furniture And Materials",4633.03,0.00,COMMERCIAL SUPPLIER 
 01-03-2021,Environment and Sustainable Transport,L & F Plant Hire Co Ltd T/A Ti,"Purchase - Equipment, Furniture And Materials",429.00,0.00,VENDOR 
 01-03-2021,Environment and Sustainable Transport,L & F Plant Hire Co Ltd T/A Ti,"Purchase - Equipment, Furniture And Materials",396.00,0.00,VENDOR 
 01-03-2021,Environment and Sustainable Transport,L & F Plant Hire Co Ltd T/A Ti,"Purchase - Equipment, Furniture And Materials",396.00,0.00,VENDOR 
 01-03-2021,Environment and Sustainable Transport,L & F Plant Hire Co Ltd T/A Ti,"Purchase - Equipment, Furniture And Materials",396.00,0.00,VENDOR 
 01-03-2021,Environment and Sustainable Transport,L & F Plant Hire Co Ltd T/A Ti,"Purchase - Equipment, Furniture And Materials",363.00,0.00,VENDOR 
 01-03-2021,Environment and Sustainable Transport,L & F Plant Hire Co Ltd T/A Ti,"Purchase - Equipment, Furniture And Materials",363.00,0.00,VENDOR 
 01-03-2021,Environment and Sustainable Transport,L & F Plant Hire Co Ltd T/A Ti,"Purchase - Equipment, Furniture And Materials",580.00,0.00,VENDOR 
 01-03-2021,Environment and Sustainable Transport,L & F Plant Hire Co Ltd T/A Ti,"Purchase - Equipment, Furniture And Materials",580.00,0.00,VENDOR 
 01-03-2021,Environment and Sustainable Transport,L & F Plant Hire Co Ltd T/A Ti,"Purchase - Equipment, Furniture And Materials",580.00,0.00,VENDOR 
 01-03-2021,Environment and Sustainable Transport,L & F Plant Hire Co Ltd T/A Ti,"Purchase - Equipment, Furniture And Materials",1000.00,0.00,VENDOR 
 01-03-2021,Environment and Sustainable Transport,L & F Plant Hire Co Ltd T/A Ti,"Purchase - Equipment, Furniture And Materials",580.00,0.00,VENDOR 
 01-03-2021,Environment and Sustainable Transport,L & F Plant Hire Co Ltd T/A Ti,"Purchase - Equipment, Furniture And Materials",580.00,0.00,VENDOR 
 01-03-2021,Environment and Sustainable Transport,L & F Plant Hire Co Ltd T/A Ti,"Purchase - Equipment, Furniture And Materials",1100.00,0.00,VENDOR 
 01-03-2021,Environment and Sustainable Transport,L & F Plant Hire Co Ltd T/A Ti,"Purchase - Equipment, Furniture And Materials",1100.00,0.00,VENDOR 
 01-03-2021,Environment and Sustainable Transport,L & F Plant Hire Co Ltd T/A Ti,"Purchase - Equipment, Furniture And Materials",1000.00,0.00,VENDOR 
 01-03-2021,Environment and Sustainable Transport,Blackburn IT Services Ltd,Ict Software,12250.00,0.00,COMMERCIAL SUPPLIER 
 01-03-2021,CYP Commissioner � Brighter Futures ,Aceso Global Health Consultants Limited,Consultancy Fees,7500.00,0.00,COMMERCIAL SUPPLIER 
 01-03-2021,Children and Young People,Fusion Fostering,Residential Placements - Private Contractors Payment,750.00,0.00,COMMERCIAL SUPPLIER 
 01-03-2021,Children and Young People,Fusion Fostering,Residential Placements - Private Contractors Payment,750.00,0.00,COMMERCIAL SUPPLIER 
 01-03-2021,Children and Young People,Fusion Fostering,Residential Placements - Private Contractors Payment,750.00,0.00,COMMERCIAL SUPPLIER 
 01-03-2021,Children and Young People,Fusion Fostering,Residential Placements - Private Contractors Payment,750.00,0.00,COMMERCIAL SUPPLIER 
 01-03-2021,Children and Young People,Fusion Fostering,Residential Placements - Private Contractors Payment,750.00,0.00,COMMERCIAL SUPPLIER 
 01-03-2021,Children and Young People,Fusion Fostering,Residential Placements - Private Contractors Payment,750.00,0.00,COMMERCIAL SUPPLIER 
 01-03-2021,Children and Young People,Fusion Fostering,Residential Placements - Private Contractors Payment,750.00,0.00,COMMERCIAL SUPPLIER 
 01-03-2021,Children and Young People,Fusion Fostering,Residential Placements - Private Contractors Payment,750.00,0.00,COMMERCIAL SUPPLIER 
 01-03-2021,Environment and Sustainable Transport,D & N Hall & Son Ltd,"Maintenance - Equipment, Furniture And Materials",235.00,0.00,CIS 
 01-03-2021,Balance Sheet,Module-AR Ltd,Capital Outlay,104338.26,0.00,CIS 
 01-03-2021,Adults & Health,Chosen Care Group Ltd,Private Contractors Payment - Other,1859.20,0.00,VENDOR 
 01-03-2021,Environment and Sustainable Transport,PD Construction Limited,Building Alterations And Materials,6662.00,0.00,COMMERCIAL SUPPLIER 
 01-03-2021,"People, Policy and Performance",Solutions For Health & Social Care,Consultancy Fees,2340.00,0.00,VENDOR 
 01-03-2021,"People, Policy and Performance",Solutions For Health & Social Care,Consultancy Fees,1650.00,0.00,VENDOR 
 01-03-2021,oneSource,Bdi Securities,Security Services (Excluding Premises),783.00,0.00,COMMERCIAL SUPPLIER 
 01-03-2021,oneSource,Bdi Securities,Security Services (Excluding Premises),229.50,0.00,COMMERCIAL SUPPLIER 
 01-03-2021,oneSource - Non Shared,Every Project Counts Ltd (Epc),Professional Services - General,555.00,0.00,CIS 
 01-03-2021,Housing Revenue Account,John Rowan & Partners,Facilities Management,5060.00,0.00,NON COMMERCIAL SUPPLIER 
 01-03-2021,Housing Revenue Account,John Rowan & Partners,Facilities Management,2388.00,0.00,NON COMMERCIAL SUPPLIER 
 01-03-2021,Children and Young People,Bio Luminuex Health Care Ltd,Additional Placements - Third Party,1541.76,0.00,VENDOR 
 01-03-2021,Children and Young People,Crystal Environmental Svcs Ltd,Private Contractors Payment - Other,221.62,0.00,VENDOR 
 01-03-2021,Balance Sheet,Max Fordham LLP,Capital Outlay,1500.00,0.00,COMMERCIAL SUPPLIER 
 01-03-2021,Balance Sheet,Max Fordham LLP,Capital Outlay,1654.32,0.00,COMMERCIAL SUPPLIER 
 01-03-2021,Environment and Sustainable Transport,The Forklift Company,Vehicle Hire,346.66,0.00,COMMERCIAL SUPPLIER 
 01-03-2021,"People, Policy and Performance",CCS Media Limited.,Ict Hardware,3135.00,0.00,COMMERCIAL SUPPLIER 
 01-03-2021,"People, Policy and Performance",CCS Media Limited.,Ict Hardware,2070.00,0.00,COMMERCIAL SUPPLIER 
 01-03-2021,"People, Policy and Performance",CCS Media Limited.,Ict Hardware,525.00,0.00,COMMERCIAL SUPPLIER 
 01-03-2021,"People, Policy and Performance",CCS Media Limited.,Ict Hardware,2070.00,0.00,COMMERCIAL SUPPLIER 
 01-03-2021,"People, Policy and Performance",CCS Media Limited.,Ict Hardware,525.00,0.00,COMMERCIAL SUPPLIER 
 01-03-2021,"People, Policy and Performance",CCS Media Limited.,Ict Hardware,3135.00,0.00,COMMERCIAL SUPPLIER 
 01-03-2021,"People, Policy and Performance",Titan Containers A/S,Storage And Archiving,286.70,0.00,VENDOR 
 01-03-2021,Children and Young People,The Appropriate Adult Service Ltd,Private Contractors Payment - Other,897.25,0.00,COMMERCIAL SUPPLIER 
 01-03-2021,Adults & Health,Sayers (Car Hire),Payments To Voluntary Sector,210.00,0.00,VENDOR 
 01-03-2021,Adults & Health,Sayers (Car Hire),Payments To Voluntary Sector,210.00,0.00,VENDOR 
 01-03-2021,Adults & Health,Sayers (Car Hire),Payments To Voluntary Sector,210.00,0.00,VENDOR 
 01-03-2021,Adults & Health,Sayers (Car Hire),Payments To Voluntary Sector,70.00,0.00,VENDOR 
 01-03-2021,Environment and Sustainable Transport,Myrene Signs Ltd,Purchase Of Vehicles Related Costs,5081.00,0.00,COMMERCIAL SUPPLIER 
 01-03-2021,Environment and Sustainable Transport,Sparshatt Truck & Van Ltd,Highway Services,63.92,0.00,COMMERCIAL SUPPLIER 
 01-03-2021,Environment and Sustainable Transport,Sparshatt Truck & Van Ltd,Highway Services,137.76,0.00,COMMERCIAL SUPPLIER 
 01-03-2021,Environment and Sustainable Transport,Sparshatt Truck & Van Ltd,Highway Services,11.89,0.00,COMMERCIAL SUPPLIER 
 01-03-2021,Environment and Sustainable Transport,Sparshatt Truck & Van Ltd,Highway Services,14.10,0.00,COMMERCIAL SUPPLIER 
 01-03-2021,Environment and Sustainable Transport,Sparshatt Truck & Van Ltd,Highway Services,12.06,0.00,COMMERCIAL SUPPLIER 
 01-03-2021,Environment and Sustainable Transport,Sparshatt Truck & Van Ltd,Highway Services,58.26,0.00,COMMERCIAL SUPPLIER 
 01-03-2021,Environment and Sustainable Transport,Sparshatt Truck & Van Ltd,Highway Services,88.00,0.00,COMMERCIAL SUPPLIER 
 01-03-2021,Environment and Sustainable Transport,Sparshatt Truck & Van Ltd,Highway Services,43.89,0.00,COMMERCIAL SUPPLIER 
 01-03-2021,Environment and Sustainable Transport,Sparshatt Truck & Van Ltd,Highway Services,0.83,0.00,COMMERCIAL SUPPLIER 
 01-03-2021,Environment and Sustainable Transport,Sparshatt Truck & Van Ltd,Highway Services,13.07,0.00,COMMERCIAL SUPPLIER 
 01-03-2021,Environment and Sustainable Transport,Sparshatt Truck & Van Ltd,Highway Services,8.58,0.00,COMMERCIAL SUPPLIER 
 01-03-2021,Children and Young People,GatenbySanderson Ltd,Agency Staff,2832.00,0.00,COMMERCIAL SUPPLIER 
 01-03-2021,oneSource - Non Shared,GatenbySanderson Ltd,Agency Staff,2950.00,0.00,COMMERCIAL SUPPLIER 
 01-03-2021,Children and Young People,GatenbySanderson Ltd,Agency Staff,2832.00,0.00,COMMERCIAL SUPPLIER 
 01-03-2021,Dedicated Schools Budget,Reeson Education,Agency Staff,1200.00,0.00,COMMERCIAL SUPPLIER 
 01-03-2021,Resources,Jones Lang LaSalle Ltd,Consultancy Fees,387500.00,0.00,COMMERCIAL SUPPLIER 
 01-03-2021,oneSource - Non Shared,PHS Group Plc,Cleaning Services,57.72,0.00,COMMERCIAL SUPPLIER 
 01-03-2021,oneSource - Non Shared,PHS Group Plc,Cleaning Services,820.84,0.00,COMMERCIAL SUPPLIER 
 01-03-2021,oneSource - Non Shared,PHS Group Plc,Cleaning Services,461.89,0.00,COMMERCIAL SUPPLIER 
 01-03-2021,oneSource - Non Shared,PHS Group Plc,Cleaning Services,142.56,0.00,COMMERCIAL SUPPLIER 
 01-03-2021,oneSource - Non Shared,PHS Group Plc,Cleaning Services,99.84,0.00,COMMERCIAL SUPPLIER 
 01-03-2021,oneSource - Non Shared,PHS Group Plc,Cleaning Services,22.40,0.00,COMMERCIAL SUPPLIER 
 01-03-2021,oneSource - Non Shared,PHS Group Plc,Cleaning Services,1258.68,0.00,COMMERCIAL SUPPLIER 
 01-03-2021,oneSource - Non Shared,PHS Group Plc,Cleaning Services,11.64,0.00,COMMERCIAL SUPPLIER 
 01-03-2021,oneSource - Non Shared,PHS Group Plc,Cleaning Services,401.44,0.00,COMMERCIAL SUPPLIER 
 01-03-2021,oneSource - Non Shared,PHS Group Plc,Cleaning Services,523.40,0.00,COMMERCIAL SUPPLIER 
 01-03-2021,oneSource - Non Shared,PHS Group Plc,Cleaning Services,114.32,0.00,COMMERCIAL SUPPLIER 
 01-03-2021,oneSource - Non Shared,PHS Group Plc,Cleaning Services,537.44,0.00,COMMERCIAL SUPPLIER 
 01-03-2021,oneSource - Non Shared,PHS Group Plc,Cleaning Services,64.92,0.00,COMMERCIAL SUPPLIER 
 01-03-2021,oneSource - Non Shared,PHS Group Plc,Cleaning Services,3290.31,0.00,COMMERCIAL SUPPLIER 
 01-03-2021,oneSource - Non Shared,PHS Group Plc,Cleaning Services,44.60,0.00,COMMERCIAL SUPPLIER 
 01-03-2021,oneSource - Non Shared,PHS Group Plc,Cleaning Services,125.00,0.00,COMMERCIAL SUPPLIER 
 01-03-2021,oneSource - Non Shared,PHS Group Plc,Cleaning Services,64.92,0.00,COMMERCIAL SUPPLIER 
 01-03-2021,oneSource - Non Shared,PHS Group Plc,Cleaning Services,470.32,0.00,COMMERCIAL SUPPLIER 
 01-03-2021,oneSource - Non Shared,PHS Group Plc,Cleaning Services,72.68,0.00,COMMERCIAL SUPPLIER 
 01-03-2021,oneSource - Non Shared,PHS Group Plc,Cleaning Services,34.92,0.00,COMMERCIAL SUPPLIER 
 01-03-2021,oneSource - Non Shared,PHS Group Plc,Cleaning Services,444.96,0.00,COMMERCIAL SUPPLIER 
 01-03-2021,oneSource - Non Shared,PHS Group Plc,Cleaning Services,2366.64,0.00,COMMERCIAL SUPPLIER 
 01-03-2021,oneSource - Non Shared,PHS Group Plc,Cleaning Services,1608.92,0.00,COMMERCIAL SUPPLIER 
 01-03-2021,oneSource - Non Shared,PHS Group Plc,Cleaning Services,274.08,0.00,COMMERCIAL SUPPLIER 
 01-03-2021,Balance Sheet,Beveridge Associates,Capital Outlay,640.00,0.00,VENDOR 
 01-03-2021,Adults & Health,Chenai Holistic Homecare Agency Ltd,Home Care - Private Contractors Payment,23.25,0.00,VENDOR 
 01-03-2021,Adults & Health,Chenai Holistic Homecare Agency Ltd,Private Contractors Payment - Other,46.50,0.00,VENDOR 
 01-03-2021,Adults & Health,Chenai Holistic Homecare Agency Ltd,Private Contractors Payment - Other,177.75,0.00,VENDOR 
 01-03-2021,Adults & Health,Chenai Holistic Homecare Agency Ltd,Home Care - Private Contractors Payment,162.75,0.00,VENDOR 
 01-03-2021,Adults & Health,Chenai Holistic Homecare Agency Ltd,Home Care - Private Contractors Payment,55.80,0.00,VENDOR 
 01-03-2021,Adults & Health,Chenai Holistic Homecare Agency Ltd,Home Care - Private Contractors Payment,195.30,0.00,VENDOR 
 01-03-2021,Adults & Health,Chenai Holistic Homecare Agency Ltd,Home Care - Private Contractors Payment,18.60,0.00,VENDOR 
 01-03-2021,Adults & Health,Chenai Holistic Homecare Agency Ltd,Home Care - Private Contractors Payment,76.63,0.00,VENDOR 
 01-03-2021,Adults & Health,Chenai Holistic Homecare Agency Ltd,Home Care - Private Contractors Payment,9.86,0.00,VENDOR 
 01-03-2021,Adults & Health,Chenai Holistic Homecare Agency Ltd,Home Care - Private Contractors Payment,55.80,0.00,VENDOR 
 01-03-2021,Adults & Health,Chenai Holistic Homecare Agency Ltd,Home Care - Private Contractors Payment,55.80,0.00,VENDOR 
 01-03-2021,Adults & Health,Chenai Holistic Homecare Agency Ltd,Daycare - Private Contractors Payment,130.20,0.00,VENDOR 
 01-03-2021,Adults & Health,Chenai Holistic Homecare Agency Ltd,Home Care - Private Contractors Payment,130.20,0.00,VENDOR 
 01-03-2021,Adults & Health,Chenai Holistic Homecare Agency Ltd,Home Care - Private Contractors Payment,177.75,0.00,VENDOR 
 01-03-2021,Adults & Health,Chenai Holistic Homecare Agency Ltd,Home Care - Private Contractors Payment,76.82,0.00,VENDOR 
 01-03-2021,Adults & Health,Chenai Holistic Homecare Agency Ltd,Home Care - Private Contractors Payment,58.59,0.00,VENDOR 
 01-03-2021,Adults & Health,Chenai Holistic Homecare Agency Ltd,Home Care - Private Contractors Payment,24.55,0.00,VENDOR 
 01-03-2021,Adults & Health,Chenai Holistic Homecare Agency Ltd,Daycare - Private Contractors Payment,130.20,0.00,VENDOR 
 01-03-2021,Adults & Health,Chenai Holistic Homecare Agency Ltd,Daycare - Private Contractors Payment,27.90,0.00,VENDOR 
 01-03-2021,Adults & Health,Chenai Holistic Homecare Agency Ltd,Home Care - Private Contractors Payment,58.59,0.00,VENDOR 
 01-03-2021,Adults & Health,Chenai Holistic Homecare Agency Ltd,Home Care - Private Contractors Payment,136.71,0.00,VENDOR 
 01-03-2021,Adults & Health,Chenai Holistic Homecare Agency Ltd,Daycare - Private Contractors Payment,46.50,0.00,VENDOR 
 01-03-2021,Adults & Health,Chenai Holistic Homecare Agency Ltd,Home Care - Private Contractors Payment,90.58,0.00,VENDOR 
 01-03-2021,Adults & Health,Chenai Holistic Homecare Agency Ltd,Home Care - Private Contractors Payment,55.80,0.00,VENDOR 
 01-03-2021,Adults & Health,Chenai Holistic Homecare Agency Ltd,Home Care - Private Contractors Payment,130.20,0.00,VENDOR 
 01-03-2021,Adults & Health,Chenai Holistic Homecare Agency Ltd,Home Care - Private Contractors Payment,9.30,0.00,VENDOR 
 01-03-2021,Adults & Health,Chenai Holistic Homecare Agency Ltd,Daycare - Private Contractors Payment,27.90,0.00,VENDOR 
 01-03-2021,Adults & Health,Chenai Holistic Homecare Agency Ltd,Home Care - Private Contractors Payment,130.20,0.00,VENDOR 
 01-03-2021,Adults & Health,Chenai Holistic Homecare Agency Ltd,Home Care - Private Contractors Payment,79.05,0.00,VENDOR 
 01-03-2021,Adults & Health,Chenai Holistic Homecare Agency Ltd,Home Care - Private Contractors Payment,55.80,0.00,VENDOR 
 01-03-2021,Children and Young People,NASEN,Private Contractors Payment - Other,995.00,0.00,COMMERCIAL SUPPLIER 
 01-03-2021,Children and Young People,NASEN,Private Contractors Payment - Other,995.00,0.00,COMMERCIAL SUPPLIER 
 01-03-2021,Children and Young People,NASEN,Private Contractors Payment - Other,995.00,0.00,COMMERCIAL SUPPLIER 
 01-03-2021,oneSource - Non Shared,Ashfords LLP,Legal Fees,288.00,0.00,LEGAL SERVICES 
 01-03-2021,Adults & Health,Oasis Care & Training Agency,Private Contractors Payment - Other,174.35,0.00,COMMERCIAL SUPPLIER 
 01-03-2021,Adults & Health,Oasis Care & Training Agency,Home Care - Private Contractors Payment,11.07,0.00,COMMERCIAL SUPPLIER 
 01-03-2021,Adults & Health,Oasis Care & Training Agency,Private Contractors Payment - Other,174.35,0.00,COMMERCIAL SUPPLIER 
 01-03-2021,Adults & Health,Oasis Care & Training Agency,Private Contractors Payment - Other,174.36,0.00,COMMERCIAL SUPPLIER 
 01-03-2021,Adults & Health,Oasis Care & Training Agency,Home Care - Private Contractors Payment,11.07,0.00,COMMERCIAL SUPPLIER 
 01-03-2021,Adults & Health,Oasis Care & Training Agency,Home Care - Private Contractors Payment,11.07,0.00,COMMERCIAL SUPPLIER 
 01-03-2021,Adults & Health,Oasis Care & Training Agency,Home Care - Private Contractors Payment,11.07,0.00,COMMERCIAL SUPPLIER 
 01-03-2021,Adults & Health,Oasis Care & Training Agency,Private Contractors Payment - Other,174.34,0.00,COMMERCIAL SUPPLIER 
 01-03-2021,RMS,Master Locking Systems Ltd,Private Contractors Payment - Other,375.00,0.00,COMMERCIAL SUPPLIER 
 01-03-2021,Environment and Sustainable Transport,Portakabin Ltd,Premises Hire - Facilities,3067.37,0.00,COMMERCIAL SUPPLIER 
 01-03-2021,oneSource,Royal Mail Group Plc,Postage And Courier Services,216.16,0.00,COMMERCIAL SUPPLIER 
 01-03-2021,oneSource,Royal Mail Group Plc,Postage And Courier Services,35352.84,0.00,COMMERCIAL SUPPLIER 
 01-03-2021,Housing Revenue Account,Northgate Public Services (UK) Limited,Ict Software,8500.00,0.00,COMMERCIAL SUPPLIER 
 01-03-2021,Children and Young People,G-MAP Services,Private Contractors Payment - Other,605.00,0.00,COMMERCIAL SUPPLIER 
 01-03-2021,Children and Young People,G-MAP Services,Private Contractors Payment - Other,605.00,0.00,COMMERCIAL SUPPLIER 
 01-03-2021,Children and Young People,G-MAP Services,Private Contractors Payment - Other,605.00,0.00,COMMERCIAL SUPPLIER 
 01-03-2021,Children and Young People,G-MAP Services,Private Contractors Payment - Other,605.00,0.00,COMMERCIAL SUPPLIER 
 01-03-2021,"People, Policy and Performance",Askews and Holts Library Services Ltd,"Books, Publications And Resources",394.73,0.00,COMMERCIAL SUPPLIER 
 01-03-2021,"People, Policy and Performance",Askews and Holts Library Services Ltd,"Books, Publications And Resources",1347.84,0.00,COMMERCIAL SUPPLIER 
 01-03-2021,"People, Policy and Performance",Askews and Holts Library Services Ltd,"Books, Publications And Resources",442.88,0.00,COMMERCIAL SUPPLIER 
 01-03-2021,"People, Policy and Performance",Askews and Holts Library Services Ltd,"Books, Publications And Resources",1588.78,0.00,COMMERCIAL SUPPLIER 
 01-03-2021,"People, Policy and Performance",Askews and Holts Library Services Ltd,"Books, Publications And Resources",11.74,0.00,COMMERCIAL SUPPLIER 
 01-03-2021,Children and Young People,Dormwell Ltd T/A Street Support,Supported Other Accommodation - Private Contractors Payment,528.57,0.00,FOSTER CARERS 
 01-03-2021,Children and Young People,Dormwell Ltd T/A Street Support,Supported Other Accommodation - Private Contractors Payment,925.00,0.00,FOSTER CARERS 
 01-03-2021,Children and Young People,Personal Information - Redacted,Vehicle Hire,936.00,0.00,INDIVIDUALS 
 01-03-2021,Adults & Health,Blade Security UK,Security Of Premises,22599.00,0.00,COMMERCIAL SUPPLIER 
 01-03-2021,Adults & Health,Blade Security UK,Security Of Premises,12960.00,0.00,COMMERCIAL SUPPLIER 
 01-03-2021,Adults & Health,Reed Employment Plc,Daycare - Private Contractors Payment,186.00,0.00,COMMERCIAL SUPPLIER 
 01-03-2021,Adults & Health,Reed Employment Plc,Daycare - Private Contractors Payment,186.00,0.00,COMMERCIAL SUPPLIER 
 01-03-2021,Adults & Health,Reed Employment Plc,Daycare - Private Contractors Payment,186.00,0.00,COMMERCIAL SUPPLIER 
 01-03-2021,Adults & Health,Reed Employment Plc,Daycare - Private Contractors Payment,186.00,0.00,COMMERCIAL SUPPLIER 
 01-03-2021,Adults & Health,Reed Employment Plc,Daycare - Private Contractors Payment,539.40,0.00,COMMERCIAL SUPPLIER 
 01-03-2021,Adults & Health,Reed Employment Plc,Daycare - Private Contractors Payment,427.80,0.00,COMMERCIAL SUPPLIER 
 01-03-2021,Adults & Health,Reed Employment Plc,Daycare - Private Contractors Payment,539.40,0.00,COMMERCIAL SUPPLIER 
 01-03-2021,Adults & Health,Reed Employment Plc,Daycare - Private Contractors Payment,539.40,0.00,COMMERCIAL SUPPLIER 
 01-03-2021,Adults & Health,Reed Employment Plc,Daycare - Private Contractors Payment,179.00,0.00,COMMERCIAL SUPPLIER 
 01-03-2021,Adults & Health,Reed Employment Plc,Daycare - Private Contractors Payment,297.60,0.00,COMMERCIAL SUPPLIER 
 01-03-2021,Adults & Health,Reed Employment Plc,Daycare - Private Contractors Payment,297.60,0.00,COMMERCIAL SUPPLIER 
 01-03-2021,Adults & Health,Reed Employment Plc,Daycare - Private Contractors Payment,297.60,0.00,COMMERCIAL SUPPLIER 
 01-03-2021,Dedicated Schools Budget,Central Park Primary School,Independent Units Within The Council,51300.00,0.00,VENDOR 
 01-03-2021,Dedicated Schools Budget,Roman Road Primary School,Independent Units Within The Council,10530.00,0.00,VENDOR 
 01-03-2021,Dedicated Schools Budget,Park Primary School,Independent Units Within The Council,29710.00,0.00,VENDOR 
 01-03-2021,Dedicated Schools Budget,Manor Primary School,Independent Units Within The Council,5550.00,0.00,VENDOR 
 01-03-2021,Dedicated Schools Budget,Plaistow Primary School,Independent Units Within The Council,30430.00,0.00,COMMERCIAL SUPPLIER 
 01-03-2021,Dedicated Schools Budget,Carpenters Primary,Independent Units Within The Council,21220.00,0.00,VENDOR 
 01-03-2021,Dedicated Schools Budget,Colegrave Primary School,Independent Units Within The Council,41470.00,0.00,VENDOR 
 01-03-2021,Dedicated Schools Budget,Odessa Infants,Independent Units Within The Council,4580.00,0.00,VENDOR 
 01-03-2021,Dedicated Schools Budget,Altmore Infants School,Independent Units Within The Council,15480.00,0.00,VENDOR 
 01-03-2021,Dedicated Schools Budget,Ellen Wilkinson Primary School,Independent Units Within The Council,22000.00,0.00,NON COMMERCIAL SUPPLIER 
 01-03-2021,Dedicated Schools Budget,Brampton Primary School,Independent Units Within The Council,29260.00,0.00,LOCAL AUTHORITY SERVICES 
 01-03-2021,Dedicated Schools Budget,Essex Primary School,Independent Units Within The Council,51670.00,0.00,NON COMMERCIAL SUPPLIER 
 01-03-2021,Dedicated Schools Budget,Grange Primary School,Independent Units Within The Council,14290.00,0.00,NON COMMERCIAL SUPPLIER 
 01-03-2021,Dedicated Schools Budget,Calverton Primary School,Independent Units Within The Council,19200.00,0.00,VENDOR 
 01-03-2021,Dedicated Schools Budget,Avenue Primary School,Independent Units Within The Council,41420.00,0.00,VENDOR 
 01-03-2021,Dedicated Schools Budget,Lathom Primary,Independent Units Within The Council,14880.00,0.00,VENDOR 
 01-03-2021,Dedicated Schools Budget,Maryland Primary School,Independent Units Within The Council,30150.00,0.00,VENDOR 
 01-03-2021,Dedicated Schools Budget,Keir Hardie Primary School,Independent Units Within The Council,21460.00,0.00,VENDOR 
 01-03-2021,Dedicated Schools Budget,Godwin Junior School,Independent Units Within The Council,26360.00,0.00,VENDOR 
 01-03-2021,Dedicated Schools Budget,Dersingham Primary School,Independent Units Within The Council,36950.00,0.00,VENDOR 
 01-03-2021,Dedicated Schools Budget,Ronald Openshaw Nursery,Students Other Transfer Payments,22000.00,0.00,VENDOR 
 01-03-2021,Adults & Health,Personal Information - Redacted,Residential Care Income,22581.60,0.00,INDIVIDUALS 
 01-03-2021,Adults & Health,Miacis Media Consultancy Ltd,Design And Photographic Costs,17648.44,0.00,COMMERCIAL SUPPLIER 
 01-03-2021,Dedicated Schools Budget,Manor Preschool,Private Contractors Payment - Other,615.00,0.00,VENDOR 
 01-03-2021,oneSource - Non Shared,Dersingham Primary School,Professional Services - General,56417.84,0.00,VENDOR 
 01-03-2021,Children and Young People,J Thorpe,Open Spaces Works,570.00,0.00,VENDOR 
 01-03-2021,Dedicated Schools Budget,Golden Star Nursery,Payment To Health Authorities,6000.00,0.00,COMMERCIAL SUPPLIER 
 01-03-2021,Dedicated Schools Budget,Smartstarts Day Nursery,Payment To Health Authorities,500.00,0.00,VENDOR 
 01-03-2021,Children and Young People,Personal Information - Redacted,Vehicle Hire,317.00,0.00,INDIVIDUALS 
 01-03-2021,"People, Policy and Performance",Personal Information - Redacted,Miscellaneous Expenses,250.00,0.00,INDIVIDUALS 
 01-03-2021,Housing Revenue Account,Personal Information - Redacted,Compensation - Ombudsman,250.00,0.00,INDIVIDUALS 
 01-03-2021,Dedicated Schools Budget,Waltham Forest College,Professional Services - General,7955.36,0.00,NON COMMERCIAL SUPPLIER 
 01-03-2021,Adults & Health,Andy Coley CTC Ltd,Staff Development And Training,8333.34,0.00,COMMERCIAL SUPPLIER 
 01-03-2021,Adults & Health,Andy Coley CTC Ltd,Staff Development And Training,3166.66,0.00,COMMERCIAL SUPPLIER 
 01-03-2021,Adults & Health,Andy Coley CTC Ltd,Staff Development And Training,4600.00,0.00,COMMERCIAL SUPPLIER 
 01-03-2021,Housing Revenue Account,Ixact Limited,Street Sweeping,87354.00,0.00,COMMERCIAL SUPPLIER 
 01-03-2021,Environment and Sustainable Transport,Ixact Limited,Street Sweeping,267342.56,0.00,COMMERCIAL SUPPLIER 
 01-03-2021,Environment and Sustainable Transport,Ixact Limited,Street Sweeping,5000.00,0.00,COMMERCIAL SUPPLIER 
 01-03-2021,Adults & Health,Bettertogether Limited,Adult Placement Scheme - Private Contractors Payment,116.00,0.00,NON COMMERCIAL SUPPLIER 
 01-03-2021,Adults & Health,Bettertogether Limited,Adult Placement Scheme - Private Contractors Payment,1856.00,0.00,NON COMMERCIAL SUPPLIER 
 01-03-2021,Adults & Health,Bettertogether Limited,Adult Placement Scheme - Private Contractors Payment,580.00,0.00,NON COMMERCIAL SUPPLIER 
 01-03-2021,Adults & Health,Bettertogether Limited,Adult Placement Scheme - Private Contractors Payment,116.00,0.00,NON COMMERCIAL SUPPLIER 
 01-03-2021,Adults & Health,Bettertogether Limited,Adult Placement Scheme - Private Contractors Payment,348.00,0.00,NON COMMERCIAL SUPPLIER 
 01-03-2021,Adults & Health,Bettertogether Limited,Adult Placement Scheme - Private Contractors Payment,93.43,0.00,NON COMMERCIAL SUPPLIER 
 01-03-2021,Adults & Health,Bettertogether Limited,Adult Placement Scheme - Private Contractors Payment,654.09,0.00,NON COMMERCIAL SUPPLIER 
 01-03-2021,Housing Revenue Account,Mint Cleaning Group Holding Ltd,Street Sweeping,119932.74,0.00,COMMERCIAL SUPPLIER 
 01-03-2021,Environment and Sustainable Transport,Mint Cleaning Group Holding Ltd,Street Sweeping,244800.61,0.00,COMMERCIAL SUPPLIER 
 01-03-2021,Housing Revenue Account,Mint Cleaning Group Holding Ltd,Street Sweeping,602.22,0.00,COMMERCIAL SUPPLIER 
 01-03-2021,Balance Sheet,ECF (General Partner) Ltd,Capital Outlay,1200.00,0.00,VENDOR 
 01-03-2021,Adults & Health,Bettertogether Limited,Adult Placement Scheme - Private Contractors Payment,580.00,0.00,NON COMMERCIAL SUPPLIER 
 01-03-2021,Adults & Health,Bettertogether Limited,Adult Placement Scheme - Private Contractors Payment,232.00,0.00,NON COMMERCIAL SUPPLIER 
 01-03-2021,Adults & Health,Bettertogether Limited,Adult Placement Scheme - Private Contractors Payment,116.00,0.00,NON COMMERCIAL SUPPLIER 
 01-03-2021,Housing Revenue Account,Public Realm Services Ltd,Street Sweeping,153741.84,0.00,COMMERCIAL SUPPLIER 
 01-03-2021,Environment and Sustainable Transport,Public Realm Services Ltd,Street Sweeping,251634.16,0.00,COMMERCIAL SUPPLIER 
 01-03-2021,oneSource - Non Shared,Public Realm Services Ltd,Street Sweeping,2040.00,0.00,COMMERCIAL SUPPLIER 
 01-03-2021,RMS,Public Realm Services Ltd,Private Contractors Payment - Other,1179.84,0.00,COMMERCIAL SUPPLIER 
 01-03-2021,RMS,Public Realm Services Ltd,Private Contractors Payment - Other,243.90,0.00,COMMERCIAL SUPPLIER 
 01-03-2021,RMS,Public Realm Services Ltd,Private Contractors Payment - Other,292.20,0.00,COMMERCIAL SUPPLIER 
 01-03-2021,Children and Young People,Care 4 Children Residential Services Ltd,Residential Placements - Private Contractors Payment,6414.33,0.00,COMMERCIAL SUPPLIER 
 01-03-2021,Children and Young People,Care 4 Children Residential Services Ltd,Residential Placements - Private Contractors Payment,4490.00,0.00,COMMERCIAL SUPPLIER 
 01-03-2021,Children and Young People,Care 4 Children Residential Services Ltd,Residential Placements - Private Contractors Payment,4490.00,0.00,COMMERCIAL SUPPLIER 
 01-03-2021,Children and Young People,Care 4 Children Residential Services Ltd,Residential Placements - Private Contractors Payment,4490.00,0.00,COMMERCIAL SUPPLIER 
 01-03-2021,CYP Commissioner � Brighter Futures ,Lavender Health & Social Care Limited,Payment To Health Authorities,8447.04,0.00,COMMERCIAL SUPPLIER 
 01-03-2021,RMS,Door-Stop International Ltd,"Purchase - Equipment, Furniture And Materials",498.63,0.00,VENDOR 
 01-03-2021,RMS,Door-Stop International Ltd,"Purchase - Equipment, Furniture And Materials",549.13,0.00,VENDOR 
 01-03-2021,RMS,Door-Stop International Ltd,"Purchase - Equipment, Furniture And Materials",505.63,0.00,VENDOR 
 01-03-2021,RMS,Door-Stop International Ltd,"Purchase - Equipment, Furniture And Materials",507.13,0.00,VENDOR 
 01-03-2021,RMS,Door-Stop International Ltd,"Purchase - Equipment, Furniture And Materials",497.79,0.00,VENDOR 
 01-03-2021,RMS,Door-Stop International Ltd,"Purchase - Equipment, Furniture And Materials",486.29,0.00,VENDOR 
 01-03-2021,RMS,Door-Stop International Ltd,"Purchase - Equipment, Furniture And Materials",497.79,0.00,VENDOR 
 01-03-2021,RMS,Door-Stop International Ltd,"Purchase - Equipment, Furniture And Materials",543.73,0.00,VENDOR 
 01-03-2021,RMS,Door-Stop International Ltd,"Purchase - Equipment, Furniture And Materials",533.56,0.00,VENDOR 
 01-03-2021,RMS,Door-Stop International Ltd,"Purchase - Equipment, Furniture And Materials",506.29,0.00,VENDOR 
 01-03-2021,RMS,Door-Stop International Ltd,"Purchase - Equipment, Furniture And Materials",506.29,0.00,VENDOR 
 01-03-2021,RMS,Door-Stop International Ltd,"Purchase - Equipment, Furniture And Materials",501.79,0.00,VENDOR 
 01-03-2021,RMS,Door-Stop International Ltd,"Purchase - Equipment, Furniture And Materials",506.29,0.00,VENDOR 
 01-03-2021,Inclusive Economy & Housing,Newham Partnership Working Ltd,Professional Services - General,1880.00,0.00,VENDOR 
 01-03-2021,Inclusive Economy & Housing,Newham Partnership Working Ltd,Professional Services - General,681.50,0.00,VENDOR 
 01-03-2021,Children and Young People,Personal Information - Redacted,Legal Fees,350.00,0.00,COMMERCIAL SUPPLIER 
 01-03-2021,Children and Young People,Personal Information - Redacted,Legal Fees,660.00,0.00,LEGAL SERVICES 
 01-03-2021,Children and Young People,Aldanat Care,Supported Other Accommodation - Private Contractors Payment,3049.00,0.00,VENDOR 
 01-03-2021,Children and Young People,Aldanat Care,Supported Other Accommodation - Private Contractors Payment,3049.00,0.00,VENDOR 
 01-03-2021,Children and Young People,Aldanat Care,Supported Other Accommodation - Private Contractors Payment,23.05,0.00,VENDOR 
 01-03-2021,Children and Young People,Aldanat Care,Supported Other Accommodation - Private Contractors Payment,3648.41,0.00,VENDOR 
 01-03-2021,Children and Young People,Aldanat Care,Supported Other Accommodation - Private Contractors Payment,23.06,0.00,VENDOR 
 01-03-2021,Children and Young People,Aldanat Care,Supported Other Accommodation - Private Contractors Payment,3049.00,0.00,VENDOR 
 01-03-2021,"People, Policy and Performance",Personal Information - Redacted,Building Alterations And Materials,54.16,0.00,Employee 
 01-03-2021,"People, Policy and Performance",Personal Information - Redacted,Land Line Telephone Costs,11.99,0.00,Employee 
 01-03-2021,Environment and Sustainable Transport,Personal Information - Redacted,"Purchase - Equipment, Furniture And Materials",37.06,0.00,Employee 
 01-03-2021,Dedicated Schools Budget,Winsor Primary School,Independent Units Within The Council,44520.00,0.00,LOCAL AUTHORITY SERVICES 
 01-03-2021,Dedicated Schools Budget,Star Primary School,Independent Units Within The Council,21680.00,0.00,VENDOR 
 01-03-2021,Dedicated Schools Budget,St Michael's Rc Primary School,Independent Units Within The Council,8790.00,0.00,VENDOR 
 01-03-2021,Dedicated Schools Budget,Salisbury Primary School,Independent Units Within The Council,41760.00,0.00,NON COMMERCIAL SUPPLIER 
 01-03-2021,Dedicated Schools Budget,St Lukes C Of E Primary School,Independent Units Within The Council,11120.00,0.00,VENDOR 
 01-03-2021,Dedicated Schools Budget,West Ham C Of E Primary School,Independent Units Within The Council,11900.00,0.00,VENDOR 
 01-03-2021,Dedicated Schools Budget,Sandringham Primary School,Independent Units Within The Council,50130.00,0.00,VENDOR 
 01-03-2021,Dedicated Schools Budget,Sir John Heron Primary School,Independent Units Within The Council,22980.00,0.00,NON COMMERCIAL SUPPLIER 
 01-03-2021,Dedicated Schools Budget,St Stephens Primary School,Independent Units Within The Council,35550.00,0.00,VENDOR 
 01-03-2021,Dedicated Schools Budget,William Davies Primary School,Independent Units Within The Council,14370.00,0.00,VENDOR 
 01-03-2021,Dedicated Schools Budget,St Winefride's Rc Primary Sch,Independent Units Within The Council,12770.00,0.00,VENDOR 
 01-03-2021,Dedicated Schools Budget,Woodgrange Infants School,Independent Units Within The Council,13750.00,0.00,VENDOR 
 01-03-2021,Dedicated Schools Budget,St James' C Of E Junior School,Independent Units Within The Council,14740.00,0.00,VENDOR 
 01-03-2021,Dedicated Schools Budget,Southern Road Primary School.,Independent Units Within The Council,35080.00,0.00,VENDOR 
 01-03-2021,Adults & Health,Rosy Care Limited,Daycare - Private Contractors Payment,225.00,0.00,NON COMMERCIAL SUPPLIER 
 01-03-2021,Adults & Health,Rosy Care Limited,Daycare - Private Contractors Payment,225.00,0.00,NON COMMERCIAL SUPPLIER 
 01-03-2021,Adults & Health,Rosy Care Limited,Daycare - Private Contractors Payment,225.00,0.00,NON COMMERCIAL SUPPLIER 
 01-03-2021,Adults & Health,Rosy Care Limited,Daycare - Private Contractors Payment,225.00,0.00,NON COMMERCIAL SUPPLIER 
 01-03-2021,Children and Young People,Oak Housing Ltd,Consultancy Fees,3360.00,0.00,COMMERCIAL SUPPLIER 
 01-03-2021,Children and Young People,Orchid Place Ltd,Supported Other Accommodation - Private Contractors Payment,800.00,0.00,VENDOR 
 01-03-2021,Children and Young People,Orchid Place Ltd,Supported Other Accommodation - Private Contractors Payment,800.00,0.00,VENDOR 
 01-03-2021,Children and Young People,Orchid Place Ltd,Supported Other Accommodation - Private Contractors Payment,800.00,0.00,VENDOR 
 01-03-2021,Children and Young People,Orchid Place Ltd,Supported Other Accommodation - Private Contractors Payment,800.00,0.00,VENDOR 
 01-03-2021,Children and Young People,Integrated Fostering Services,Residential Placements - Private Contractors Payment,631.81,0.00,COMMERCIAL SUPPLIER 
 01-03-2021,Children and Young People,Integrated Fostering Services,Residential Placements - Private Contractors Payment,699.49,0.00,COMMERCIAL SUPPLIER 
 01-03-2021,Children and Young People,Integrated Fostering Services,Residential Placements - Private Contractors Payment,699.49,0.00,COMMERCIAL SUPPLIER 
 01-03-2021,Children and Young People,Integrated Fostering Services,Residential Placements - Private Contractors Payment,699.49,0.00,COMMERCIAL SUPPLIER 
 01-03-2021,Children and Young People,Integrated Fostering Services,Residential Placements - Private Contractors Payment,652.33,0.00,COMMERCIAL SUPPLIER 
 01-03-2021,Children and Young People,Integrated Fostering Services,Residential Placements - Private Contractors Payment,679.49,0.00,COMMERCIAL SUPPLIER 
 01-03-2021,Children and Young People,Integrated Fostering Services,Residential Placements - Private Contractors Payment,679.49,0.00,COMMERCIAL SUPPLIER 
 01-03-2021,Children and Young People,Integrated Fostering Services,Residential Placements - Private Contractors Payment,679.49,0.00,COMMERCIAL SUPPLIER 
 01-03-2021,Children and Young People,Integrated Fostering Services,Residential Placements - Private Contractors Payment,679.49,0.00,COMMERCIAL SUPPLIER 
 01-03-2021,Children and Young People,Integrated Fostering Services,Residential Placements - Private Contractors Payment,679.49,0.00,COMMERCIAL SUPPLIER 
 01-03-2021,Children and Young People,Integrated Fostering Services,Residential Placements - Private Contractors Payment,679.49,0.00,COMMERCIAL SUPPLIER 
 01-03-2021,Children and Young People,Integrated Fostering Services,Residential Placements - Private Contractors Payment,652.33,0.00,COMMERCIAL SUPPLIER 
 01-03-2021,Children and Young People,Integrated Fostering Services,Residential Placements - Private Contractors Payment,795.28,0.00,COMMERCIAL SUPPLIER 
 01-03-2021,Children and Young People,Integrated Fostering Services,Residential Placements - Private Contractors Payment,795.36,0.00,COMMERCIAL SUPPLIER 
 01-03-2021,Children and Young People,Integrated Fostering Services,Residential Placements - Private Contractors Payment,795.36,0.00,COMMERCIAL SUPPLIER 
 01-03-2021,Children and Young People,Integrated Fostering Services,Residential Placements - Private Contractors Payment,795.36,0.00,COMMERCIAL SUPPLIER 
 01-03-2021,Children and Young People,Integrated Fostering Services,Residential Placements - Private Contractors Payment,1164.00,0.00,COMMERCIAL SUPPLIER 
 01-03-2021,Children and Young People,Integrated Fostering Services,Residential Placements - Private Contractors Payment,1164.00,0.00,COMMERCIAL SUPPLIER 
 01-03-2021,Children and Young People,Integrated Fostering Services,Residential Placements - Private Contractors Payment,1164.00,0.00,COMMERCIAL SUPPLIER 
 01-03-2021,Children and Young People,Integrated Fostering Services,Residential Placements - Private Contractors Payment,1164.12,0.00,COMMERCIAL SUPPLIER 
 01-03-2021,Children and Young People,Integrated Fostering Services,Residential Placements - Private Contractors Payment,795.36,0.00,COMMERCIAL SUPPLIER 
 01-03-2021,Children and Young People,Integrated Fostering Services,Residential Placements - Private Contractors Payment,795.28,0.00,COMMERCIAL SUPPLIER 
 01-03-2021,Children and Young People,Integrated Fostering Services,Residential Placements - Private Contractors Payment,795.36,0.00,COMMERCIAL SUPPLIER 
 01-03-2021,Children and Young People,Integrated Fostering Services,Residential Placements - Private Contractors Payment,795.36,0.00,COMMERCIAL SUPPLIER 
 01-03-2021,Children and Young People,Integrated Fostering Services,Residential Placements - Private Contractors Payment,746.90,0.00,COMMERCIAL SUPPLIER 
 01-03-2021,Children and Young People,Integrated Fostering Services,Residential Placements - Private Contractors Payment,746.90,0.00,COMMERCIAL SUPPLIER 
 01-03-2021,Children and Young People,Integrated Fostering Services,Residential Placements - Private Contractors Payment,746.90,0.00,COMMERCIAL SUPPLIER 
 01-03-2021,Children and Young People,Integrated Fostering Services,Residential Placements - Private Contractors Payment,746.90,0.00,COMMERCIAL SUPPLIER 
 01-03-2021,Adults & Health,East London Care And Support Limited,Daycare - Private Contractors Payment,37.20,0.00,VENDOR 
 01-03-2021,Adults & Health,East London Care And Support Limited,Daycare - Private Contractors Payment,93.00,0.00,VENDOR 
 01-03-2021,Adults & Health,East London Care And Support Limited,Other Social Services Transfer Payments,47.00,0.00,VENDOR 
 01-03-2021,Adults & Health,East London Care And Support Limited,Home Care - Private Contractors Payment,74.40,0.00,VENDOR 
 01-03-2021,Adults & Health,East London Care And Support Limited,Respite Care - Private Contractors Payment,55.80,0.00,VENDOR 
 01-03-2021,Adults & Health,East London Care And Support Limited,Daycare - Private Contractors Payment,111.60,0.00,VENDOR 
 01-03-2021,Adults & Health,East London Care And Support Limited,Respite Care - Private Contractors Payment,55.80,0.00,VENDOR 
 01-03-2021,Adults & Health,East London Care And Support Limited,Daycare - Private Contractors Payment,40.00,0.00,VENDOR 
 01-03-2021,Adults & Health,East London Care And Support Limited,Home Care - Private Contractors Payment,520.80,0.00,VENDOR 
 01-03-2021,Adults & Health,East London Care And Support Limited,Daycare - Private Contractors Payment,111.60,0.00,VENDOR 
 01-03-2021,Adults & Health,East London Care And Support Limited,Daycare - Private Contractors Payment,40.00,0.00,VENDOR 
 01-03-2021,Adults & Health,East London Care And Support Limited,Daycare - Private Contractors Payment,186.00,0.00,VENDOR 
 01-03-2021,Adults & Health,East London Care And Support Limited,Other Social Services Transfer Payments,9.00,0.00,VENDOR 
 01-03-2021,Adults & Health,East London Care And Support Limited,Daycare - Private Contractors Payment,409.20,0.00,VENDOR 
 01-03-2021,Adults & Health,East London Care And Support Limited,Home Care - Private Contractors Payment,18.60,0.00,VENDOR 
 01-03-2021,Adults & Health,East London Care And Support Limited,Daycare - Private Contractors Payment,372.00,0.00,VENDOR 
 01-03-2021,Adults & Health,East London Care And Support Limited,Daycare - Private Contractors Payment,465.00,0.00,VENDOR 
 01-03-2021,Adults & Health,East London Care And Support Limited,Daycare - Private Contractors Payment,55.80,0.00,VENDOR 
 01-03-2021,Adults & Health,East London Care And Support Limited,Home Care - Private Contractors Payment,93.00,0.00,VENDOR 
 01-03-2021,Adults & Health,East London Care And Support Limited,Daycare - Private Contractors Payment,706.80,0.00,VENDOR 
 01-03-2021,Adults & Health,East London Care And Support Limited,Daycare - Private Contractors Payment,37.20,0.00,VENDOR 
 01-03-2021,Adults & Health,East London Care And Support Limited,Home Care - Private Contractors Payment,260.40,0.00,VENDOR 
 01-03-2021,Adults & Health,East London Care And Support Limited,Daycare - Private Contractors Payment,74.40,0.00,VENDOR 
 01-03-2021,Adults & Health,East London Care And Support Limited,Daycare - Private Contractors Payment,260.40,0.00,VENDOR 
 01-03-2021,Adults & Health,East London Care And Support Limited,Daycare - Private Contractors Payment,111.60,0.00,VENDOR 
 01-03-2021,Adults & Health,East London Care And Support Limited,Home Care - Private Contractors Payment,18.60,0.00,VENDOR 
 01-03-2021,Adults & Health,East London Care And Support Limited,Daycare - Private Contractors Payment,55.80,0.00,VENDOR 
 01-03-2021,Adults & Health,East London Care And Support Limited,Daycare - Private Contractors Payment,74.40,0.00,VENDOR 
 01-03-2021,Adults & Health,East London Care And Support Limited,Daycare - Private Contractors Payment,111.60,0.00,VENDOR 
 01-03-2021,Adults & Health,East London Care And Support Limited,Home Care - Private Contractors Payment,37.20,0.00,VENDOR 
 01-03-2021,Adults & Health,East London Care And Support Limited,Daycare - Private Contractors Payment,111.60,0.00,VENDOR 
 01-03-2021,Adults & Health,East London Care And Support Limited,Daycare - Private Contractors Payment,27.90,0.00,VENDOR 
 01-03-2021,Adults & Health,East London Care And Support Limited,Daycare - Private Contractors Payment,111.60,0.00,VENDOR 
 01-03-2021,Adults & Health,East London Care And Support Limited,Daycare - Private Contractors Payment,148.80,0.00,VENDOR 
 01-03-2021,Adults & Health,East London Care And Support Limited,Daycare - Private Contractors Payment,74.40,0.00,VENDOR 
 01-03-2021,Adults & Health,East London Care And Support Limited,Daycare - Private Contractors Payment,390.60,0.00,VENDOR 
 01-03-2021,Adults & Health,East London Care And Support Limited,Other Social Services Transfer Payments,9.00,0.00,VENDOR 
 01-03-2021,Adults & Health,East London Care And Support Limited,Daycare - Private Contractors Payment,55.80,0.00,VENDOR 
 01-03-2021,Adults & Health,East London Care And Support Limited,Home Care - Private Contractors Payment,93.00,0.00,VENDOR 
 01-03-2021,Adults & Health,East London Care And Support Limited,Daycare - Private Contractors Payment,37.20,0.00,VENDOR 
 01-03-2021,Adults & Health,East London Care And Support Limited,Daycare - Private Contractors Payment,55.80,0.00,VENDOR 
 01-03-2021,Adults & Health,East London Care And Support Limited,Daycare - Private Contractors Payment,260.40,0.00,VENDOR 
 01-03-2021,Adults & Health,East London Care And Support Limited,Respite Care - Private Contractors Payment,55.80,0.00,VENDOR 
 01-03-2021,Adults & Health,East London Care And Support Limited,Home Care - Private Contractors Payment,93.00,0.00,VENDOR 
 01-03-2021,Adults & Health,East London Care And Support Limited,Daycare - Private Contractors Payment,27.90,0.00,VENDOR 
 01-03-2021,Adults & Health,East London Care And Support Limited,Daycare - Private Contractors Payment,27.90,0.00,VENDOR 
 01-03-2021,Adults & Health,East London Care And Support Limited,Daycare - Private Contractors Payment,111.60,0.00,VENDOR 
 01-03-2021,Adults & Health,East London Care And Support Limited,Daycare - Private Contractors Payment,260.40,0.00,VENDOR 
 01-03-2021,Adults & Health,East London Care And Support Limited,Daycare - Private Contractors Payment,186.00,0.00,VENDOR 
 01-03-2021,Adults & Health,East London Care And Support Limited,Daycare - Private Contractors Payment,148.80,0.00,VENDOR 
 01-03-2021,Adults & Health,East London Care And Support Limited,Home Care - Private Contractors Payment,37.20,0.00,VENDOR 
 01-03-2021,Adults & Health,East London Care And Support Limited,Other Social Services Transfer Payments,9.00,0.00,VENDOR 
 01-03-2021,Adults & Health,East London Care And Support Limited,Daycare - Private Contractors Payment,111.60,0.00,VENDOR 
 01-03-2021,Adults & Health,East London Care And Support Limited,Home Care - Private Contractors Payment,18.60,0.00,VENDOR 
 01-03-2021,Adults & Health,East London Care And Support Limited,Other Social Services Transfer Payments,35.00,0.00,VENDOR 
 01-03-2021,Adults & Health,East London Care And Support Limited,Daycare - Private Contractors Payment,465.00,0.00,VENDOR 
 01-03-2021,Adults & Health,East London Care And Support Limited,Home Care - Private Contractors Payment,74.40,0.00,VENDOR 
 01-03-2021,Adults & Health,East London Care And Support Limited,Home Care - Private Contractors Payment,18.60,0.00,VENDOR 
 01-03-2021,Adults & Health,East London Care And Support Limited,Home Care - Private Contractors Payment,27.90,0.00,VENDOR 
 01-03-2021,Adults & Health,East London Care And Support Limited,Daycare - Private Contractors Payment,55.80,0.00,VENDOR 
 01-03-2021,Adults & Health,East London Care And Support Limited,Daycare - Private Contractors Payment,93.00,0.00,VENDOR 
 01-03-2021,Adults & Health,East London Care And Support Limited,Daycare - Private Contractors Payment,55.80,0.00,VENDOR 
 01-03-2021,Adults & Health,East London Care And Support Limited,Daycare - Private Contractors Payment,40.00,0.00,VENDOR 
 01-03-2021,Adults & Health,East London Care And Support Limited,Home Care - Private Contractors Payment,18.60,0.00,VENDOR 
 01-03-2021,Adults & Health,East London Care And Support Limited,Home Care - Private Contractors Payment,18.60,0.00,VENDOR 
 01-03-2021,Adults & Health,East London Care And Support Limited,Daycare - Private Contractors Payment,372.00,0.00,VENDOR 
 01-03-2021,Adults & Health,East London Care And Support Limited,Daycare - Private Contractors Payment,74.40,0.00,VENDOR 
 01-03-2021,Adults & Health,East London Care And Support Limited,Respite Care - Private Contractors Payment,55.80,0.00,VENDOR 
 01-03-2021,Adults & Health,East London Care And Support Limited,Daycare - Private Contractors Payment,74.40,0.00,VENDOR 
 01-03-2021,Adults & Health,East London Care And Support Limited,Daycare - Private Contractors Payment,40.00,0.00,VENDOR 
 01-03-2021,Adults & Health,East London Care And Support Limited,Respite Care - Private Contractors Payment,55.80,0.00,VENDOR 
 01-03-2021,Adults & Health,East London Care And Support Limited,Home Care - Private Contractors Payment,93.00,0.00,VENDOR 
 01-03-2021,Adults & Health,East London Care And Support Limited,Daycare - Private Contractors Payment,27.90,0.00,VENDOR 
 01-03-2021,Adults & Health,East London Care And Support Limited,Daycare - Private Contractors Payment,372.00,0.00,VENDOR 
 01-03-2021,Adults & Health,East London Care And Support Limited,Home Care - Private Contractors Payment,74.40,0.00,VENDOR 
 01-03-2021,Adults & Health,East London Care And Support Limited,Daycare - Private Contractors Payment,260.40,0.00,VENDOR 
 01-03-2021,Adults & Health,East London Care And Support Limited,Daycare - Private Contractors Payment,390.60,0.00,VENDOR 
 01-03-2021,Adults & Health,East London Care And Support Limited,Daycare - Private Contractors Payment,409.20,0.00,VENDOR 
 01-03-2021,Adults & Health,East London Care And Support Limited,Other Social Services Transfer Payments,9.00,0.00,VENDOR 
 01-03-2021,Adults & Health,East London Care And Support Limited,Home Care - Private Contractors Payment,520.80,0.00,VENDOR 
 01-03-2021,Adults & Health,East London Care And Support Limited,Daycare - Private Contractors Payment,706.80,0.00,VENDOR 
 01-03-2021,Adults & Health,East London Care And Support Limited,Daycare - Private Contractors Payment,74.40,0.00,VENDOR 
 01-03-2021,Adults & Health,East London Care And Support Limited,Daycare - Private Contractors Payment,40.00,0.00,VENDOR 
 01-03-2021,Adults & Health,East London Care And Support Limited,Daycare - Private Contractors Payment,55.80,0.00,VENDOR 
 01-03-2021,Adults & Health,East London Care And Support Limited,Daycare - Private Contractors Payment,111.60,0.00,VENDOR 
 01-03-2021,Adults & Health,East London Care And Support Limited,Daycare - Private Contractors Payment,27.90,0.00,VENDOR 
 01-03-2021,Adults & Health,East London Care And Support Limited,Daycare - Private Contractors Payment,74.40,0.00,VENDOR 
 01-03-2021,Adults & Health,East London Care And Support Limited,Home Care - Private Contractors Payment,37.20,0.00,VENDOR 
 01-03-2021,Adults & Health,East London Care And Support Limited,Other Social Services Transfer Payments,21.00,0.00,VENDOR 
 01-03-2021,Adults & Health,East London Care And Support Limited,Home Care - Private Contractors Payment,18.60,0.00,VENDOR 
 01-03-2021,Adults & Health,East London Care And Support Limited,Daycare - Private Contractors Payment,55.80,0.00,VENDOR 
 01-03-2021,Adults & Health,East London Care And Support Limited,Home Care - Private Contractors Payment,18.60,0.00,VENDOR 
 01-03-2021,Adults & Health,East London Care And Support Limited,Home Care - Private Contractors Payment,74.40,0.00,VENDOR 
 01-03-2021,Adults & Health,East London Care And Support Limited,Home Care - Private Contractors Payment,18.60,0.00,VENDOR 
 01-03-2021,Adults & Health,East London Care And Support Limited,Home Care - Private Contractors Payment,27.90,0.00,VENDOR 
 01-03-2021,Adults & Health,East London Care And Support Limited,Daycare - Private Contractors Payment,37.20,0.00,VENDOR 
 01-03-2021,Adults & Health,East London Care And Support Limited,Daycare - Private Contractors Payment,37.20,0.00,VENDOR 
 01-03-2021,Adults & Health,East London Care And Support Limited,Home Care - Private Contractors Payment,93.00,0.00,VENDOR 
 01-03-2021,Adults & Health,East London Care And Support Limited,Daycare - Private Contractors Payment,111.60,0.00,VENDOR 
 01-03-2021,Adults & Health,East London Care And Support Limited,Daycare - Private Contractors Payment,37.20,0.00,VENDOR 
 01-03-2021,Adults & Health,East London Care And Support Limited,Daycare - Private Contractors Payment,111.60,0.00,VENDOR 
 01-03-2021,Adults & Health,East London Care And Support Limited,Daycare - Private Contractors Payment,74.40,0.00,VENDOR 
 01-03-2021,Adults & Health,East London Care And Support Limited,Home Care - Private Contractors Payment,260.40,0.00,VENDOR 
 01-03-2021,Adults & Health,East London Care And Support Limited,Daycare - Private Contractors Payment,111.60,0.00,VENDOR 
 01-03-2021,Adults & Health,East London Care And Support Limited,Respite Care - Private Contractors Payment,55.80,0.00,VENDOR 
 01-03-2021,Adults & Health,East London Care And Support Limited,Home Care - Private Contractors Payment,18.60,0.00,VENDOR 
 01-03-2021,Adults & Health,East London Care And Support Limited,Daycare - Private Contractors Payment,37.20,0.00,VENDOR 
 01-03-2021,Adults & Health,East London Care And Support Limited,Daycare - Private Contractors Payment,55.80,0.00,VENDOR 
 01-03-2021,Adults & Health,East London Care And Support Limited,Daycare - Private Contractors Payment,55.80,0.00,VENDOR 
 01-03-2021,Adults & Health,East London Care And Support Limited,Home Care - Private Contractors Payment,18.60,0.00,VENDOR 
 01-03-2021,Adults & Health,East London Care And Support Limited,Home Care - Private Contractors Payment,18.60,0.00,VENDOR 
 01-03-2021,Adults & Health,East London Care And Support Limited,Daycare - Private Contractors Payment,93.00,0.00,VENDOR 
 01-03-2021,Adults & Health,East London Care And Support Limited,Daycare - Private Contractors Payment,74.40,0.00,VENDOR 
 01-03-2021,Adults & Health,East London Care And Support Limited,Respite Care - Private Contractors Payment,55.80,0.00,VENDOR 
 01-03-2021,Adults & Health,East London Care And Support Limited,Home Care - Private Contractors Payment,93.00,0.00,VENDOR 
 01-03-2021,Adults & Health,East London Care And Support Limited,Daycare - Private Contractors Payment,706.80,0.00,VENDOR 
 01-03-2021,Adults & Health,East London Care And Support Limited,Home Care - Private Contractors Payment,18.60,0.00,VENDOR 
 01-03-2021,Adults & Health,East London Care And Support Limited,Other Social Services Transfer Payments,21.00,0.00,VENDOR 
 01-03-2021,Adults & Health,East London Care And Support Limited,Daycare - Private Contractors Payment,111.60,0.00,VENDOR 
 01-03-2021,Adults & Health,East London Care And Support Limited,Home Care - Private Contractors Payment,37.20,0.00,VENDOR 
 01-03-2021,Adults & Health,East London Care And Support Limited,Home Care - Private Contractors Payment,18.60,0.00,VENDOR 
 01-03-2021,Adults & Health,East London Care And Support Limited,Daycare - Private Contractors Payment,55.80,0.00,VENDOR 
 01-03-2021,Adults & Health,East London Care And Support Limited,Daycare - Private Contractors Payment,55.80,0.00,VENDOR 
 01-03-2021,Adults & Health,East London Care And Support Limited,Daycare - Private Contractors Payment,111.60,0.00,VENDOR 
 01-03-2021,Adults & Health,East London Care And Support Limited,Daycare - Private Contractors Payment,74.40,0.00,VENDOR 
 01-03-2021,Adults & Health,East London Care And Support Limited,Daycare - Private Contractors Payment,55.80,0.00,VENDOR 
 01-03-2021,Adults & Health,East London Care And Support Limited,Daycare - Private Contractors Payment,390.60,0.00,VENDOR 
 01-03-2021,Adults & Health,East London Care And Support Limited,Daycare - Private Contractors Payment,111.60,0.00,VENDOR 
 01-03-2021,Adults & Health,East London Care And Support Limited,Daycare - Private Contractors Payment,27.90,0.00,VENDOR 
 01-03-2021,Adults & Health,East London Care And Support Limited,Daycare - Private Contractors Payment,186.00,0.00,VENDOR 
 01-03-2021,Adults & Health,East London Care And Support Limited,Daycare - Private Contractors Payment,148.80,0.00,VENDOR 
 01-03-2021,Adults & Health,East London Care And Support Limited,Other Social Services Transfer Payments,9.00,0.00,VENDOR 
 01-03-2021,Adults & Health,East London Care And Support Limited,Daycare - Private Contractors Payment,111.60,0.00,VENDOR 
 01-03-2021,Adults & Health,East London Care And Support Limited,Home Care - Private Contractors Payment,18.60,0.00,VENDOR 
 01-03-2021,Adults & Health,East London Care And Support Limited,Daycare - Private Contractors Payment,27.90,0.00,VENDOR 
 01-03-2021,Adults & Health,East London Care And Support Limited,Daycare - Private Contractors Payment,465.00,0.00,VENDOR 
 01-03-2021,Adults & Health,East London Care And Support Limited,Home Care - Private Contractors Payment,74.40,0.00,VENDOR 
 01-03-2021,Adults & Health,East London Care And Support Limited,Home Care - Private Contractors Payment,74.40,0.00,VENDOR 
 01-03-2021,Adults & Health,East London Care And Support Limited,Daycare - Private Contractors Payment,260.40,0.00,VENDOR 
 01-03-2021,Adults & Health,East London Care And Support Limited,Daycare - Private Contractors Payment,409.20,0.00,VENDOR 
 01-03-2021,Adults & Health,East London Care And Support Limited,Other Social Services Transfer Payments,9.00,0.00,VENDOR 
 01-03-2021,Adults & Health,East London Care And Support Limited,Home Care - Private Contractors Payment,18.60,0.00,VENDOR 
 01-03-2021,Adults & Health,East London Care And Support Limited,Home Care - Private Contractors Payment,520.80,0.00,VENDOR 
 01-03-2021,Adults & Health,East London Care And Support Limited,Home Care - Private Contractors Payment,93.00,0.00,VENDOR 
 01-03-2021,Adults & Health,East London Care And Support Limited,Daycare - Private Contractors Payment,74.40,0.00,VENDOR 
 01-03-2021,Adults & Health,East London Care And Support Limited,Daycare - Private Contractors Payment,40.00,0.00,VENDOR 
 01-03-2021,Adults & Health,East London Care And Support Limited,Daycare - Private Contractors Payment,37.20,0.00,VENDOR 
 01-03-2021,Adults & Health,East London Care And Support Limited,Daycare - Private Contractors Payment,55.80,0.00,VENDOR 
 01-03-2021,Adults & Health,East London Care And Support Limited,Home Care - Private Contractors Payment,18.60,0.00,VENDOR 
 01-03-2021,Adults & Health,East London Care And Support Limited,Home Care - Private Contractors Payment,27.90,0.00,VENDOR 
 01-03-2021,Adults & Health,East London Care And Support Limited,Home Care - Private Contractors Payment,18.60,0.00,VENDOR 
 01-03-2021,Adults & Health,East London Care And Support Limited,Home Care - Private Contractors Payment,27.90,0.00,VENDOR 
 01-03-2021,Adults & Health,East London Care And Support Limited,Daycare - Private Contractors Payment,74.40,0.00,VENDOR 
 01-03-2021,Adults & Health,East London Care And Support Limited,Daycare - Private Contractors Payment,37.20,0.00,VENDOR 
 01-03-2021,Adults & Health,East London Care And Support Limited,Home Care - Private Contractors Payment,18.60,0.00,VENDOR 
 01-03-2021,Adults & Health,East London Care And Support Limited,Daycare - Private Contractors Payment,27.90,0.00,VENDOR 
 01-03-2021,Adults & Health,East London Care And Support Limited,Home Care - Private Contractors Payment,18.60,0.00,VENDOR 
 01-03-2021,Adults & Health,East London Care And Support Limited,Daycare - Private Contractors Payment,37.20,0.00,VENDOR 
 01-03-2021,Adults & Health,East London Care And Support Limited,Daycare - Private Contractors Payment,93.00,0.00,VENDOR 
 01-03-2021,Adults & Health,East London Care And Support Limited,Daycare - Private Contractors Payment,111.60,0.00,VENDOR 
 01-03-2021,Adults & Health,East London Care And Support Limited,Daycare - Private Contractors Payment,111.60,0.00,VENDOR 
 01-03-2021,Adults & Health,East London Care And Support Limited,Home Care - Private Contractors Payment,37.20,0.00,VENDOR 
 01-03-2021,Adults & Health,East London Care And Support Limited,Daycare - Private Contractors Payment,37.20,0.00,VENDOR 
 01-03-2021,Adults & Health,East London Care And Support Limited,Home Care - Private Contractors Payment,93.00,0.00,VENDOR 
 01-03-2021,Adults & Health,East London Care And Support Limited,Daycare - Private Contractors Payment,37.20,0.00,VENDOR 
 01-03-2021,Adults & Health,East London Care And Support Limited,Daycare - Private Contractors Payment,111.60,0.00,VENDOR 
 01-03-2021,Adults & Health,East London Care And Support Limited,Daycare - Private Contractors Payment,111.60,0.00,VENDOR 
 01-03-2021,Adults & Health,East London Care And Support Limited,Daycare - Private Contractors Payment,37.20,0.00,VENDOR 
 01-03-2021,Adults & Health,East London Care And Support Limited,Daycare - Private Contractors Payment,74.40,0.00,VENDOR 
 01-03-2021,Adults & Health,East London Care And Support Limited,Home Care - Private Contractors Payment,260.40,0.00,VENDOR 
 01-03-2021,Adults & Health,East London Care And Support Limited,Home Care - Private Contractors Payment,37.20,0.00,VENDOR 
 01-03-2021,Adults & Health,East London Care And Support Limited,Daycare - Private Contractors Payment,74.40,0.00,VENDOR 
 01-03-2021,Adults & Health,East London Care And Support Limited,Home Care - Private Contractors Payment,74.40,0.00,VENDOR 
 01-03-2021,Adults & Health,East London Care And Support Limited,Daycare - Private Contractors Payment,260.40,0.00,VENDOR 
 01-03-2021,Adults & Health,East London Care And Support Limited,Daycare - Private Contractors Payment,390.60,0.00,VENDOR 
 01-03-2021,Adults & Health,East London Care And Support Limited,Daycare - Private Contractors Payment,409.20,0.00,VENDOR 
 01-03-2021,Adults & Health,East London Care And Support Limited,Other Social Services Transfer Payments,9.00,0.00,VENDOR 
 01-03-2021,Adults & Health,East London Care And Support Limited,Home Care - Private Contractors Payment,18.60,0.00,VENDOR 
 01-03-2021,Adults & Health,East London Care And Support Limited,Home Care - Private Contractors Payment,520.80,0.00,VENDOR 
 01-03-2021,Adults & Health,East London Care And Support Limited,Daycare - Private Contractors Payment,74.40,0.00,VENDOR 
 01-03-2021,Adults & Health,East London Care And Support Limited,Daycare - Private Contractors Payment,40.00,0.00,VENDOR 
 01-03-2021,Adults & Health,East London Care And Support Limited,Daycare - Private Contractors Payment,111.60,0.00,VENDOR 
 01-03-2021,Adults & Health,East London Care And Support Limited,Home Care - Private Contractors Payment,18.60,0.00,VENDOR 
 01-03-2021,Adults & Health,East London Care And Support Limited,Daycare - Private Contractors Payment,260.40,0.00,VENDOR 
 01-03-2021,Adults & Health,East London Care And Support Limited,Home Care - Private Contractors Payment,37.20,0.00,VENDOR 
 01-03-2021,Adults & Health,East London Care And Support Limited,Home Care - Private Contractors Payment,18.60,0.00,VENDOR 
 01-03-2021,Adults & Health,East London Care And Support Limited,Other Social Services Transfer Payments,35.00,0.00,VENDOR 
 01-03-2021,Adults & Health,East London Care And Support Limited,Other Social Services Transfer Payments,21.00,0.00,VENDOR 
 01-03-2021,Adults & Health,East London Care And Support Limited,Home Care - Private Contractors Payment,18.60,0.00,VENDOR 
 01-03-2021,Adults & Health,East London Care And Support Limited,Daycare - Private Contractors Payment,55.80,0.00,VENDOR 
 01-03-2021,Adults & Health,East London Care And Support Limited,Daycare - Private Contractors Payment,55.80,0.00,VENDOR 
 01-03-2021,Adults & Health,East London Care And Support Limited,Daycare - Private Contractors Payment,111.60,0.00,VENDOR 
 01-03-2021,Adults & Health,East London Care And Support Limited,Daycare - Private Contractors Payment,55.80,0.00,VENDOR 
 01-03-2021,Adults & Health,East London Care And Support Limited,Daycare - Private Contractors Payment,260.40,0.00,VENDOR 
 01-03-2021,Adults & Health,East London Care And Support Limited,Home Care - Private Contractors Payment,37.20,0.00,VENDOR 
 01-03-2021,Adults & Health,East London Care And Support Limited,Daycare - Private Contractors Payment,37.20,0.00,VENDOR 
 01-03-2021,Adults & Health,East London Care And Support Limited,Home Care - Private Contractors Payment,93.00,0.00,VENDOR 
 01-03-2021,Adults & Health,East London Care And Support Limited,Daycare - Private Contractors Payment,37.20,0.00,VENDOR 
 01-03-2021,Adults & Health,East London Care And Support Limited,Other Social Services Transfer Payments,35.00,0.00,VENDOR 
 01-03-2021,Adults & Health,East London Care And Support Limited,Daycare - Private Contractors Payment,111.60,0.00,VENDOR 
 01-03-2021,Adults & Health,East London Care And Support Limited,Daycare - Private Contractors Payment,111.60,0.00,VENDOR 
 01-03-2021,Adults & Health,East London Care And Support Limited,Daycare - Private Contractors Payment,37.20,0.00,VENDOR 
 01-03-2021,Adults & Health,East London Care And Support Limited,Daycare - Private Contractors Payment,74.40,0.00,VENDOR 
 01-03-2021,Adults & Health,East London Care And Support Limited,Home Care - Private Contractors Payment,260.40,0.00,VENDOR 
 01-03-2021,Adults & Health,East London Care And Support Limited,Daycare - Private Contractors Payment,111.60,0.00,VENDOR 
 01-03-2021,Adults & Health,East London Care And Support Limited,Respite Care - Private Contractors Payment,55.80,0.00,VENDOR 
 01-03-2021,Adults & Health,East London Care And Support Limited,Home Care - Private Contractors Payment,18.60,0.00,VENDOR 
 01-03-2021,Adults & Health,East London Care And Support Limited,Daycare - Private Contractors Payment,40.00,0.00,VENDOR 
 01-03-2021,Adults & Health,East London Care And Support Limited,Daycare - Private Contractors Payment,372.00,0.00,VENDOR 
 01-03-2021,Adults & Health,East London Care And Support Limited,Other Social Services Transfer Payments,21.00,0.00,VENDOR 
 01-03-2021,Adults & Health,East London Care And Support Limited,Home Care - Private Contractors Payment,18.60,0.00,VENDOR 
 01-03-2021,Adults & Health,East London Care And Support Limited,Daycare - Private Contractors Payment,55.80,0.00,VENDOR 
 01-03-2021,Adults & Health,East London Care And Support Limited,Daycare - Private Contractors Payment,55.80,0.00,VENDOR 
 01-03-2021,Adults & Health,East London Care And Support Limited,Daycare - Private Contractors Payment,111.60,0.00,VENDOR 
 01-03-2021,Adults & Health,East London Care And Support Limited,Daycare - Private Contractors Payment,186.00,0.00,VENDOR 
 01-03-2021,Adults & Health,East London Care And Support Limited,Daycare - Private Contractors Payment,148.80,0.00,VENDOR 
 01-03-2021,Adults & Health,East London Care And Support Limited,Other Social Services Transfer Payments,9.00,0.00,VENDOR 
 01-03-2021,Adults & Health,East London Care And Support Limited,Daycare - Private Contractors Payment,111.60,0.00,VENDOR 
 01-03-2021,Adults & Health,East London Care And Support Limited,Daycare - Private Contractors Payment,706.80,0.00,VENDOR 
 01-03-2021,Adults & Health,East London Care And Support Limited,Daycare - Private Contractors Payment,465.00,0.00,VENDOR 
 01-03-2021,Adults & Health,East London Care And Support Limited,Private Contractors Payment - Other,195.30,0.00,VENDOR 
 01-03-2021,Adults & Health,East London Care And Support Limited,Private Contractors Payment - Other,227.85,0.00,VENDOR 
 01-03-2021,Adults & Health,East London Care And Support Limited,Private Contractors Payment - Other,97.65,0.00,VENDOR 
 01-03-2021,Adults & Health,East London Care And Support Limited,Private Contractors Payment - Other,227.85,0.00,VENDOR 
 01-03-2021,Adults & Health,East London Care And Support Limited,Private Contractors Payment - Other,41.85,0.00,VENDOR 
 01-03-2021,Adults & Health,East London Care And Support Limited,Private Contractors Payment - Other,227.85,0.00,VENDOR 
 01-03-2021,Adults & Health,East London Care And Support Limited,Private Contractors Payment - Other,195.30,0.00,VENDOR 
 01-03-2021,Adults & Health,East London Care And Support Limited,Private Contractors Payment - Other,97.65,0.00,VENDOR 
 01-03-2021,Adults & Health,East London Care And Support Limited,Private Contractors Payment - Other,195.30,0.00,VENDOR 
 01-03-2021,Adults & Health,East London Care And Support Limited,Private Contractors Payment - Other,227.85,0.00,VENDOR 
 01-03-2021,Adults & Health,East London Care And Support Limited,Private Contractors Payment - Other,227.85,0.00,VENDOR 
 01-03-2021,Adults & Health,East London Care And Support Limited,Private Contractors Payment - Other,227.85,0.00,VENDOR 
 01-03-2021,Adults & Health,East London Care And Support Limited,Private Contractors Payment - Other,97.65,0.00,VENDOR 
 01-03-2021,Adults & Health,East London Care And Support Limited,Private Contractors Payment - Other,97.65,0.00,VENDOR 
 01-03-2021,Adults & Health,East London Care And Support Limited,Private Contractors Payment - Other,227.85,0.00,VENDOR 
 01-03-2021,Adults & Health,East London Care And Support Limited,Private Contractors Payment - Other,227.85,0.00,VENDOR 
 01-03-2021,Adults & Health,East London Care And Support Limited,Private Contractors Payment - Other,195.30,0.00,VENDOR 
 01-03-2021,Adults & Health,East London Care And Support Limited,Daycare - Private Contractors Payment,372.00,0.00,VENDOR 
 01-03-2021,Adults & Health,East London Care And Support Limited,Home Care - Private Contractors Payment,186.00,0.00,VENDOR 
 01-03-2021,Adults & Health,East London Care And Support Limited,Home Care - Private Contractors Payment,260.40,0.00,VENDOR 
 01-03-2021,Adults & Health,East London Care And Support Limited,Home Care - Private Contractors Payment,186.00,0.00,VENDOR 
 01-03-2021,Adults & Health,East London Care And Support Limited,Daycare - Private Contractors Payment,46.50,0.00,VENDOR 
 01-03-2021,Adults & Health,East London Care And Support Limited,Home Care - Private Contractors Payment,186.00,0.00,VENDOR 
 01-03-2021,Adults & Health,East London Care And Support Limited,Home Care - Private Contractors Payment,260.40,0.00,VENDOR 
 01-03-2021,Adults & Health,East London Care And Support Limited,Home Care - Private Contractors Payment,186.00,0.00,VENDOR 
 01-03-2021,Adults & Health,East London Care And Support Limited,Daycare - Private Contractors Payment,372.00,0.00,VENDOR 
 01-03-2021,Adults & Health,East London Care And Support Limited,Daycare - Private Contractors Payment,372.00,0.00,VENDOR 
 01-03-2021,Adults & Health,East London Care And Support Limited,Daycare - Private Contractors Payment,46.50,0.00,VENDOR 
 01-03-2021,Adults & Health,East London Care And Support Limited,Home Care - Private Contractors Payment,260.40,0.00,VENDOR 
 01-03-2021,Adults & Health,East London Care And Support Limited,Home Care - Private Contractors Payment,186.00,0.00,VENDOR 
 01-03-2021,Adults & Health,East London Care And Support Limited,Daycare - Private Contractors Payment,297.60,0.00,VENDOR 
 01-03-2021,Adults & Health,East London Care And Support Limited,Daycare - Private Contractors Payment,46.50,0.00,VENDOR 
 01-03-2021,Adults & Health,East London Care And Support Limited,Home Care - Private Contractors Payment,186.00,0.00,VENDOR 
 01-03-2021,Adults & Health,East London Care And Support Limited,Home Care - Private Contractors Payment,186.00,0.00,VENDOR 
 01-03-2021,Adults & Health,East London Care And Support Limited,Home Care - Private Contractors Payment,260.40,0.00,VENDOR 
 01-03-2021,Adults & Health,East London Care And Support Limited,Home Care - Private Contractors Payment,186.00,0.00,VENDOR 
 01-03-2021,Adults & Health,East London Care And Support Limited,Daycare - Private Contractors Payment,46.50,0.00,VENDOR 
 01-03-2021,Adults & Health,East London Care And Support Limited,Daycare - Private Contractors Payment,55.80,0.00,VENDOR 
 01-03-2021,Adults & Health,East London Care And Support Limited,Home Care - Private Contractors Payment,55.80,0.00,VENDOR 
 01-03-2021,Adults & Health,East London Care And Support Limited,Daycare - Private Contractors Payment,55.80,0.00,VENDOR 
 01-03-2021,Inclusive Economy & Housing,Now Medical,Professional Services - General,665.00,0.00,VENDOR 
 01-03-2021,Balance Sheet,Basildon District Council,Receivables Control Account,480.25,0.00,LOCAL AUTHORITY SERVICES 
 01-03-2021,Balance Sheet,London Borough Of Waltham Forest.,Receivables Control Account,455.15,0.00,VENDOR 
 01-03-2021,Balance Sheet,London Borough of Bexley,Receivables Control Account,1019.43,0.00,LOCAL AUTHORITY SERVICES 
 01-03-2021,Balance Sheet,London Borough of Havering,Receivables Control Account,17323.37,0.00,LOCAL AUTHORITY SERVICES 
 01-03-2021,Balance Sheet,Basildon District Council,Receivables Control Account,3487.38,0.00,LOCAL AUTHORITY SERVICES 
 01-03-2021,Adults & Health,Pricecheck Toiletries Limited,"Purchase - Equipment, Furniture And Materials",4150.00,0.00,COMMERCIAL SUPPLIER 
 01-03-2021,Adults & Health,Pricecheck Toiletries Limited,"Purchase - Equipment, Furniture And Materials",2705.00,0.00,COMMERCIAL SUPPLIER 
 01-03-2021,Adults & Health,Pricecheck Toiletries Limited,"Purchase - Equipment, Furniture And Materials",1804.32,0.00,COMMERCIAL SUPPLIER 
 01-03-2021,Adults & Health,Pricecheck Toiletries Limited,"Purchase - Equipment, Furniture And Materials",72.80,0.00,COMMERCIAL SUPPLIER 
 01-03-2021,Adults & Health,Pricecheck Toiletries Limited,"Purchase - Equipment, Furniture And Materials",1362.72,0.00,COMMERCIAL SUPPLIER 
 01-03-2021,Children and Young People,BT Wholesale Broadband,Land Line Telephone Costs,-80.85,0.00,VENDOR 
 01-03-2021,Children and Young People,BT Wholesale Broadband,Land Line Telephone Costs,352.85,0.00,VENDOR 
 01-03-2021,Adults & Health,Rosy Care Limited,Daycare - Private Contractors Payment,300.00,0.00,NON COMMERCIAL SUPPLIER 
 01-03-2021,Adults & Health,Rosy Care Limited,Daycare - Private Contractors Payment,300.00,0.00,NON COMMERCIAL SUPPLIER 
 01-03-2021,Adults & Health,Rosy Care Limited,Daycare - Private Contractors Payment,300.00,0.00,NON COMMERCIAL SUPPLIER 
 01-03-2021,Adults & Health,Rosy Care Limited,Daycare - Private Contractors Payment,300.00,0.00,NON COMMERCIAL SUPPLIER 
 01-03-2021,Adults & Health,Personal Information - Redacted,Day Care Income,405.79,0.00,INDIVIDUALS 
 01-03-2021,Children and Young People,Channels and Choices Ltd,Residential Placements - Private Contractors Payment,646.59,0.00,COMMERCIAL SUPPLIER 
 01-03-2021,Children and Young People,Channels and Choices Ltd,Residential Placements - Private Contractors Payment,653.87,0.00,COMMERCIAL SUPPLIER 
 01-03-2021,Children and Young People,Channels and Choices Ltd,Residential Placements - Private Contractors Payment,653.87,0.00,COMMERCIAL SUPPLIER 
 01-03-2021,Children and Young People,Channels and Choices Ltd,Residential Placements - Private Contractors Payment,653.87,0.00,COMMERCIAL SUPPLIER 
 01-03-2021,Children and Young People,Channels and Choices Ltd,Residential Placements - Private Contractors Payment,1350.00,0.00,COMMERCIAL SUPPLIER 
 01-03-2021,Children and Young People,Channels and Choices Ltd,Residential Placements - Private Contractors Payment,1350.00,0.00,COMMERCIAL SUPPLIER 
 01-03-2021,Children and Young People,Channels and Choices Ltd,Residential Placements - Private Contractors Payment,1350.00,0.00,COMMERCIAL SUPPLIER 
 01-03-2021,Children and Young People,Channels and Choices Ltd,Residential Placements - Private Contractors Payment,1350.08,0.00,COMMERCIAL SUPPLIER 
 01-03-2021,Environment and Sustainable Transport,Chipside Ltd,Debt Collection And Recovery Costs,1404.00,0.00,COMMERCIAL SUPPLIER 
 01-03-2021,Environment and Sustainable Transport,TJG Arboricultural Services,Tree Works,6787.50,0.00,COMMERCIAL SUPPLIER 
 01-03-2021,oneSource - Non Shared,Education Support (Newham) Ltd,"Maintenance - Equipment, Furniture And Materials",329598.68,0.00,VENDOR 
 01-03-2021,Adults & Health,Bloom Procurement Services Ltd,Consultancy Fees,33750.00,0.00,COMMERCIAL SUPPLIER 
 01-03-2021,oneSource,Bloom Procurement Services Ltd,Consultancy Fees,30400.00,0.00,COMMERCIAL SUPPLIER 
 01-03-2021,Adults & Health,Bloom Procurement Services Ltd,Consultancy Fees,13315.72,0.00,COMMERCIAL SUPPLIER 
 01-03-2021,oneSource - Non Shared,Bloom Procurement Services Ltd,Consultancy Fees,4915.79,0.00,COMMERCIAL SUPPLIER 
 01-03-2021,Balance Sheet,St Stephens Nursery School,Debtor Accruals - Central Government Bodies,9137.91,0.00,VENDOR 
 01-03-2021,Dedicated Schools Budget,Little Knuckles Day Nursery,Payments To Voluntary Sector,3828.00,0.00,NON COMMERCIAL SUPPLIER 
 01-03-2021,Dedicated Schools Budget,Little Knuckles Day Nursery,Payment To Other Establishments - General,4831.00,0.00,NON COMMERCIAL SUPPLIER 
 01-03-2021,Children and Young People,Channels and Choices Ltd,Residential Placements - Private Contractors Payment,653.45,0.00,COMMERCIAL SUPPLIER 
 01-03-2021,Children and Young People,Channels and Choices Ltd,Residential Placements - Private Contractors Payment,653.85,0.00,COMMERCIAL SUPPLIER 
 01-03-2021,Children and Young People,Channels and Choices Ltd,Residential Placements - Private Contractors Payment,653.85,0.00,COMMERCIAL SUPPLIER 
 01-03-2021,Children and Young People,Channels and Choices Ltd,Residential Placements - Private Contractors Payment,653.85,0.00,COMMERCIAL SUPPLIER 
 01-03-2021,Children and Young People,Channels and Choices Ltd,Residential Placements - Private Contractors Payment,2086.00,0.00,COMMERCIAL SUPPLIER 
 01-03-2021,Children and Young People,Channels and Choices Ltd,Residential Placements - Private Contractors Payment,2086.00,0.00,COMMERCIAL SUPPLIER 
 01-03-2021,Children and Young People,Channels and Choices Ltd,Residential Placements - Private Contractors Payment,2086.00,0.00,COMMERCIAL SUPPLIER 
 01-03-2021,Children and Young People,Channels and Choices Ltd,Residential Placements - Private Contractors Payment,2086.00,0.00,COMMERCIAL SUPPLIER 
 01-03-2021,Balance Sheet,London Pension Fund Authority,Prepayment Account,800000.00,0.00,VENDOR 
 01-03-2021,Children and Young People,Oak Housing Ltd,Consultancy Fees,2520.00,0.00,COMMERCIAL SUPPLIER 
 01-03-2021,"People, Policy and Performance",Personal Information - Redacted,Client Expenses - Third Party,306.53,0.00,INDIVIDUALS 
 01-03-2021,"People, Policy and Performance",Oxford University Press,"Books, Publications And Resources",6467.00,0.00,COMMERCIAL SUPPLIER 
 01-03-2021,Children and Young People,Ethical Transitions Ltd,Client Support - Third Party,2100.00,0.00,NON COMMERCIAL SUPPLIER 
 01-03-2021,Children and Young People,Ethical Transitions Ltd,Client Support - Third Party,2100.00,0.00,NON COMMERCIAL SUPPLIER 
 01-03-2021,Children and Young People,Ethical Transitions Ltd,Client Support - Third Party,2100.00,0.00,NON COMMERCIAL SUPPLIER 
 01-03-2021,Children and Young People,Ethical Transitions Ltd,Client Support - Third Party,2100.00,0.00,NON COMMERCIAL SUPPLIER 
 02-03-2021,Adults & Health,Vibrance,Daycare - Private Contractors Payment,892.20,0.00,VOLUNTARY ORGANISATION 
 02-03-2021,Adults & Health,Vibrance,Daycare - Private Contractors Payment,892.20,0.00,VOLUNTARY ORGANISATION 
 02-03-2021,Adults & Health,Vibrance,Daycare - Private Contractors Payment,892.20,0.00,VOLUNTARY ORGANISATION 
 02-03-2021,Adults & Health,Vibrance,Daycare - Private Contractors Payment,892.20,0.00,VOLUNTARY ORGANISATION 
 02-03-2021,Adults & Health,Robinson Wholesale LLP,Catering And Vending Supplies,2180.00,0.00,COMMERCIAL SUPPLIER 
 02-03-2021,Adults & Health,Castle Water Ltd,Water And Sewerage,668.97,0.00,COMMERCIAL SUPPLIER 
 02-03-2021,Housing Revenue Account,Castle Water Ltd,Water And Sewerage,538.28,0.00,COMMERCIAL SUPPLIER 
 02-03-2021,Inclusive Economy & Housing,Castle Water Ltd,Water And Sewerage,3576.58,0.00,COMMERCIAL SUPPLIER 
 02-03-2021,Inclusive Economy & Housing,Castle Water Ltd,Water And Sewerage,116.92,0.00,COMMERCIAL SUPPLIER 
 02-03-2021,Inclusive Economy & Housing,Castle Water Ltd,Water And Sewerage,118.92,0.00,COMMERCIAL SUPPLIER 
 02-03-2021,Inclusive Economy & Housing,Castle Water Ltd,Water And Sewerage,1.18,0.00,COMMERCIAL SUPPLIER 
 02-03-2021,Housing Revenue Account,Castle Water Ltd,Water And Sewerage,6468.86,0.00,COMMERCIAL SUPPLIER 
 02-03-2021,Adults & Health,Hospiva Care & Associates Agency Ltd,Home Care - Private Contractors Payment,46.50,0.00,COMMERCIAL SUPPLIER 
 02-03-2021,Adults & Health,Hospiva Care & Associates Agency Ltd,Home Care - Private Contractors Payment,502.20,0.00,COMMERCIAL SUPPLIER 
 02-03-2021,Adults & Health,Hospiva Care & Associates Agency Ltd,Home Care - Private Contractors Payment,46.50,0.00,COMMERCIAL SUPPLIER 
 02-03-2021,Adults & Health,Hospiva Care & Associates Agency Ltd,Home Care - Private Contractors Payment,46.50,0.00,COMMERCIAL SUPPLIER 
 02-03-2021,Adults & Health,Hospiva Care & Associates Agency Ltd,Home Care - Private Contractors Payment,195.30,0.00,COMMERCIAL SUPPLIER 
 02-03-2021,Adults & Health,Hospiva Care & Associates Agency Ltd,Home Care - Private Contractors Payment,46.50,0.00,COMMERCIAL SUPPLIER 
 02-03-2021,Adults & Health,Hospiva Care & Associates Agency Ltd,Home Care - Private Contractors Payment,55.80,0.00,COMMERCIAL SUPPLIER 
 02-03-2021,Adults & Health,Hospiva Care & Associates Agency Ltd,Home Care - Private Contractors Payment,195.30,0.00,COMMERCIAL SUPPLIER 
 02-03-2021,Adults & Health,Headway East London,Leaving Care - Private Contractors Payment,2241.12,0.00,COMMERCIAL SUPPLIER 
 02-03-2021,Adults & Health,Headway East London,Leaving Care - Private Contractors Payment,3803.64,0.00,COMMERCIAL SUPPLIER 
 02-03-2021,Adults & Health,Headway East London,Leaving Care - Private Contractors Payment,3704.46,0.00,COMMERCIAL SUPPLIER 
 02-03-2021,Adults & Health,Headway East London,Leaving Care - Private Contractors Payment,2241.12,0.00,COMMERCIAL SUPPLIER 
 02-03-2021,Adults & Health,Headway East London,Leaving Care - Private Contractors Payment,1260.00,0.00,COMMERCIAL SUPPLIER 
 02-03-2021,Adults & Health,Headway East London,Leaving Care - Private Contractors Payment,2610.00,0.00,COMMERCIAL SUPPLIER 
 02-03-2021,Adults & Health,Headway East London,Leaving Care - Private Contractors Payment,990.93,0.00,COMMERCIAL SUPPLIER 
 02-03-2021,Adults & Health,Headway East London,Leaving Care - Private Contractors Payment,990.93,0.00,COMMERCIAL SUPPLIER 
 02-03-2021,Adults & Health,Headway East London,Leaving Care - Private Contractors Payment,1566.00,0.00,COMMERCIAL SUPPLIER 
 02-03-2021,Children and Young People,First Steps After Parents Ltd,Client Transport,380.97,0.00,COMMERCIAL SUPPLIER 
 02-03-2021,Adults & Health,Reed Employment Plc,Private Contractors Payment - Other,1116.00,0.00,COMMERCIAL SUPPLIER 
 02-03-2021,Adults & Health,Reed Employment Plc,Private Contractors Payment - Other,1116.00,0.00,COMMERCIAL SUPPLIER 
 02-03-2021,Adults & Health,Reed Employment Plc,Private Contractors Payment - Other,1562.40,0.00,COMMERCIAL SUPPLIER 
 02-03-2021,Adults & Health,Reed Employment Plc,Private Contractors Payment - Other,1562.40,0.00,COMMERCIAL SUPPLIER 
 02-03-2021,Adults & Health,Reed Employment Plc,Private Contractors Payment - Other,1562.40,0.00,COMMERCIAL SUPPLIER 
 02-03-2021,Adults & Health,Reed Employment Plc,Private Contractors Payment - Other,1562.40,0.00,COMMERCIAL SUPPLIER 
 02-03-2021,Adults & Health,Reed Employment Plc,Private Contractors Payment - Other,1562.40,0.00,COMMERCIAL SUPPLIER 
 02-03-2021,Adults & Health,Reed Employment Plc,Private Contractors Payment - Other,1562.40,0.00,COMMERCIAL SUPPLIER 
 02-03-2021,Adults & Health,Reed Employment Plc,Private Contractors Payment - Other,446.40,0.00,COMMERCIAL SUPPLIER 
 02-03-2021,Adults & Health,Reed Employment Plc,Private Contractors Payment - Other,446.40,0.00,COMMERCIAL SUPPLIER 
 02-03-2021,Adults & Health,Reed Employment Plc,Home Care - Private Contractors Payment,-13.95,0.00,COMMERCIAL SUPPLIER 
 02-03-2021,Adults & Health,Reed Employment Plc,Home Care - Private Contractors Payment,186.00,0.00,COMMERCIAL SUPPLIER 
 02-03-2021,Adults & Health,Reed Employment Plc,Home Care - Private Contractors Payment,186.00,0.00,COMMERCIAL SUPPLIER 
 02-03-2021,Children and Young People,Sqc Consultancy,Consultancy Fees,1400.00,0.00,VENDOR 
 02-03-2021,Children and Young People,Sqc Consultancy,Consultancy Fees,1050.00,0.00,VENDOR 
 02-03-2021,Children and Young People,NKB & Associates Ltd,Section 17 - Private Contractors Payment,461.25,0.00,NON COMMERCIAL SUPPLIER 
 02-03-2021,Children and Young People,NKB & Associates Ltd,Section 17 - Private Contractors Payment,461.25,0.00,NON COMMERCIAL SUPPLIER 
 02-03-2021,Children and Young People,NKB & Associates Ltd,Section 17 - Private Contractors Payment,461.25,0.00,NON COMMERCIAL SUPPLIER 
 02-03-2021,Children and Young People,NKB & Associates Ltd,Section 17 - Private Contractors Payment,461.25,0.00,NON COMMERCIAL SUPPLIER 
 02-03-2021,Children and Young People,NKB & Associates Ltd,Section 17 - Private Contractors Payment,461.25,0.00,NON COMMERCIAL SUPPLIER 
 02-03-2021,Children and Young People,NKB & Associates Ltd,Section 17 - Private Contractors Payment,576.56,0.00,NON COMMERCIAL SUPPLIER 
 02-03-2021,Children and Young People,NKB & Associates Ltd,Section 17 - Private Contractors Payment,461.25,0.00,NON COMMERCIAL SUPPLIER 
 02-03-2021,Children and Young People,NKB & Associates Ltd,Section 17 - Private Contractors Payment,461.25,0.00,NON COMMERCIAL SUPPLIER 
 02-03-2021,Children and Young People,NKB & Associates Ltd,Section 17 - Private Contractors Payment,576.56,0.00,NON COMMERCIAL SUPPLIER 
 02-03-2021,Children and Young People,NKB & Associates Ltd,Section 17 - Private Contractors Payment,576.56,0.00,NON COMMERCIAL SUPPLIER 
 02-03-2021,Children and Young People,NKB & Associates Ltd,Section 17 - Private Contractors Payment,461.25,0.00,NON COMMERCIAL SUPPLIER 
 02-03-2021,Children and Young People,NKB & Associates Ltd,Section 17 - Private Contractors Payment,461.25,0.00,NON COMMERCIAL SUPPLIER 
 02-03-2021,Children and Young People,NKB & Associates Ltd,Section 17 - Private Contractors Payment,576.56,0.00,NON COMMERCIAL SUPPLIER 
 02-03-2021,Children and Young People,NKB & Associates Ltd,Section 17 - Private Contractors Payment,461.25,0.00,NON COMMERCIAL SUPPLIER 
 02-03-2021,Children and Young People,NKB & Associates Ltd,Section 17 - Private Contractors Payment,461.25,0.00,NON COMMERCIAL SUPPLIER 
 02-03-2021,Children and Young People,NKB & Associates Ltd,Section 17 - Private Contractors Payment,461.25,0.00,NON COMMERCIAL SUPPLIER 
 02-03-2021,Children and Young People,NKB & Associates Ltd,Section 17 - Private Contractors Payment,576.56,0.00,NON COMMERCIAL SUPPLIER 
 02-03-2021,Children and Young People,NKB & Associates Ltd,Section 17 - Private Contractors Payment,461.25,0.00,NON COMMERCIAL SUPPLIER 
 02-03-2021,Children and Young People,NKB & Associates Ltd,Section 17 - Private Contractors Payment,461.25,0.00,NON COMMERCIAL SUPPLIER 
 02-03-2021,Children and Young People,NKB & Associates Ltd,Section 17 - Private Contractors Payment,576.56,0.00,NON COMMERCIAL SUPPLIER 
 02-03-2021,Children and Young People,NKB & Associates Ltd,Section 17 - Private Contractors Payment,461.25,0.00,NON COMMERCIAL SUPPLIER 
 02-03-2021,Children and Young People,NKB & Associates Ltd,Section 17 - Private Contractors Payment,461.25,0.00,NON COMMERCIAL SUPPLIER 
 02-03-2021,Adults & Health,Barchester Healthcare Homes Limited t/a Westgate House,Nursing Homes - Private Contractors Payment,40000.00,0.00,NON COMMERCIAL SUPPLIER 
 02-03-2021,Environment and Sustainable Transport,Societe Generale Equipment Finance Ltd,Client Transport,3448.00,0.00,COMMERCIAL SUPPLIER 
 02-03-2021,Children and Young People,Family Works Fostering,Residential Placements - Private Contractors Payment,950.00,0.00,COMMERCIAL SUPPLIER 
 02-03-2021,Children and Young People,Family Works Fostering,Residential Placements - Private Contractors Payment,950.00,0.00,COMMERCIAL SUPPLIER 
 02-03-2021,Children and Young People,Family Works Fostering,Residential Placements - Private Contractors Payment,950.00,0.00,COMMERCIAL SUPPLIER 
 02-03-2021,Children and Young People,Family Works Fostering,Residential Placements - Private Contractors Payment,950.00,0.00,COMMERCIAL SUPPLIER 
 02-03-2021,Children and Young People,Family Works Fostering,Residential Placements - Private Contractors Payment,1270.00,0.00,COMMERCIAL SUPPLIER 
 02-03-2021,Children and Young People,Family Works Fostering,Residential Placements - Private Contractors Payment,1270.00,0.00,COMMERCIAL SUPPLIER 
 02-03-2021,Children and Young People,Family Works Fostering,Residential Placements - Private Contractors Payment,1270.00,0.00,COMMERCIAL SUPPLIER 
 02-03-2021,Children and Young People,Family Works Fostering,Residential Placements - Private Contractors Payment,1270.00,0.00,COMMERCIAL SUPPLIER 
 02-03-2021,Children and Young People,Family Works Fostering,Residential Placements - Private Contractors Payment,850.00,0.00,COMMERCIAL SUPPLIER 
 02-03-2021,Children and Young People,Family Works Fostering,Residential Placements - Private Contractors Payment,850.00,0.00,COMMERCIAL SUPPLIER 
 02-03-2021,Children and Young People,Family Works Fostering,Residential Placements - Private Contractors Payment,850.00,0.00,COMMERCIAL SUPPLIER 
 02-03-2021,Children and Young People,Family Works Fostering,Residential Placements - Private Contractors Payment,850.00,0.00,COMMERCIAL SUPPLIER 
 02-03-2021,Children and Young People,Family Works Fostering,Residential Placements - Private Contractors Payment,1150.00,0.00,COMMERCIAL SUPPLIER 
 02-03-2021,Children and Young People,Family Works Fostering,Residential Placements - Private Contractors Payment,1150.00,0.00,COMMERCIAL SUPPLIER 
 02-03-2021,Children and Young People,Family Works Fostering,Residential Placements - Private Contractors Payment,1150.00,0.00,COMMERCIAL SUPPLIER 
 02-03-2021,Children and Young People,Family Works Fostering,Residential Placements - Private Contractors Payment,1150.00,0.00,COMMERCIAL SUPPLIER 
 02-03-2021,Balance Sheet,Stannah Lift Services Ltd,Capital Outlay,6324.00,0.00,CIS 
 02-03-2021,Adults & Health,Personal Information - Redacted,Payment To Health Authorities,5700.00,0.00,INDIVIDUALS 
 02-03-2021,Environment and Sustainable Transport,Woods Whur 2014 Limited,Legal Fees,900.00,0.00,VENDOR 
 02-03-2021,Adults & Health,Supply Chain Coordination Ltd (SCCL),"Purchase - Equipment, Furniture And Materials",1177.40,0.00,NHS BODIES 
 02-03-2021,Environment and Sustainable Transport,Woods Whur 2014 Limited,Legal Fees,900.00,0.00,VENDOR 
 02-03-2021,Adults & Health,Satash Community Care Projects Limited,Daycare - Private Contractors Payment,334.80,0.00,VENDOR 
 02-03-2021,Adults & Health,Satash Community Care Projects Limited,Daycare - Private Contractors Payment,334.80,0.00,VENDOR 
 02-03-2021,Adults & Health,Satash Community Care Projects Limited,Daycare - Private Contractors Payment,334.80,0.00,VENDOR 
 02-03-2021,Adults & Health,Satash Community Care Projects Limited,Daycare - Private Contractors Payment,334.80,0.00,VENDOR 
 02-03-2021,Adults & Health,Satash Community Care Projects Limited,Daycare - Private Contractors Payment,186.00,0.00,VENDOR 
 02-03-2021,Adults & Health,Satash Community Care Projects Limited,Daycare - Private Contractors Payment,186.00,0.00,VENDOR 
 02-03-2021,Adults & Health,Satash Community Care Projects Limited,Daycare - Private Contractors Payment,186.00,0.00,VENDOR 
 02-03-2021,Adults & Health,Satash Community Care Projects Limited,Daycare - Private Contractors Payment,186.00,0.00,VENDOR 
 02-03-2021,Adults & Health,Satash Community Care Projects Limited,Daycare - Private Contractors Payment,241.80,0.00,VENDOR 
 02-03-2021,Adults & Health,Satash Community Care Projects Limited,Daycare - Private Contractors Payment,241.80,0.00,VENDOR 
 02-03-2021,Adults & Health,Satash Community Care Projects Limited,Daycare - Private Contractors Payment,241.80,0.00,VENDOR 
 02-03-2021,Adults & Health,Satash Community Care Projects Limited,Daycare - Private Contractors Payment,241.80,0.00,VENDOR 
 02-03-2021,Adults & Health,Satash Community Care Projects Limited,Daycare - Private Contractors Payment,465.00,0.00,VENDOR 
 02-03-2021,Adults & Health,Satash Community Care Projects Limited,Daycare - Private Contractors Payment,465.00,0.00,VENDOR 
 02-03-2021,Adults & Health,Satash Community Care Projects Limited,Daycare - Private Contractors Payment,465.00,0.00,VENDOR 
 02-03-2021,Adults & Health,Satash Community Care Projects Limited,Daycare - Private Contractors Payment,465.00,0.00,VENDOR 
 02-03-2021,oneSource - Non Shared,Fladgate LLP,Legal Fees,2700.00,0.00,NON COMMERCIAL SUPPLIER 
 02-03-2021,Environment and Sustainable Transport,Greener Solutions,Highway Services,35.40,0.00,VENDOR 
 02-03-2021,Environment and Sustainable Transport,Greener Solutions,Highway Services,57.00,0.00,VENDOR 
 02-03-2021,Environment and Sustainable Transport,Greener Solutions,Highway Services,38.00,0.00,VENDOR 
 02-03-2021,Environment and Sustainable Transport,Greener Solutions,Highway Services,150.00,0.00,VENDOR 
 02-03-2021,Children and Young People,Care 2 Share Ltd,Residential Placements - Private Contractors Payment,3500.00,0.00,VENDOR 
 02-03-2021,Children and Young People,Care 2 Share Ltd,Residential Placements - Private Contractors Payment,3500.00,0.00,VENDOR 
 02-03-2021,Children and Young People,Care 2 Share Ltd,Residential Placements - Private Contractors Payment,3500.00,0.00,VENDOR 
 02-03-2021,Children and Young People,Care 2 Share Ltd,Residential Placements - Private Contractors Payment,3500.00,0.00,VENDOR 
 02-03-2021,Balance Sheet,Philip Pank Partnership,Capital Outlay,3115.00,0.00,COMMERCIAL SUPPLIER 
 02-03-2021,Balance Sheet,Philip Pank Partnership,Capital Outlay,4600.00,0.00,COMMERCIAL SUPPLIER 
 02-03-2021,Children and Young People,The Xcel 2000 Fostercare,Residential Placements - Private Contractors Payment,1323.00,0.00,VENDOR 
 02-03-2021,Children and Young People,The Xcel 2000 Fostercare,Residential Placements - Private Contractors Payment,1323.00,0.00,VENDOR 
 02-03-2021,Children and Young People,The Xcel 2000 Fostercare,Residential Placements - Private Contractors Payment,1323.00,0.00,VENDOR 
 02-03-2021,Children and Young People,The Xcel 2000 Fostercare,Residential Placements - Private Contractors Payment,1323.00,0.00,VENDOR 
 02-03-2021,Children and Young People,The Xcel 2000 Fostercare,Residential Placements - Private Contractors Payment,1323.00,0.00,VENDOR 
 02-03-2021,Children and Young People,The Xcel 2000 Fostercare,Residential Placements - Private Contractors Payment,1323.00,0.00,VENDOR 
 02-03-2021,Children and Young People,The Xcel 2000 Fostercare,Residential Placements - Private Contractors Payment,1323.00,0.00,VENDOR 
 02-03-2021,Children and Young People,The Xcel 2000 Fostercare,Residential Placements - Private Contractors Payment,1323.00,0.00,VENDOR 
 02-03-2021,Inclusive Economy & Housing,Site Sales Marketing Ltd,"Advertising, Publicity And Marketing",1875.00,0.00,COMMERCIAL SUPPLIER 
 02-03-2021,Inclusive Economy & Housing,Site Sales Marketing Ltd,"Advertising, Publicity And Marketing",1500.00,0.00,COMMERCIAL SUPPLIER 
 02-03-2021,Inclusive Economy & Housing,Site Sales Marketing Ltd,"Advertising, Publicity And Marketing",1500.00,0.00,COMMERCIAL SUPPLIER 
 02-03-2021,Inclusive Economy & Housing,Site Sales Marketing Ltd,"Advertising, Publicity And Marketing",375.00,0.00,COMMERCIAL SUPPLIER 
 02-03-2021,Environment and Sustainable Transport,Enterprise Flex-E-Rent,Client Transport,434.28,0.00,COMMERCIAL SUPPLIER 
 02-03-2021,Environment and Sustainable Transport,Enterprise Flex-E-Rent,Client Transport,344.92,0.00,COMMERCIAL SUPPLIER 
 02-03-2021,Environment and Sustainable Transport,Enterprise Flex-E-Rent,Client Transport,344.92,0.00,COMMERCIAL SUPPLIER 
 02-03-2021,Environment and Sustainable Transport,Enterprise Flex-E-Rent,Client Transport,344.92,0.00,COMMERCIAL SUPPLIER 
 02-03-2021,Environment and Sustainable Transport,Enterprise Flex-E-Rent,Client Transport,344.92,0.00,COMMERCIAL SUPPLIER 
 02-03-2021,Environment and Sustainable Transport,Enterprise Flex-E-Rent,Client Transport,344.92,0.00,COMMERCIAL SUPPLIER 
 02-03-2021,Environment and Sustainable Transport,Enterprise Flex-E-Rent,Client Transport,344.92,0.00,COMMERCIAL SUPPLIER 
 02-03-2021,Environment and Sustainable Transport,Enterprise Flex-E-Rent,Client Transport,344.92,0.00,COMMERCIAL SUPPLIER 
 02-03-2021,Environment and Sustainable Transport,Enterprise Flex-E-Rent,Client Transport,344.92,0.00,COMMERCIAL SUPPLIER 
 02-03-2021,Environment and Sustainable Transport,Enterprise Flex-E-Rent,Client Transport,344.92,0.00,COMMERCIAL SUPPLIER 
 02-03-2021,Environment and Sustainable Transport,Enterprise Flex-E-Rent,Client Transport,344.92,0.00,COMMERCIAL SUPPLIER 
 02-03-2021,Environment and Sustainable Transport,Enterprise Flex-E-Rent,Client Transport,344.92,0.00,COMMERCIAL SUPPLIER 
 02-03-2021,Environment and Sustainable Transport,Enterprise Flex-E-Rent,Client Transport,315.84,0.00,COMMERCIAL SUPPLIER 
 02-03-2021,Environment and Sustainable Transport,Enterprise Flex-E-Rent,Client Transport,453.80,0.00,COMMERCIAL SUPPLIER 
 02-03-2021,Environment and Sustainable Transport,Enterprise Flex-E-Rent,Client Transport,453.80,0.00,COMMERCIAL SUPPLIER 
 02-03-2021,Environment and Sustainable Transport,Enterprise Flex-E-Rent,Client Transport,453.80,0.00,COMMERCIAL SUPPLIER 
 02-03-2021,Environment and Sustainable Transport,Enterprise Flex-E-Rent,Client Transport,453.80,0.00,COMMERCIAL SUPPLIER 
 02-03-2021,Environment and Sustainable Transport,Enterprise Flex-E-Rent,Client Transport,453.80,0.00,COMMERCIAL SUPPLIER 
 02-03-2021,Environment and Sustainable Transport,Enterprise Flex-E-Rent,Client Transport,453.80,0.00,COMMERCIAL SUPPLIER 
 02-03-2021,Adults & Health,Personal Information - Redacted,Payment To Health Authorities,6000.00,0.00,INDIVIDUALS 
 02-03-2021,Adults & Health,Rainbow Homecare Ltd,Home Care - Private Contractors Payment,52.08,0.00,VENDOR 
 02-03-2021,Adults & Health,Rainbow Homecare Ltd,Home Care - Private Contractors Payment,125.24,0.00,VENDOR 
 02-03-2021,Adults & Health,Rainbow Homecare Ltd,Home Care - Private Contractors Payment,282.10,0.00,VENDOR 
 02-03-2021,Adults & Health,Rainbow Homecare Ltd,Home Care - Private Contractors Payment,406.10,0.00,VENDOR 
 02-03-2021,Adults & Health,Rainbow Homecare Ltd,Home Care - Private Contractors Payment,168.95,0.00,VENDOR 
 02-03-2021,Adults & Health,Rainbow Homecare Ltd,Home Care - Private Contractors Payment,55.80,0.00,VENDOR 
 02-03-2021,Adults & Health,Rainbow Homecare Ltd,Home Care - Private Contractors Payment,71.61,0.00,VENDOR 
 02-03-2021,Adults & Health,Rainbow Homecare Ltd,Home Care - Private Contractors Payment,239.32,0.00,VENDOR 
 02-03-2021,Adults & Health,Rainbow Homecare Ltd,Home Care - Private Contractors Payment,141.36,0.00,VENDOR 
 02-03-2021,Adults & Health,Rainbow Homecare Ltd,Home Care - Private Contractors Payment,168.95,0.00,VENDOR 
 02-03-2021,Adults & Health,Rainbow Homecare Ltd,Home Care - Private Contractors Payment,232.81,0.00,VENDOR 
 02-03-2021,Adults & Health,Rainbow Homecare Ltd,Home Care - Private Contractors Payment,163.99,0.00,VENDOR 
 02-03-2021,Adults & Health,Rainbow Homecare Ltd,Home Care - Private Contractors Payment,66.96,0.00,VENDOR 
 02-03-2021,Adults & Health,Rainbow Homecare Ltd,Home Care - Private Contractors Payment,188.79,0.00,VENDOR 
 02-03-2021,Adults & Health,Rainbow Homecare Ltd,Home Care - Private Contractors Payment,102.61,0.00,VENDOR 
 02-03-2021,Adults & Health,Rainbow Homecare Ltd,Home Care - Private Contractors Payment,37.20,0.00,VENDOR 
 02-03-2021,Adults & Health,Rainbow Homecare Ltd,Home Care - Private Contractors Payment,168.95,0.00,VENDOR 
 02-03-2021,Adults & Health,Rainbow Homecare Ltd,Home Care - Private Contractors Payment,163.99,0.00,VENDOR 
 02-03-2021,Adults & Health,Rainbow Homecare Ltd,Home Care - Private Contractors Payment,315.89,0.00,VENDOR 
 02-03-2021,Adults & Health,Rainbow Homecare Ltd,Home Care - Private Contractors Payment,129.89,0.00,VENDOR 
 02-03-2021,Adults & Health,Rainbow Homecare Ltd,Home Care - Private Contractors Payment,208.32,0.00,VENDOR 
 02-03-2021,Adults & Health,Rainbow Homecare Ltd,Home Care - Private Contractors Payment,93.31,0.00,VENDOR 
 02-03-2021,Adults & Health,Rainbow Homecare Ltd,Home Care - Private Contractors Payment,264.74,0.00,VENDOR 
 02-03-2021,Adults & Health,Rainbow Homecare Ltd,Home Care - Private Contractors Payment,98.27,0.00,VENDOR 
 02-03-2021,Adults & Health,Rainbow Homecare Ltd,Home Care - Private Contractors Payment,96.72,0.00,VENDOR 
 02-03-2021,Adults & Health,Rainbow Homecare Ltd,Home Care - Private Contractors Payment,301.63,0.00,VENDOR 
 02-03-2021,Adults & Health,Rainbow Homecare Ltd,Home Care - Private Contractors Payment,148.80,0.00,VENDOR 
 02-03-2021,Adults & Health,Rainbow Homecare Ltd,Home Care - Private Contractors Payment,172.67,0.00,VENDOR 
 02-03-2021,Adults & Health,Rainbow Homecare Ltd,Home Care - Private Contractors Payment,171.12,0.00,VENDOR 
 02-03-2021,Adults & Health,Rainbow Homecare Ltd,Home Care - Private Contractors Payment,246.14,0.00,VENDOR 
 02-03-2021,Adults & Health,Rainbow Homecare Ltd,Home Care - Private Contractors Payment,95.17,0.00,VENDOR 
 02-03-2021,Adults & Health,Rainbow Homecare Ltd,Home Care - Private Contractors Payment,96.10,0.00,VENDOR 
 02-03-2021,Adults & Health,Rainbow Homecare Ltd,Home Care - Private Contractors Payment,668.05,0.00,VENDOR 
 02-03-2021,Adults & Health,Rainbow Homecare Ltd,Home Care - Private Contractors Payment,348.75,0.00,VENDOR 
 02-03-2021,Adults & Health,Rainbow Homecare Ltd,Home Care - Private Contractors Payment,128.34,0.00,VENDOR 
 02-03-2021,Adults & Health,Rainbow Homecare Ltd,Home Care - Private Contractors Payment,97.65,0.00,VENDOR 
 02-03-2021,Adults & Health,Rainbow Homecare Ltd,Home Care - Private Contractors Payment,331.39,0.00,VENDOR 
 02-03-2021,Adults & Health,Rainbow Homecare Ltd,Home Care - Private Contractors Payment,46.81,0.00,VENDOR 
 02-03-2021,Adults & Health,Rainbow Homecare Ltd,Home Care - Private Contractors Payment,98.89,0.00,VENDOR 
 02-03-2021,Adults & Health,Rainbow Homecare Ltd,Home Care - Private Contractors Payment,97.03,0.00,VENDOR 
 02-03-2021,Adults & Health,Rainbow Homecare Ltd,Home Care - Private Contractors Payment,301.32,0.00,VENDOR 
 02-03-2021,Adults & Health,Rainbow Homecare Ltd,Home Care - Private Contractors Payment,153.45,0.00,VENDOR 
 02-03-2021,Adults & Health,Rainbow Homecare Ltd,Home Care - Private Contractors Payment,162.44,0.00,VENDOR 
 02-03-2021,Adults & Health,Rainbow Homecare Ltd,Home Care - Private Contractors Payment,286.13,0.00,VENDOR 
 02-03-2021,Adults & Health,Rainbow Homecare Ltd,Home Care - Private Contractors Payment,111.91,0.00,VENDOR 
 02-03-2021,Adults & Health,Rainbow Homecare Ltd,Home Care - Private Contractors Payment,69.75,0.00,VENDOR 
 02-03-2021,Adults & Health,Rainbow Homecare Ltd,Home Care - Private Contractors Payment,131.13,0.00,VENDOR 
 02-03-2021,Adults & Health,Rainbow Homecare Ltd,Home Care - Private Contractors Payment,96.72,0.00,VENDOR 
 02-03-2021,Adults & Health,Rainbow Homecare Ltd,Home Care - Private Contractors Payment,239.01,0.00,VENDOR 
 02-03-2021,Adults & Health,Rainbow Homecare Ltd,Home Care - Private Contractors Payment,288.61,0.00,VENDOR 
 02-03-2021,Adults & Health,Rainbow Homecare Ltd,Home Care - Private Contractors Payment,514.91,0.00,VENDOR 
 02-03-2021,Adults & Health,Rainbow Homecare Ltd,Home Care - Private Contractors Payment,106.64,0.00,VENDOR 
 02-03-2021,Adults & Health,Rainbow Homecare Ltd,Home Care - Private Contractors Payment,288.92,0.00,VENDOR 
 02-03-2021,Adults & Health,Rainbow Homecare Ltd,Home Care - Private Contractors Payment,266.91,0.00,VENDOR 
 02-03-2021,Adults & Health,Rainbow Homecare Ltd,Home Care - Private Contractors Payment,106.33,0.00,VENDOR 
 02-03-2021,Adults & Health,Rainbow Homecare Ltd,Home Care - Private Contractors Payment,38.13,0.00,VENDOR 
 02-03-2021,Adults & Health,Rainbow Homecare Ltd,Home Care - Private Contractors Payment,258.54,0.00,VENDOR 
 02-03-2021,Adults & Health,Rainbow Homecare Ltd,Home Care - Private Contractors Payment,560.48,0.00,VENDOR 
 02-03-2021,Adults & Health,Rainbow Homecare Ltd,Home Care - Private Contractors Payment,39.99,0.00,VENDOR 
 02-03-2021,Adults & Health,Rainbow Homecare Ltd,Home Care - Private Contractors Payment,207.08,0.00,VENDOR 
 02-03-2021,Adults & Health,Rainbow Homecare Ltd,Home Care - Private Contractors Payment,92.38,0.00,VENDOR 
 02-03-2021,Adults & Health,Rainbow Homecare Ltd,Home Care - Private Contractors Payment,123.07,0.00,VENDOR 
 02-03-2021,Adults & Health,Rainbow Homecare Ltd,Home Care - Private Contractors Payment,216.69,0.00,VENDOR 
 02-03-2021,Adults & Health,Rainbow Homecare Ltd,Home Care - Private Contractors Payment,56.42,0.00,VENDOR 
 02-03-2021,Adults & Health,Rainbow Homecare Ltd,Home Care - Private Contractors Payment,383.47,0.00,VENDOR 
 02-03-2021,Adults & Health,Rainbow Homecare Ltd,Home Care - Private Contractors Payment,124.31,0.00,VENDOR 
 02-03-2021,Adults & Health,Rainbow Homecare Ltd,Home Care - Private Contractors Payment,263.19,0.00,VENDOR 
 02-03-2021,Adults & Health,Rainbow Homecare Ltd,Home Care - Private Contractors Payment,398.35,0.00,VENDOR 
 02-03-2021,Adults & Health,Rainbow Homecare Ltd,Home Care - Private Contractors Payment,167.40,0.00,VENDOR 
 02-03-2021,Adults & Health,Rainbow Homecare Ltd,Home Care - Private Contractors Payment,73.47,0.00,VENDOR 
 02-03-2021,Adults & Health,Rainbow Homecare Ltd,Home Care - Private Contractors Payment,236.53,0.00,VENDOR 
 02-03-2021,Adults & Health,Rainbow Homecare Ltd,Home Care - Private Contractors Payment,100.44,0.00,VENDOR 
 02-03-2021,Adults & Health,Rainbow Homecare Ltd,Home Care - Private Contractors Payment,248.62,0.00,VENDOR 
 02-03-2021,Adults & Health,Rainbow Homecare Ltd,Home Care - Private Contractors Payment,558.93,0.00,VENDOR 
 02-03-2021,Adults & Health,Rainbow Homecare Ltd,Home Care - Private Contractors Payment,107.26,0.00,VENDOR 
 02-03-2021,Adults & Health,Rainbow Homecare Ltd,Home Care - Private Contractors Payment,843.20,0.00,VENDOR 
 02-03-2021,Adults & Health,Rainbow Homecare Ltd,Home Care - Private Contractors Payment,139.50,0.00,VENDOR 
 02-03-2021,Adults & Health,Rainbow Homecare Ltd,Home Care - Private Contractors Payment,211.42,0.00,VENDOR 
 02-03-2021,Adults & Health,Rainbow Homecare Ltd,Home Care - Private Contractors Payment,167.09,0.00,VENDOR 
 02-03-2021,Adults & Health,Rainbow Homecare Ltd,Home Care - Private Contractors Payment,134.54,0.00,VENDOR 
 02-03-2021,Adults & Health,Rainbow Homecare Ltd,Home Care - Private Contractors Payment,115.94,0.00,VENDOR 
 02-03-2021,Adults & Health,Rainbow Homecare Ltd,Home Care - Private Contractors Payment,248.93,0.00,VENDOR 
 02-03-2021,Adults & Health,Rainbow Homecare Ltd,Home Care - Private Contractors Payment,343.48,0.00,VENDOR 
 02-03-2021,Adults & Health,Rainbow Homecare Ltd,Home Care - Private Contractors Payment,92.07,0.00,VENDOR 
 02-03-2021,Adults & Health,Rainbow Homecare Ltd,Home Care - Private Contractors Payment,246.76,0.00,VENDOR 
 02-03-2021,Adults & Health,Rainbow Homecare Ltd,Home Care - Private Contractors Payment,218.55,0.00,VENDOR 
 02-03-2021,Adults & Health,Rainbow Homecare Ltd,Home Care - Private Contractors Payment,41.85,0.00,VENDOR 
 02-03-2021,Adults & Health,Rainbow Homecare Ltd,Home Care - Private Contractors Payment,175.77,0.00,VENDOR 
 02-03-2021,Adults & Health,Rainbow Homecare Ltd,Home Care - Private Contractors Payment,130.51,0.00,VENDOR 
 02-03-2021,Adults & Health,Rainbow Homecare Ltd,Home Care - Private Contractors Payment,336.35,0.00,VENDOR 
 02-03-2021,Adults & Health,Rainbow Homecare Ltd,Home Care - Private Contractors Payment,100.13,0.00,VENDOR 
 02-03-2021,Adults & Health,Rainbow Homecare Ltd,Home Care - Private Contractors Payment,330.77,0.00,VENDOR 
 02-03-2021,Adults & Health,Rainbow Homecare Ltd,Home Care - Private Contractors Payment,519.56,0.00,VENDOR 
 02-03-2021,Adults & Health,Rainbow Homecare Ltd,Home Care - Private Contractors Payment,107.26,0.00,VENDOR 
 02-03-2021,Adults & Health,Rainbow Homecare Ltd,Home Care - Private Contractors Payment,288.92,0.00,VENDOR 
 02-03-2021,Adults & Health,Rainbow Homecare Ltd,Home Care - Private Contractors Payment,269.39,0.00,VENDOR 
 02-03-2021,Adults & Health,Rainbow Homecare Ltd,Home Care - Private Contractors Payment,106.64,0.00,VENDOR 
 02-03-2021,Adults & Health,Rainbow Homecare Ltd,Home Care - Private Contractors Payment,37.82,0.00,VENDOR 
 02-03-2021,Adults & Health,Rainbow Homecare Ltd,Home Care - Private Contractors Payment,249.55,0.00,VENDOR 
 02-03-2021,Adults & Health,Rainbow Homecare Ltd,Home Care - Private Contractors Payment,317.44,0.00,VENDOR 
 02-03-2021,Adults & Health,Rainbow Homecare Ltd,Home Care - Private Contractors Payment,133.92,0.00,VENDOR 
 02-03-2021,Adults & Health,Rainbow Homecare Ltd,Home Care - Private Contractors Payment,208.94,0.00,VENDOR 
 02-03-2021,Adults & Health,Rainbow Homecare Ltd,Home Care - Private Contractors Payment,93.00,0.00,VENDOR 
 02-03-2021,Adults & Health,Rainbow Homecare Ltd,Home Care - Private Contractors Payment,247.38,0.00,VENDOR 
 02-03-2021,Adults & Health,Rainbow Homecare Ltd,Home Care - Private Contractors Payment,26.35,0.00,VENDOR 
 02-03-2021,Adults & Health,Rainbow Homecare Ltd,Home Care - Private Contractors Payment,119.97,0.00,VENDOR 
 02-03-2021,Adults & Health,Rainbow Homecare Ltd,Home Care - Private Contractors Payment,254.51,0.00,VENDOR 
 02-03-2021,Adults & Health,Rainbow Homecare Ltd,Home Care - Private Contractors Payment,183.83,0.00,VENDOR 
 02-03-2021,Adults & Health,Rainbow Homecare Ltd,Home Care - Private Contractors Payment,73.47,0.00,VENDOR 
 02-03-2021,Adults & Health,Rainbow Homecare Ltd,Home Care - Private Contractors Payment,110.67,0.00,VENDOR 
 02-03-2021,Adults & Health,Rainbow Homecare Ltd,Home Care - Private Contractors Payment,212.35,0.00,VENDOR 
 02-03-2021,Adults & Health,Rainbow Homecare Ltd,Home Care - Private Contractors Payment,62.31,0.00,VENDOR 
 02-03-2021,Adults & Health,Rainbow Homecare Ltd,Home Care - Private Contractors Payment,391.22,0.00,VENDOR 
 02-03-2021,Adults & Health,Rainbow Homecare Ltd,Home Care - Private Contractors Payment,124.31,0.00,VENDOR 
 02-03-2021,Adults & Health,Rainbow Homecare Ltd,Home Care - Private Contractors Payment,274.97,0.00,VENDOR 
 02-03-2021,Adults & Health,Rainbow Homecare Ltd,Home Care - Private Contractors Payment,398.97,0.00,VENDOR 
 02-03-2021,Adults & Health,Rainbow Homecare Ltd,Home Care - Private Contractors Payment,172.67,0.00,VENDOR 
 02-03-2021,Adults & Health,Rainbow Homecare Ltd,Home Care - Private Contractors Payment,64.79,0.00,VENDOR 
 02-03-2021,Adults & Health,Rainbow Homecare Ltd,Home Care - Private Contractors Payment,123.07,0.00,VENDOR 
 02-03-2021,Adults & Health,Rainbow Homecare Ltd,Home Care - Private Contractors Payment,176.70,0.00,VENDOR 
 02-03-2021,Adults & Health,Rainbow Homecare Ltd,Home Care - Private Contractors Payment,361.15,0.00,VENDOR 
 02-03-2021,Adults & Health,Rainbow Homecare Ltd,Home Care - Private Contractors Payment,140.43,0.00,VENDOR 
 02-03-2021,Adults & Health,Rainbow Homecare Ltd,Home Care - Private Contractors Payment,102.30,0.00,VENDOR 
 02-03-2021,Adults & Health,Rainbow Homecare Ltd,Home Care - Private Contractors Payment,172.05,0.00,VENDOR 
 02-03-2021,Adults & Health,Rainbow Homecare Ltd,Home Care - Private Contractors Payment,203.36,0.00,VENDOR 
 02-03-2021,Adults & Health,Rainbow Homecare Ltd,Home Care - Private Contractors Payment,159.03,0.00,VENDOR 
 02-03-2021,Adults & Health,Rainbow Homecare Ltd,Home Care - Private Contractors Payment,240.56,0.00,VENDOR 
 02-03-2021,Adults & Health,Rainbow Homecare Ltd,Home Care - Private Contractors Payment,484.84,0.00,VENDOR 
 02-03-2021,Adults & Health,Rainbow Homecare Ltd,Home Care - Private Contractors Payment,196.54,0.00,VENDOR 
 02-03-2021,Adults & Health,Rainbow Homecare Ltd,Home Care - Private Contractors Payment,333.25,0.00,VENDOR 
 02-03-2021,Adults & Health,Rainbow Homecare Ltd,Home Care - Private Contractors Payment,461.59,0.00,VENDOR 
 02-03-2021,Adults & Health,Rainbow Homecare Ltd,Home Care - Private Contractors Payment,271.56,0.00,VENDOR 
 02-03-2021,Adults & Health,Rainbow Homecare Ltd,Home Care - Private Contractors Payment,267.53,0.00,VENDOR 
 02-03-2021,Adults & Health,Rainbow Homecare Ltd,Home Care - Private Contractors Payment,170.19,0.00,VENDOR 
 02-03-2021,Adults & Health,Rainbow Homecare Ltd,Home Care - Private Contractors Payment,305.04,0.00,VENDOR 
 02-03-2021,Adults & Health,Rainbow Homecare Ltd,Home Care - Private Contractors Payment,110.36,0.00,VENDOR 
 02-03-2021,Adults & Health,Rainbow Homecare Ltd,Home Care - Private Contractors Payment,69.75,0.00,VENDOR 
 02-03-2021,Adults & Health,Rainbow Homecare Ltd,Home Care - Private Contractors Payment,123.38,0.00,VENDOR 
 02-03-2021,Adults & Health,Rainbow Homecare Ltd,Home Care - Private Contractors Payment,25.73,0.00,VENDOR 
 02-03-2021,Adults & Health,Rainbow Homecare Ltd,Home Care - Private Contractors Payment,122.76,0.00,VENDOR 
 02-03-2021,Adults & Health,Rainbow Homecare Ltd,Home Care - Private Contractors Payment,227.54,0.00,VENDOR 
 02-03-2021,Adults & Health,Rainbow Homecare Ltd,Home Care - Private Contractors Payment,75.02,0.00,VENDOR 
 02-03-2021,Adults & Health,Rainbow Homecare Ltd,Home Care - Private Contractors Payment,130.82,0.00,VENDOR 
 02-03-2021,Adults & Health,Rainbow Homecare Ltd,Home Care - Private Contractors Payment,176.39,0.00,VENDOR 
 02-03-2021,Adults & Health,Rainbow Homecare Ltd,Home Care - Private Contractors Payment,163.37,0.00,VENDOR 
 02-03-2021,Adults & Health,Rainbow Homecare Ltd,Home Care - Private Contractors Payment,224.13,0.00,VENDOR 
 02-03-2021,Adults & Health,Rainbow Homecare Ltd,Home Care - Private Contractors Payment,164.30,0.00,VENDOR 
 02-03-2021,Adults & Health,Rainbow Homecare Ltd,Home Care - Private Contractors Payment,167.09,0.00,VENDOR 
 02-03-2021,Adults & Health,Rainbow Homecare Ltd,Home Care - Private Contractors Payment,327.05,0.00,VENDOR 
 02-03-2021,Adults & Health,Rainbow Homecare Ltd,Home Care - Private Contractors Payment,445.78,0.00,VENDOR 
 02-03-2021,Adults & Health,Rainbow Homecare Ltd,Home Care - Private Contractors Payment,255.75,0.00,VENDOR 
 02-03-2021,Adults & Health,Rainbow Homecare Ltd,Home Care - Private Contractors Payment,261.33,0.00,VENDOR 
 02-03-2021,Adults & Health,Rainbow Homecare Ltd,Home Care - Private Contractors Payment,78.12,0.00,VENDOR 
 02-03-2021,Adults & Health,Rainbow Homecare Ltd,Home Care - Private Contractors Payment,259.78,0.00,VENDOR 
 02-03-2021,Adults & Health,Rainbow Homecare Ltd,Home Care - Private Contractors Payment,178.56,0.00,VENDOR 
 02-03-2021,Adults & Health,Rainbow Homecare Ltd,Home Care - Private Contractors Payment,164.61,0.00,VENDOR 
 02-03-2021,Adults & Health,Rainbow Homecare Ltd,Home Care - Private Contractors Payment,132.68,0.00,VENDOR 
 02-03-2021,Adults & Health,Rainbow Homecare Ltd,Home Care - Private Contractors Payment,230.33,0.00,VENDOR 
 02-03-2021,Adults & Health,Rainbow Homecare Ltd,Home Care - Private Contractors Payment,201.81,0.00,VENDOR 
 02-03-2021,Adults & Health,Rainbow Homecare Ltd,Home Care - Private Contractors Payment,119.35,0.00,VENDOR 
 02-03-2021,Adults & Health,Rainbow Homecare Ltd,Home Care - Private Contractors Payment,198.40,0.00,VENDOR 
 02-03-2021,Adults & Health,Rainbow Homecare Ltd,Home Care - Private Contractors Payment,132.37,0.00,VENDOR 
 02-03-2021,Adults & Health,Rainbow Homecare Ltd,Home Care - Private Contractors Payment,249.86,0.00,VENDOR 
 02-03-2021,Adults & Health,Rainbow Homecare Ltd,Home Care - Private Contractors Payment,104.47,0.00,VENDOR 
 02-03-2021,Adults & Health,Rainbow Homecare Ltd,Home Care - Private Contractors Payment,224.13,0.00,VENDOR 
 02-03-2021,Adults & Health,Rainbow Homecare Ltd,Home Care - Private Contractors Payment,101.06,0.00,VENDOR 
 02-03-2021,Adults & Health,Rainbow Homecare Ltd,Home Care - Private Contractors Payment,174.22,0.00,VENDOR 
 02-03-2021,Adults & Health,Rainbow Homecare Ltd,Home Care - Private Contractors Payment,74.09,0.00,VENDOR 
 02-03-2021,Adults & Health,Rainbow Homecare Ltd,Home Care - Private Contractors Payment,277.76,0.00,VENDOR 
 02-03-2021,Adults & Health,Rainbow Homecare Ltd,Home Care - Private Contractors Payment,30.69,0.00,VENDOR 
 02-03-2021,Adults & Health,Rainbow Homecare Ltd,Home Care - Private Contractors Payment,116.87,0.00,VENDOR 
 02-03-2021,Adults & Health,Rainbow Homecare Ltd,Home Care - Private Contractors Payment,226.61,0.00,VENDOR 
 02-03-2021,Adults & Health,Rainbow Homecare Ltd,Home Care - Private Contractors Payment,136.71,0.00,VENDOR 
 02-03-2021,Adults & Health,Rainbow Homecare Ltd,Home Care - Private Contractors Payment,74.40,0.00,VENDOR 
 02-03-2021,Adults & Health,Rainbow Homecare Ltd,Home Care - Private Contractors Payment,278.07,0.00,VENDOR 
 02-03-2021,Adults & Health,Rainbow Homecare Ltd,Home Care - Private Contractors Payment,351.23,0.00,VENDOR 
 02-03-2021,Adults & Health,Rainbow Homecare Ltd,Home Care - Private Contractors Payment,141.36,0.00,VENDOR 
 02-03-2021,Adults & Health,Rainbow Homecare Ltd,Home Care - Private Contractors Payment,230.02,0.00,VENDOR 
 02-03-2021,Adults & Health,Rainbow Homecare Ltd,Home Care - Private Contractors Payment,31.62,0.00,VENDOR 
 02-03-2021,Adults & Health,Rainbow Homecare Ltd,Home Care - Private Contractors Payment,76.26,0.00,VENDOR 
 02-03-2021,Adults & Health,Rainbow Homecare Ltd,Home Care - Private Contractors Payment,270.01,0.00,VENDOR 
 02-03-2021,Adults & Health,Rainbow Homecare Ltd,Home Care - Private Contractors Payment,186.31,0.00,VENDOR 
 02-03-2021,Adults & Health,Rainbow Homecare Ltd,Home Care - Private Contractors Payment,134.85,0.00,VENDOR 
 02-03-2021,Adults & Health,Rainbow Homecare Ltd,Home Care - Private Contractors Payment,142.91,0.00,VENDOR 
 02-03-2021,Adults & Health,Rainbow Homecare Ltd,Home Care - Private Contractors Payment,239.63,0.00,VENDOR 
 02-03-2021,Adults & Health,Rainbow Homecare Ltd,Home Care - Private Contractors Payment,342.24,0.00,VENDOR 
 02-03-2021,Adults & Health,Rainbow Homecare Ltd,Home Care - Private Contractors Payment,271.87,0.00,VENDOR 
 02-03-2021,Adults & Health,Rainbow Homecare Ltd,Home Care - Private Contractors Payment,129.27,0.00,VENDOR 
 02-03-2021,Adults & Health,Rainbow Homecare Ltd,Home Care - Private Contractors Payment,165.23,0.00,VENDOR 
 02-03-2021,Adults & Health,Rainbow Homecare Ltd,Home Care - Private Contractors Payment,172.36,0.00,VENDOR 
 02-03-2021,Adults & Health,Rainbow Homecare Ltd,Home Care - Private Contractors Payment,140.43,0.00,VENDOR 
 02-03-2021,Adults & Health,Rainbow Homecare Ltd,Home Care - Private Contractors Payment,112.53,0.00,VENDOR 
 02-03-2021,Adults & Health,Rainbow Homecare Ltd,Home Care - Private Contractors Payment,178.87,0.00,VENDOR 
 02-03-2021,Adults & Health,Rainbow Homecare Ltd,Home Care - Private Contractors Payment,203.98,0.00,VENDOR 
 02-03-2021,Adults & Health,Rainbow Homecare Ltd,Home Care - Private Contractors Payment,154.38,0.00,VENDOR 
 02-03-2021,Adults & Health,Rainbow Homecare Ltd,Home Care - Private Contractors Payment,55.80,0.00,VENDOR 
 02-03-2021,Adults & Health,Rainbow Homecare Ltd,Home Care - Private Contractors Payment,190.65,0.00,VENDOR 
 02-03-2021,Adults & Health,Rainbow Homecare Ltd,Home Care - Private Contractors Payment,119.66,0.00,VENDOR 
 02-03-2021,Adults & Health,Rainbow Homecare Ltd,Home Care - Private Contractors Payment,212.04,0.00,VENDOR 
 02-03-2021,Adults & Health,Rainbow Homecare Ltd,Home Care - Private Contractors Payment,71.61,0.00,VENDOR 
 02-03-2021,Adults & Health,Rainbow Homecare Ltd,Home Care - Private Contractors Payment,391.22,0.00,VENDOR 
 02-03-2021,Adults & Health,Rainbow Homecare Ltd,Home Care - Private Contractors Payment,559.24,0.00,VENDOR 
 02-03-2021,Adults & Health,Rainbow Homecare Ltd,Home Care - Private Contractors Payment,107.26,0.00,VENDOR 
 02-03-2021,Adults & Health,Rainbow Homecare Ltd,Home Care - Private Contractors Payment,841.03,0.00,VENDOR 
 02-03-2021,Adults & Health,Rainbow Homecare Ltd,Home Care - Private Contractors Payment,9.30,0.00,VENDOR 
 02-03-2021,Adults & Health,Rainbow Homecare Ltd,Home Care - Private Contractors Payment,206.15,0.00,VENDOR 
 02-03-2021,Adults & Health,Rainbow Homecare Ltd,Home Care - Private Contractors Payment,164.92,0.00,VENDOR 
 02-03-2021,Adults & Health,Rainbow Homecare Ltd,Home Care - Private Contractors Payment,135.47,0.00,VENDOR 
 02-03-2021,Adults & Health,Rainbow Homecare Ltd,Home Care - Private Contractors Payment,128.65,0.00,VENDOR 
 02-03-2021,Adults & Health,Rainbow Homecare Ltd,Home Care - Private Contractors Payment,232.81,0.00,VENDOR 
 02-03-2021,Adults & Health,Rainbow Homecare Ltd,Home Care - Private Contractors Payment,350.92,0.00,VENDOR 
 02-03-2021,Adults & Health,Rainbow Homecare Ltd,Home Care - Private Contractors Payment,424.39,0.00,VENDOR 
 02-03-2021,Adults & Health,Rainbow Homecare Ltd,Home Care - Private Contractors Payment,131.44,0.00,VENDOR 
 02-03-2021,Adults & Health,Rainbow Homecare Ltd,Home Care - Private Contractors Payment,233.43,0.00,VENDOR 
 02-03-2021,Adults & Health,Rainbow Homecare Ltd,Home Care - Private Contractors Payment,196.85,0.00,VENDOR 
 02-03-2021,Adults & Health,Rainbow Homecare Ltd,Home Care - Private Contractors Payment,684.79,0.00,VENDOR 
 02-03-2021,Adults & Health,Rainbow Homecare Ltd,Home Care - Private Contractors Payment,338.21,0.00,VENDOR 
 02-03-2021,Adults & Health,Rainbow Homecare Ltd,Home Care - Private Contractors Payment,129.89,0.00,VENDOR 
 02-03-2021,Adults & Health,Rainbow Homecare Ltd,Home Care - Private Contractors Payment,96.41,0.00,VENDOR 
 02-03-2021,Adults & Health,Rainbow Homecare Ltd,Home Care - Private Contractors Payment,292.02,0.00,VENDOR 
 02-03-2021,Adults & Health,Rainbow Homecare Ltd,Home Care - Private Contractors Payment,497.24,0.00,VENDOR 
 02-03-2021,Adults & Health,Rainbow Homecare Ltd,Home Care - Private Contractors Payment,195.30,0.00,VENDOR 
 02-03-2021,Adults & Health,Rainbow Homecare Ltd,Home Care - Private Contractors Payment,331.08,0.00,VENDOR 
 02-03-2021,Adults & Health,Rainbow Homecare Ltd,Home Care - Private Contractors Payment,233.12,0.00,VENDOR 
 02-03-2021,Adults & Health,Rainbow Homecare Ltd,Home Care - Private Contractors Payment,340.07,0.00,VENDOR 
 02-03-2021,Adults & Health,Rainbow Homecare Ltd,Home Care - Private Contractors Payment,359.60,0.00,VENDOR 
 02-03-2021,Adults & Health,Rainbow Homecare Ltd,Home Care - Private Contractors Payment,165.85,0.00,VENDOR 
 02-03-2021,Adults & Health,Rainbow Homecare Ltd,Home Care - Private Contractors Payment,65.41,0.00,VENDOR 
 02-03-2021,Adults & Health,Rainbow Homecare Ltd,Home Care - Private Contractors Payment,195.61,0.00,VENDOR 
 02-03-2021,Adults & Health,Rainbow Homecare Ltd,Home Care - Private Contractors Payment,99.82,0.00,VENDOR 
 02-03-2021,Adults & Health,Rainbow Homecare Ltd,Home Care - Private Contractors Payment,270.32,0.00,VENDOR 
 02-03-2021,Adults & Health,Rainbow Homecare Ltd,Home Care - Private Contractors Payment,167.71,0.00,VENDOR 
 02-03-2021,Adults & Health,Rainbow Homecare Ltd,Home Care - Private Contractors Payment,163.99,0.00,VENDOR 
 02-03-2021,Adults & Health,Rainbow Homecare Ltd,Home Care - Private Contractors Payment,304.11,0.00,VENDOR 
 02-03-2021,Adults & Health,Rainbow Homecare Ltd,Home Care - Private Contractors Payment,130.82,0.00,VENDOR 
 02-03-2021,Adults & Health,Rainbow Homecare Ltd,Home Care - Private Contractors Payment,267.22,0.00,VENDOR 
 02-03-2021,Adults & Health,Rainbow Homecare Ltd,Home Care - Private Contractors Payment,137.64,0.00,VENDOR 
 02-03-2021,Adults & Health,Rainbow Homecare Ltd,Home Care - Private Contractors Payment,172.67,0.00,VENDOR 
 02-03-2021,Adults & Health,Rainbow Homecare Ltd,Home Care - Private Contractors Payment,95.48,0.00,VENDOR 
 02-03-2021,Adults & Health,Rainbow Homecare Ltd,Home Care - Private Contractors Payment,222.89,0.00,VENDOR 
 02-03-2021,Adults & Health,Rainbow Homecare Ltd,Home Care - Private Contractors Payment,210.80,0.00,VENDOR 
 02-03-2021,Adults & Health,Rainbow Homecare Ltd,Home Care - Private Contractors Payment,40.92,0.00,VENDOR 
 02-03-2021,Adults & Health,Rainbow Homecare Ltd,Home Care - Private Contractors Payment,183.21,0.00,VENDOR 
 02-03-2021,Adults & Health,Rainbow Homecare Ltd,Home Care - Private Contractors Payment,464.07,0.00,VENDOR 
 02-03-2021,Adults & Health,Rainbow Homecare Ltd,Home Care - Private Contractors Payment,270.32,0.00,VENDOR 
 02-03-2021,Adults & Health,Rainbow Homecare Ltd,Home Care - Private Contractors Payment,263.81,0.00,VENDOR 
 02-03-2021,Adults & Health,Rainbow Homecare Ltd,Home Care - Private Contractors Payment,177.32,0.00,VENDOR 
 02-03-2021,Adults & Health,Rainbow Homecare Ltd,Home Care - Private Contractors Payment,292.33,0.00,VENDOR 
 02-03-2021,Adults & Health,Rainbow Homecare Ltd,Home Care - Private Contractors Payment,114.08,0.00,VENDOR 
 02-03-2021,Adults & Health,Rainbow Homecare Ltd,Home Care - Private Contractors Payment,307.52,0.00,VENDOR 
 02-03-2021,Adults & Health,Rainbow Homecare Ltd,Home Care - Private Contractors Payment,133.30,0.00,VENDOR 
 02-03-2021,Adults & Health,Rainbow Homecare Ltd,Home Care - Private Contractors Payment,199.95,0.00,VENDOR 
 02-03-2021,Adults & Health,Rainbow Homecare Ltd,Home Care - Private Contractors Payment,95.79,0.00,VENDOR 
 02-03-2021,Adults & Health,Rainbow Homecare Ltd,Home Care - Private Contractors Payment,153.45,0.00,VENDOR 
 02-03-2021,Adults & Health,Rainbow Homecare Ltd,Home Care - Private Contractors Payment,200.26,0.00,VENDOR 
 02-03-2021,Adults & Health,Rainbow Homecare Ltd,Home Care - Private Contractors Payment,74.71,0.00,VENDOR 
 02-03-2021,Adults & Health,Rainbow Homecare Ltd,Home Care - Private Contractors Payment,345.34,0.00,VENDOR 
 02-03-2021,Adults & Health,Rainbow Homecare Ltd,Home Care - Private Contractors Payment,272.80,0.00,VENDOR 
 02-03-2021,Adults & Health,Rainbow Homecare Ltd,Home Care - Private Contractors Payment,123.38,0.00,VENDOR 
 02-03-2021,Adults & Health,Rainbow Homecare Ltd,Home Care - Private Contractors Payment,165.54,0.00,VENDOR 
 02-03-2021,Adults & Health,Rainbow Homecare Ltd,Home Care - Private Contractors Payment,94.55,0.00,VENDOR 
 02-03-2021,Adults & Health,Rainbow Homecare Ltd,Home Care - Private Contractors Payment,39.99,0.00,VENDOR 
 02-03-2021,Adults & Health,Rainbow Homecare Ltd,Home Care - Private Contractors Payment,227.23,0.00,VENDOR 
 02-03-2021,Adults & Health,Rainbow Homecare Ltd,Home Care - Private Contractors Payment,41.23,0.00,VENDOR 
 02-03-2021,Adults & Health,Rainbow Homecare Ltd,Home Care - Private Contractors Payment,185.38,0.00,VENDOR 
 02-03-2021,Adults & Health,Rainbow Homecare Ltd,Home Care - Private Contractors Payment,131.44,0.00,VENDOR 
 02-03-2021,Adults & Health,Rainbow Homecare Ltd,Home Care - Private Contractors Payment,66.03,0.00,VENDOR 
 02-03-2021,Adults & Health,Rainbow Homecare Ltd,Home Care - Private Contractors Payment,100.75,0.00,VENDOR 
 02-03-2021,Adults & Health,Rainbow Homecare Ltd,Home Care - Private Contractors Payment,75.33,0.00,VENDOR 
 02-03-2021,Adults & Health,Rainbow Homecare Ltd,Home Care - Private Contractors Payment,241.49,0.00,VENDOR 
 02-03-2021,Adults & Health,Rainbow Homecare Ltd,Home Care - Private Contractors Payment,163.37,0.00,VENDOR 
 02-03-2021,Adults & Health,Rainbow Homecare Ltd,Home Care - Private Contractors Payment,168.02,0.00,VENDOR 
 02-03-2021,Adults & Health,Rainbow Homecare Ltd,Home Care - Private Contractors Payment,241.18,0.00,VENDOR 
 02-03-2021,Adults & Health,Rainbow Homecare Ltd,Home Care - Private Contractors Payment,134.85,0.00,VENDOR 
 02-03-2021,Adults & Health,Rainbow Homecare Ltd,Home Care - Private Contractors Payment,490.73,0.00,VENDOR 
 02-03-2021,Adults & Health,Rainbow Homecare Ltd,Home Care - Private Contractors Payment,194.37,0.00,VENDOR 
 02-03-2021,Adults & Health,Rainbow Homecare Ltd,Home Care - Private Contractors Payment,182.90,0.00,VENDOR 
 02-03-2021,Adults & Health,Rainbow Homecare Ltd,Home Care - Private Contractors Payment,472.75,0.00,VENDOR 
 02-03-2021,Adults & Health,Rainbow Homecare Ltd,Home Care - Private Contractors Payment,234.05,0.00,VENDOR 
 02-03-2021,Adults & Health,Rainbow Homecare Ltd,Home Care - Private Contractors Payment,46.50,0.00,VENDOR 
 02-03-2021,Adults & Health,Rainbow Homecare Ltd,Home Care - Private Contractors Payment,162.75,0.00,VENDOR 
 02-03-2021,Adults & Health,Rainbow Homecare Ltd,Home Care - Private Contractors Payment,605.43,0.00,VENDOR 
 02-03-2021,Adults & Health,Rainbow Homecare Ltd,Home Care - Private Contractors Payment,114.39,0.00,VENDOR 
 02-03-2021,Adults & Health,Rainbow Homecare Ltd,Home Care - Private Contractors Payment,39.06,0.00,VENDOR 
 02-03-2021,Adults & Health,Rainbow Homecare Ltd,Home Care - Private Contractors Payment,40.92,0.00,VENDOR 
 02-03-2021,Adults & Health,Rainbow Homecare Ltd,Home Care - Private Contractors Payment,131.75,0.00,VENDOR 
 02-03-2021,Adults & Health,Rainbow Homecare Ltd,Home Care - Private Contractors Payment,233.43,0.00,VENDOR 
 02-03-2021,Adults & Health,Rainbow Homecare Ltd,Home Care - Private Contractors Payment,198.09,0.00,VENDOR 
 02-03-2021,Adults & Health,Rainbow Homecare Ltd,Home Care - Private Contractors Payment,125.86,0.00,VENDOR 
 02-03-2021,Adults & Health,Rainbow Homecare Ltd,Home Care - Private Contractors Payment,167.71,0.00,VENDOR 
 02-03-2021,Adults & Health,Rainbow Homecare Ltd,Home Care - Private Contractors Payment,357.43,0.00,VENDOR 
 02-03-2021,Adults & Health,Rainbow Homecare Ltd,Home Care - Private Contractors Payment,143.53,0.00,VENDOR 
 02-03-2021,Adults & Health,Rainbow Homecare Ltd,Home Care - Private Contractors Payment,270.01,0.00,VENDOR 
 02-03-2021,Adults & Health,Rainbow Homecare Ltd,Home Care - Private Contractors Payment,143.84,0.00,VENDOR 
 02-03-2021,Adults & Health,Rainbow Homecare Ltd,Home Care - Private Contractors Payment,181.97,0.00,VENDOR 
 02-03-2021,Adults & Health,Rainbow Homecare Ltd,Home Care - Private Contractors Payment,80.60,0.00,VENDOR 
 02-03-2021,Adults & Health,Rainbow Homecare Ltd,Home Care - Private Contractors Payment,329.84,0.00,VENDOR 
 02-03-2021,Adults & Health,Rainbow Homecare Ltd,Home Care - Private Contractors Payment,102.61,0.00,VENDOR 
 02-03-2021,Adults & Health,Rainbow Homecare Ltd,Home Care - Private Contractors Payment,48.98,0.00,VENDOR 
 02-03-2021,Adults & Health,Rainbow Homecare Ltd,Home Care - Private Contractors Payment,31.00,0.00,VENDOR 
 02-03-2021,Adults & Health,Rainbow Homecare Ltd,Home Care - Private Contractors Payment,101.99,0.00,VENDOR 
 02-03-2021,Adults & Health,Rainbow Homecare Ltd,Home Care - Private Contractors Payment,97.03,0.00,VENDOR 
 02-03-2021,Adults & Health,Rainbow Homecare Ltd,Home Care - Private Contractors Payment,298.53,0.00,VENDOR 
 02-03-2021,Adults & Health,Rainbow Homecare Ltd,Home Care - Private Contractors Payment,106.33,0.00,VENDOR 
 02-03-2021,Adults & Health,Rainbow Homecare Ltd,Home Care - Private Contractors Payment,173.29,0.00,VENDOR 
 02-03-2021,Adults & Health,Rainbow Homecare Ltd,Home Care - Private Contractors Payment,137.33,0.00,VENDOR 
 02-03-2021,Adults & Health,Rainbow Homecare Ltd,Home Care - Private Contractors Payment,78.12,0.00,VENDOR 
 02-03-2021,Adults & Health,Rainbow Homecare Ltd,Home Care - Private Contractors Payment,264.74,0.00,VENDOR 
 02-03-2021,Adults & Health,Rainbow Homecare Ltd,Home Care - Private Contractors Payment,177.94,0.00,VENDOR 
 02-03-2021,Adults & Health,Rainbow Homecare Ltd,Home Care - Private Contractors Payment,159.65,0.00,VENDOR 
 02-03-2021,Adults & Health,Rainbow Homecare Ltd,Home Care - Private Contractors Payment,171.12,0.00,VENDOR 
 02-03-2021,Adults & Health,Rainbow Homecare Ltd,Home Care - Private Contractors Payment,244.90,0.00,VENDOR 
 02-03-2021,Adults & Health,Rainbow Homecare Ltd,Home Care - Private Contractors Payment,110.98,0.00,VENDOR 
 02-03-2021,Adults & Health,Rainbow Homecare Ltd,Home Care - Private Contractors Payment,106.02,0.00,VENDOR 
 02-03-2021,Adults & Health,Rainbow Homecare Ltd,Home Care - Private Contractors Payment,92.38,0.00,VENDOR 
 02-03-2021,Adults & Health,Rainbow Homecare Ltd,Home Care - Private Contractors Payment,100.75,0.00,VENDOR 
 02-03-2021,Adults & Health,Rainbow Homecare Ltd,Home Care - Private Contractors Payment,182.28,0.00,VENDOR 
 02-03-2021,Adults & Health,Rainbow Homecare Ltd,Home Care - Private Contractors Payment,177.01,0.00,VENDOR 
 02-03-2021,Adults & Health,Rainbow Homecare Ltd,Home Care - Private Contractors Payment,167.71,0.00,VENDOR 
 02-03-2021,Adults & Health,Rainbow Homecare Ltd,Home Care - Private Contractors Payment,50.22,0.00,VENDOR 
 02-03-2021,Adults & Health,Rainbow Homecare Ltd,Home Care - Private Contractors Payment,47.43,0.00,VENDOR 
 02-03-2021,Adults & Health,Rainbow Homecare Ltd,Home Care - Private Contractors Payment,98.27,0.00,VENDOR 
 02-03-2021,Adults & Health,Rainbow Homecare Ltd,Home Care - Private Contractors Payment,97.65,0.00,VENDOR 
 02-03-2021,Adults & Health,Rainbow Homecare Ltd,Home Care - Private Contractors Payment,297.60,0.00,VENDOR 
 02-03-2021,Adults & Health,Rainbow Homecare Ltd,Home Care - Private Contractors Payment,153.45,0.00,VENDOR 
 02-03-2021,Adults & Health,Rainbow Homecare Ltd,Home Care - Private Contractors Payment,175.77,0.00,VENDOR 
 02-03-2021,Adults & Health,Rainbow Homecare Ltd,Home Care - Private Contractors Payment,139.50,0.00,VENDOR 
 02-03-2021,Adults & Health,Rainbow Homecare Ltd,Home Care - Private Contractors Payment,105.09,0.00,VENDOR 
 02-03-2021,Adults & Health,Rainbow Homecare Ltd,Home Care - Private Contractors Payment,176.08,0.00,VENDOR 
 02-03-2021,Adults & Health,Rainbow Homecare Ltd,Home Care - Private Contractors Payment,200.26,0.00,VENDOR 
 02-03-2021,Adults & Health,Rainbow Homecare Ltd,Home Care - Private Contractors Payment,161.51,0.00,VENDOR 
 02-03-2021,Adults & Health,Rainbow Homecare Ltd,Home Care - Private Contractors Payment,132.99,0.00,VENDOR 
 02-03-2021,Adults & Health,Rainbow Homecare Ltd,Home Care - Private Contractors Payment,46.19,0.00,VENDOR 
 02-03-2021,Adults & Health,Rainbow Homecare Ltd,Home Care - Private Contractors Payment,171.74,0.00,VENDOR 
 02-03-2021,Adults & Health,Rainbow Homecare Ltd,Home Care - Private Contractors Payment,454.15,0.00,VENDOR 
 02-03-2021,Adults & Health,Rainbow Homecare Ltd,Home Care - Private Contractors Payment,238.70,0.00,VENDOR 
 02-03-2021,Adults & Health,Rainbow Homecare Ltd,Home Care - Private Contractors Payment,162.75,0.00,VENDOR 
 02-03-2021,Adults & Health,Rainbow Homecare Ltd,Home Care - Private Contractors Payment,646.97,0.00,VENDOR 
 02-03-2021,Adults & Health,Rainbow Homecare Ltd,Home Care - Private Contractors Payment,119.04,0.00,VENDOR 
 02-03-2021,Adults & Health,Rainbow Homecare Ltd,Home Care - Private Contractors Payment,44.64,0.00,VENDOR 
 02-03-2021,Adults & Health,Rainbow Homecare Ltd,Home Care - Private Contractors Payment,172.36,0.00,VENDOR 
 02-03-2021,Adults & Health,Rainbow Homecare Ltd,Home Care - Private Contractors Payment,64.48,0.00,VENDOR 
 02-03-2021,Adults & Health,Rainbow Homecare Ltd,Home Care - Private Contractors Payment,75.02,0.00,VENDOR 
 02-03-2021,Adults & Health,Rainbow Homecare Ltd,Home Care - Private Contractors Payment,234.98,0.00,VENDOR 
 02-03-2021,Adults & Health,Rainbow Homecare Ltd,Home Care - Private Contractors Payment,161.20,0.00,VENDOR 
 02-03-2021,Adults & Health,Rainbow Homecare Ltd,Home Care - Private Contractors Payment,168.02,0.00,VENDOR 
 02-03-2021,Adults & Health,Rainbow Homecare Ltd,Home Care - Private Contractors Payment,230.33,0.00,VENDOR 
 02-03-2021,Adults & Health,Rainbow Homecare Ltd,Home Care - Private Contractors Payment,381.30,0.00,VENDOR 
 02-03-2021,Adults & Health,Rainbow Homecare Ltd,Home Care - Private Contractors Payment,265.98,0.00,VENDOR 
 02-03-2021,Adults & Health,Rainbow Homecare Ltd,Home Care - Private Contractors Payment,124.00,0.00,VENDOR 
 02-03-2021,Adults & Health,Rainbow Homecare Ltd,Home Care - Private Contractors Payment,168.95,0.00,VENDOR 
 02-03-2021,Adults & Health,Rainbow Homecare Ltd,Home Care - Private Contractors Payment,219.17,0.00,VENDOR 
 02-03-2021,Adults & Health,Rainbow Homecare Ltd,Home Care - Private Contractors Payment,233.43,0.00,VENDOR 
 02-03-2021,Adults & Health,Rainbow Homecare Ltd,Home Care - Private Contractors Payment,487.94,0.00,VENDOR 
 02-03-2021,Adults & Health,Rainbow Homecare Ltd,Home Care - Private Contractors Payment,191.89,0.00,VENDOR 
 02-03-2021,Adults & Health,Rainbow Homecare Ltd,Home Care - Private Contractors Payment,330.46,0.00,VENDOR 
 02-03-2021,Adults & Health,Rainbow Homecare Ltd,Home Care - Private Contractors Payment,435.86,0.00,VENDOR 
 02-03-2021,Adults & Health,Rainbow Homecare Ltd,Home Care - Private Contractors Payment,253.27,0.00,VENDOR 
 02-03-2021,Adults & Health,Rainbow Homecare Ltd,Home Care - Private Contractors Payment,264.43,0.00,VENDOR 
 02-03-2021,Adults & Health,Rainbow Homecare Ltd,Home Care - Private Contractors Payment,168.64,0.00,VENDOR 
 02-03-2021,Adults & Health,Rainbow Homecare Ltd,Home Care - Private Contractors Payment,307.83,0.00,VENDOR 
 02-03-2021,Adults & Health,Rainbow Homecare Ltd,Home Care - Private Contractors Payment,111.29,0.00,VENDOR 
 02-03-2021,Adults & Health,Rainbow Homecare Ltd,Home Care - Private Contractors Payment,278.07,0.00,VENDOR 
 02-03-2021,Adults & Health,Rainbow Homecare Ltd,Home Care - Private Contractors Payment,166.78,0.00,VENDOR 
 02-03-2021,Adults & Health,Rainbow Homecare Ltd,Home Care - Private Contractors Payment,72.85,0.00,VENDOR 
 02-03-2021,Adults & Health,Rainbow Homecare Ltd,Home Care - Private Contractors Payment,182.59,0.00,VENDOR 
 02-03-2021,Adults & Health,Rainbow Homecare Ltd,Home Care - Private Contractors Payment,166.78,0.00,VENDOR 
 02-03-2021,Adults & Health,Rainbow Homecare Ltd,Home Care - Private Contractors Payment,169.88,0.00,VENDOR 
 02-03-2021,Adults & Health,Rainbow Homecare Ltd,Home Care - Private Contractors Payment,241.49,0.00,VENDOR 
 02-03-2021,Adults & Health,Rainbow Homecare Ltd,Home Care - Private Contractors Payment,89.28,0.00,VENDOR 
 02-03-2021,Adults & Health,Rainbow Homecare Ltd,Home Care - Private Contractors Payment,78.12,0.00,VENDOR 
 02-03-2021,Adults & Health,Rainbow Homecare Ltd,Home Care - Private Contractors Payment,629.30,0.00,VENDOR 
 02-03-2021,Adults & Health,Rainbow Homecare Ltd,Home Care - Private Contractors Payment,317.13,0.00,VENDOR 
 02-03-2021,Adults & Health,Rainbow Homecare Ltd,Home Care - Private Contractors Payment,131.44,0.00,VENDOR 
 02-03-2021,Adults & Health,Rainbow Homecare Ltd,Home Care - Private Contractors Payment,94.86,0.00,VENDOR 
 02-03-2021,Adults & Health,Rainbow Homecare Ltd,Home Care - Private Contractors Payment,285.82,0.00,VENDOR 
 02-03-2021,Adults & Health,Rainbow Homecare Ltd,Home Care - Private Contractors Payment,463.14,0.00,VENDOR 
 02-03-2021,Adults & Health,Rainbow Homecare Ltd,Home Care - Private Contractors Payment,122.14,0.00,VENDOR 
 02-03-2021,Adults & Health,Rainbow Homecare Ltd,Home Care - Private Contractors Payment,69.75,0.00,VENDOR 
 02-03-2021,Adults & Health,Rainbow Homecare Ltd,Home Care - Private Contractors Payment,131.75,0.00,VENDOR 
 02-03-2021,Adults & Health,Rainbow Homecare Ltd,Home Care - Private Contractors Payment,97.65,0.00,VENDOR 
 02-03-2021,Adults & Health,Rainbow Homecare Ltd,Home Care - Private Contractors Payment,248.00,0.00,VENDOR 
 02-03-2021,Adults & Health,Rainbow Homecare Ltd,Home Care - Private Contractors Payment,567.92,0.00,VENDOR 
 02-03-2021,Adults & Health,Rainbow Homecare Ltd,Home Care - Private Contractors Payment,203.36,0.00,VENDOR 
 02-03-2021,Adults & Health,Rainbow Homecare Ltd,Home Care - Private Contractors Payment,93.93,0.00,VENDOR 
 02-03-2021,Adults & Health,Rainbow Homecare Ltd,Home Care - Private Contractors Payment,278.38,0.00,VENDOR 
 02-03-2021,Adults & Health,Rainbow Homecare Ltd,Home Care - Private Contractors Payment,28.83,0.00,VENDOR 
 02-03-2021,Adults & Health,Rainbow Homecare Ltd,Home Care - Private Contractors Payment,116.25,0.00,VENDOR 
 02-03-2021,Adults & Health,Rainbow Homecare Ltd,Home Care - Private Contractors Payment,221.34,0.00,VENDOR 
 02-03-2021,Adults & Health,Rainbow Homecare Ltd,Home Care - Private Contractors Payment,139.50,0.00,VENDOR 
 02-03-2021,Adults & Health,Rainbow Homecare Ltd,Home Care - Private Contractors Payment,72.85,0.00,VENDOR 
 02-03-2021,Adults & Health,Rainbow Homecare Ltd,Home Care - Private Contractors Payment,133.61,0.00,VENDOR 
 02-03-2021,Adults & Health,Rainbow Homecare Ltd,Home Care - Private Contractors Payment,170.50,0.00,VENDOR 
 02-03-2021,Adults & Health,Rainbow Homecare Ltd,Home Care - Private Contractors Payment,104.16,0.00,VENDOR 
 02-03-2021,Adults & Health,Rainbow Homecare Ltd,Home Care - Private Contractors Payment,843.82,0.00,VENDOR 
 02-03-2021,Adults & Health,Rainbow Homecare Ltd,Home Care - Private Contractors Payment,215.14,0.00,VENDOR 
 02-03-2021,Adults & Health,Rainbow Homecare Ltd,Home Care - Private Contractors Payment,169.26,0.00,VENDOR 
 02-03-2021,Adults & Health,Rainbow Homecare Ltd,Home Care - Private Contractors Payment,137.64,0.00,VENDOR 
 02-03-2021,Adults & Health,Rainbow Homecare Ltd,Home Care - Private Contractors Payment,115.63,0.00,VENDOR 
 02-03-2021,Adults & Health,Rainbow Homecare Ltd,Home Care - Private Contractors Payment,247.07,0.00,VENDOR 
 02-03-2021,Adults & Health,Rainbow Homecare Ltd,Home Care - Private Contractors Payment,342.86,0.00,VENDOR 
 02-03-2021,Adults & Health,Rainbow Homecare Ltd,Home Care - Private Contractors Payment,276.52,0.00,VENDOR 
 02-03-2021,Adults & Health,Rainbow Homecare Ltd,Home Care - Private Contractors Payment,168.64,0.00,VENDOR 
 02-03-2021,Adults & Health,Rainbow Homecare Ltd,Home Care - Private Contractors Payment,66.65,0.00,VENDOR 
 02-03-2021,Adults & Health,Rainbow Homecare Ltd,Home Care - Private Contractors Payment,345.65,0.00,VENDOR 
 02-03-2021,Adults & Health,Rainbow Homecare Ltd,Home Care - Private Contractors Payment,265.67,0.00,VENDOR 
 02-03-2021,Adults & Health,Rainbow Homecare Ltd,Home Care - Private Contractors Payment,133.61,0.00,VENDOR 
 02-03-2021,Adults & Health,Rainbow Homecare Ltd,Home Care - Private Contractors Payment,174.84,0.00,VENDOR 
 02-03-2021,Adults & Health,Rainbow Homecare Ltd,Home Care - Private Contractors Payment,93.93,0.00,VENDOR 
 02-03-2021,Adults & Health,Rainbow Homecare Ltd,Home Care - Private Contractors Payment,223.20,0.00,VENDOR 
 02-03-2021,Adults & Health,Rainbow Homecare Ltd,Home Care - Private Contractors Payment,43.71,0.00,VENDOR 
 02-03-2021,Adults & Health,Rainbow Homecare Ltd,Home Care - Private Contractors Payment,113.15,0.00,VENDOR 
 02-03-2021,Adults & Health,Rainbow Homecare Ltd,Home Care - Private Contractors Payment,107.26,0.00,VENDOR 
 02-03-2021,Adults & Health,Rainbow Homecare Ltd,Home Care - Private Contractors Payment,119.66,0.00,VENDOR 
 02-03-2021,Adults & Health,Rainbow Homecare Ltd,Home Care - Private Contractors Payment,69.75,0.00,VENDOR 
 02-03-2021,Adults & Health,Rainbow Homecare Ltd,Home Care - Private Contractors Payment,122.14,0.00,VENDOR 
 02-03-2021,Adults & Health,Rainbow Homecare Ltd,Home Care - Private Contractors Payment,95.17,0.00,VENDOR 
 02-03-2021,Adults & Health,Rainbow Homecare Ltd,Home Care - Private Contractors Payment,225.99,0.00,VENDOR 
 02-03-2021,Adults & Health,Rainbow Homecare Ltd,Home Care - Private Contractors Payment,568.54,0.00,VENDOR 
 02-03-2021,Adults & Health,Rainbow Homecare Ltd,Home Care - Private Contractors Payment,106.02,0.00,VENDOR 
 02-03-2021,Adults & Health,Rainbow Homecare Ltd,Home Care - Private Contractors Payment,846.30,0.00,VENDOR 
 02-03-2021,Adults & Health,Rainbow Homecare Ltd,Home Care - Private Contractors Payment,130.82,0.00,VENDOR 
 02-03-2021,Adults & Health,Rainbow Homecare Ltd,Home Care - Private Contractors Payment,208.63,0.00,VENDOR 
 02-03-2021,Adults & Health,Rainbow Homecare Ltd,Home Care - Private Contractors Payment,164.30,0.00,VENDOR 
 02-03-2021,Adults & Health,Rainbow Homecare Ltd,Home Care - Private Contractors Payment,136.09,0.00,VENDOR 
 02-03-2021,Adults & Health,Rainbow Homecare Ltd,Home Care - Private Contractors Payment,77.81,0.00,VENDOR 
 02-03-2021,Adults & Health,Rainbow Homecare Ltd,Home Care - Private Contractors Payment,71.92,0.00,VENDOR 
 02-03-2021,Adults & Health,Rainbow Homecare Ltd,Home Care - Private Contractors Payment,132.37,0.00,VENDOR 
 02-03-2021,Adults & Health,Rainbow Homecare Ltd,Home Care - Private Contractors Payment,182.28,0.00,VENDOR 
 02-03-2021,Adults & Health,Rainbow Homecare Ltd,Home Care - Private Contractors Payment,89.28,0.00,VENDOR 
 02-03-2021,Adults & Health,Rainbow Homecare Ltd,Home Care - Private Contractors Payment,299.77,0.00,VENDOR 
 02-03-2021,Adults & Health,Rainbow Homecare Ltd,Home Care - Private Contractors Payment,226.30,0.00,VENDOR 
 02-03-2021,Adults & Health,Rainbow Homecare Ltd,Home Care - Private Contractors Payment,79.05,0.00,VENDOR 
 02-03-2021,Adults & Health,Rainbow Homecare Ltd,Home Care - Private Contractors Payment,162.13,0.00,VENDOR 
 02-03-2021,Adults & Health,Rainbow Homecare Ltd,Home Care - Private Contractors Payment,625.89,0.00,VENDOR 
 02-03-2021,Adults & Health,Rainbow Homecare Ltd,Home Care - Private Contractors Payment,289.54,0.00,VENDOR 
 02-03-2021,Adults & Health,Rainbow Homecare Ltd,Home Care - Private Contractors Payment,270.32,0.00,VENDOR 
 02-03-2021,Adults & Health,Rainbow Homecare Ltd,Home Care - Private Contractors Payment,36.89,0.00,VENDOR 
 02-03-2021,Adults & Health,Rainbow Homecare Ltd,Home Care - Private Contractors Payment,238.08,0.00,VENDOR 
 02-03-2021,Adults & Health,Rainbow Homecare Ltd,Home Care - Private Contractors Payment,133.30,0.00,VENDOR 
 02-03-2021,Adults & Health,Rainbow Homecare Ltd,Home Care - Private Contractors Payment,232.81,0.00,VENDOR 
 02-03-2021,Adults & Health,Rainbow Homecare Ltd,Home Care - Private Contractors Payment,93.93,0.00,VENDOR 
 02-03-2021,Adults & Health,Rainbow Homecare Ltd,Home Care - Private Contractors Payment,660.61,0.00,VENDOR 
 02-03-2021,Adults & Health,Rainbow Homecare Ltd,Home Care - Private Contractors Payment,357.74,0.00,VENDOR 
 02-03-2021,Adults & Health,Rainbow Homecare Ltd,Home Care - Private Contractors Payment,128.96,0.00,VENDOR 
 02-03-2021,Adults & Health,Rainbow Homecare Ltd,Home Care - Private Contractors Payment,33.48,0.00,VENDOR 
 02-03-2021,Adults & Health,Rainbow Homecare Ltd,Home Care - Private Contractors Payment,176.08,0.00,VENDOR 
 02-03-2021,Adults & Health,Rainbow Homecare Ltd,Home Care - Private Contractors Payment,195.30,0.00,VENDOR 
 02-03-2021,Adults & Health,Rainbow Homecare Ltd,Home Care - Private Contractors Payment,165.23,0.00,VENDOR 
 02-03-2021,Adults & Health,Rainbow Homecare Ltd,Home Care - Private Contractors Payment,127.10,0.00,VENDOR 
 02-03-2021,Adults & Health,Rainbow Homecare Ltd,Home Care - Private Contractors Payment,111.60,0.00,VENDOR 
 02-03-2021,Adults & Health,Rainbow Homecare Ltd,Home Care - Private Contractors Payment,204.91,0.00,VENDOR 
 02-03-2021,Adults & Health,Rainbow Homecare Ltd,Home Care - Private Contractors Payment,67.89,0.00,VENDOR 
 02-03-2021,Adults & Health,Rainbow Homecare Ltd,Home Care - Private Contractors Payment,304.11,0.00,VENDOR 
 02-03-2021,Adults & Health,Rainbow Homecare Ltd,Home Care - Private Contractors Payment,128.65,0.00,VENDOR 
 02-03-2021,Adults & Health,Rainbow Homecare Ltd,Home Care - Private Contractors Payment,284.89,0.00,VENDOR 
 02-03-2021,Adults & Health,Rainbow Homecare Ltd,Home Care - Private Contractors Payment,401.14,0.00,VENDOR 
 02-03-2021,Adults & Health,Rainbow Homecare Ltd,Home Care - Private Contractors Payment,118.11,0.00,VENDOR 
 02-03-2021,Adults & Health,Rainbow Homecare Ltd,Home Care - Private Contractors Payment,93.62,0.00,VENDOR 
 02-03-2021,Adults & Health,Rainbow Homecare Ltd,Home Care - Private Contractors Payment,284.58,0.00,VENDOR 
 02-03-2021,Adults & Health,Rainbow Homecare Ltd,Home Care - Private Contractors Payment,517.70,0.00,VENDOR 
 02-03-2021,Adults & Health,Rainbow Homecare Ltd,Home Care - Private Contractors Payment,112.84,0.00,VENDOR 
 02-03-2021,Adults & Health,Rainbow Homecare Ltd,Home Care - Private Contractors Payment,288.92,0.00,VENDOR 
 02-03-2021,Adults & Health,Rainbow Homecare Ltd,Home Care - Private Contractors Payment,271.56,0.00,VENDOR 
 02-03-2021,Adults & Health,Rainbow Homecare Ltd,Home Care - Private Contractors Payment,101.68,0.00,VENDOR 
 02-03-2021,Adults & Health,Rainbow Homecare Ltd,Home Care - Private Contractors Payment,36.89,0.00,VENDOR 
 02-03-2021,Adults & Health,Rainbow Homecare Ltd,Home Care - Private Contractors Payment,244.90,0.00,VENDOR 
 02-03-2021,Adults & Health,Rainbow Homecare Ltd,Home Care - Private Contractors Payment,340.38,0.00,VENDOR 
 02-03-2021,Adults & Health,Rainbow Homecare Ltd,Home Care - Private Contractors Payment,196.23,0.00,VENDOR 
 02-03-2021,Adults & Health,Rainbow Homecare Ltd,Home Care - Private Contractors Payment,123.38,0.00,VENDOR 
 02-03-2021,Adults & Health,Rainbow Homecare Ltd,Home Care - Private Contractors Payment,112.22,0.00,VENDOR 
 02-03-2021,Adults & Health,Rainbow Homecare Ltd,Home Care - Private Contractors Payment,356.19,0.00,VENDOR 
 02-03-2021,Adults & Health,Rainbow Homecare Ltd,Home Care - Private Contractors Payment,145.70,0.00,VENDOR 
 02-03-2021,Adults & Health,Rainbow Homecare Ltd,Home Care - Private Contractors Payment,232.50,0.00,VENDOR 
 02-03-2021,Adults & Health,Rainbow Homecare Ltd,Home Care - Private Contractors Payment,87.42,0.00,VENDOR 
 02-03-2021,Adults & Health,Rainbow Homecare Ltd,Home Care - Private Contractors Payment,72.85,0.00,VENDOR 
 02-03-2021,Adults & Health,Metro Homecare Ltd,Home Care - Private Contractors Payment,134.85,0.00,COMMERCIAL SUPPLIER 
 02-03-2021,Adults & Health,Metro Homecare Ltd,Home Care - Private Contractors Payment,332.32,0.00,COMMERCIAL SUPPLIER 
 02-03-2021,Adults & Health,Metro Homecare Ltd,Home Care - Private Contractors Payment,129.58,0.00,COMMERCIAL SUPPLIER 
 02-03-2021,Adults & Health,Metro Homecare Ltd,Home Care - Private Contractors Payment,325.50,0.00,COMMERCIAL SUPPLIER 
 02-03-2021,Adults & Health,Metro Homecare Ltd,Home Care - Private Contractors Payment,642.01,0.00,COMMERCIAL SUPPLIER 
 02-03-2021,Adults & Health,Metro Homecare Ltd,Home Care - Private Contractors Payment,206.77,0.00,COMMERCIAL SUPPLIER 
 02-03-2021,Adults & Health,Metro Homecare Ltd,Home Care - Private Contractors Payment,136.40,0.00,COMMERCIAL SUPPLIER 
 02-03-2021,Adults & Health,Metro Homecare Ltd,Home Care - Private Contractors Payment,255.13,0.00,COMMERCIAL SUPPLIER 
 02-03-2021,Adults & Health,Metro Homecare Ltd,Home Care - Private Contractors Payment,225.06,0.00,COMMERCIAL SUPPLIER 
 02-03-2021,Adults & Health,Metro Homecare Ltd,Home Care - Private Contractors Payment,121.52,0.00,COMMERCIAL SUPPLIER 
 02-03-2021,Adults & Health,Metro Homecare Ltd,Home Care - Private Contractors Payment,262.88,0.00,COMMERCIAL SUPPLIER 
 02-03-2021,Adults & Health,Metro Homecare Ltd,Home Care - Private Contractors Payment,211.11,0.00,COMMERCIAL SUPPLIER 
 02-03-2021,Adults & Health,Metro Homecare Ltd,Home Care - Private Contractors Payment,260.71,0.00,COMMERCIAL SUPPLIER 
 02-03-2021,Adults & Health,Metro Homecare Ltd,Home Care - Private Contractors Payment,155.62,0.00,COMMERCIAL SUPPLIER 
 02-03-2021,Adults & Health,Metro Homecare Ltd,Home Care - Private Contractors Payment,181.97,0.00,COMMERCIAL SUPPLIER 
 02-03-2021,Adults & Health,Metro Homecare Ltd,Home Care - Private Contractors Payment,221.96,0.00,COMMERCIAL SUPPLIER 
 02-03-2021,Adults & Health,Metro Homecare Ltd,Home Care - Private Contractors Payment,48.67,0.00,COMMERCIAL SUPPLIER 
 02-03-2021,Adults & Health,Metro Homecare Ltd,Home Care - Private Contractors Payment,372.31,0.00,COMMERCIAL SUPPLIER 
 02-03-2021,Adults & Health,Metro Homecare Ltd,Home Care - Private Contractors Payment,105.71,0.00,COMMERCIAL SUPPLIER 
 02-03-2021,Adults & Health,Metro Homecare Ltd,Home Care - Private Contractors Payment,117.18,0.00,COMMERCIAL SUPPLIER 
 02-03-2021,Adults & Health,Metro Homecare Ltd,Home Care - Private Contractors Payment,469.96,0.00,COMMERCIAL SUPPLIER 
 02-03-2021,Adults & Health,Metro Homecare Ltd,Home Care - Private Contractors Payment,419.12,0.00,COMMERCIAL SUPPLIER 
 02-03-2021,Adults & Health,Metro Homecare Ltd,Home Care - Private Contractors Payment,108.81,0.00,COMMERCIAL SUPPLIER 
 02-03-2021,Adults & Health,Metro Homecare Ltd,Home Care - Private Contractors Payment,390.29,0.00,COMMERCIAL SUPPLIER 
 02-03-2021,Adults & Health,Metro Homecare Ltd,Home Care - Private Contractors Payment,562.96,0.00,COMMERCIAL SUPPLIER 
 02-03-2021,Adults & Health,Metro Homecare Ltd,Home Care - Private Contractors Payment,358.98,0.00,COMMERCIAL SUPPLIER 
 02-03-2021,Adults & Health,Metro Homecare Ltd,Home Care - Private Contractors Payment,272.80,0.00,COMMERCIAL SUPPLIER 
 02-03-2021,Adults & Health,Metro Homecare Ltd,Home Care - Private Contractors Payment,36.89,0.00,COMMERCIAL SUPPLIER 
 02-03-2021,Adults & Health,Metro Homecare Ltd,Home Care - Private Contractors Payment,138.57,0.00,COMMERCIAL SUPPLIER 
 02-03-2021,Adults & Health,Metro Homecare Ltd,Home Care - Private Contractors Payment,159.65,0.00,COMMERCIAL SUPPLIER 
 02-03-2021,Adults & Health,Metro Homecare Ltd,Home Care - Private Contractors Payment,150.66,0.00,COMMERCIAL SUPPLIER 
 02-03-2021,Adults & Health,Metro Homecare Ltd,Home Care - Private Contractors Payment,324.57,0.00,COMMERCIAL SUPPLIER 
 02-03-2021,Adults & Health,Metro Homecare Ltd,Home Care - Private Contractors Payment,215.14,0.00,COMMERCIAL SUPPLIER 
 02-03-2021,Adults & Health,Metro Homecare Ltd,Home Care - Private Contractors Payment,193.44,0.00,COMMERCIAL SUPPLIER 
 02-03-2021,Adults & Health,Metro Homecare Ltd,Home Care - Private Contractors Payment,173.29,0.00,COMMERCIAL SUPPLIER 
 02-03-2021,Adults & Health,Metro Homecare Ltd,Home Care - Private Contractors Payment,201.50,0.00,COMMERCIAL SUPPLIER 
 02-03-2021,Adults & Health,Metro Homecare Ltd,Home Care - Private Contractors Payment,183.83,0.00,COMMERCIAL SUPPLIER 
 02-03-2021,Adults & Health,Metro Homecare Ltd,Home Care - Private Contractors Payment,224.13,0.00,COMMERCIAL SUPPLIER 
 02-03-2021,Adults & Health,Metro Homecare Ltd,Home Care - Private Contractors Payment,46.19,0.00,COMMERCIAL SUPPLIER 
 02-03-2021,Adults & Health,Metro Homecare Ltd,Home Care - Private Contractors Payment,220.72,0.00,COMMERCIAL SUPPLIER 
 02-03-2021,Adults & Health,Metro Homecare Ltd,Home Care - Private Contractors Payment,706.80,0.00,COMMERCIAL SUPPLIER 
 02-03-2021,Adults & Health,Metro Homecare Ltd,Home Care - Private Contractors Payment,267.53,0.00,COMMERCIAL SUPPLIER 
 02-03-2021,Adults & Health,Metro Homecare Ltd,Home Care - Private Contractors Payment,362.39,0.00,COMMERCIAL SUPPLIER 
 02-03-2021,Adults & Health,Metro Homecare Ltd,Home Care - Private Contractors Payment,207.08,0.00,COMMERCIAL SUPPLIER 
 02-03-2021,Adults & Health,Metro Homecare Ltd,Home Care - Private Contractors Payment,402.07,0.00,COMMERCIAL SUPPLIER 
 02-03-2021,Adults & Health,Metro Homecare Ltd,Home Care - Private Contractors Payment,634.26,0.00,COMMERCIAL SUPPLIER 
 02-03-2021,Adults & Health,Metro Homecare Ltd,Home Care - Private Contractors Payment,66.65,0.00,COMMERCIAL SUPPLIER 
 02-03-2021,Adults & Health,Metro Homecare Ltd,Home Care - Private Contractors Payment,243.97,0.00,COMMERCIAL SUPPLIER 
 02-03-2021,Adults & Health,Metro Homecare Ltd,Home Care - Private Contractors Payment,218.55,0.00,COMMERCIAL SUPPLIER 
 02-03-2021,Adults & Health,Metro Homecare Ltd,Home Care - Private Contractors Payment,137.64,0.00,COMMERCIAL SUPPLIER 
 02-03-2021,Adults & Health,Metro Homecare Ltd,Home Care - Private Contractors Payment,101.06,0.00,COMMERCIAL SUPPLIER 
 02-03-2021,Adults & Health,Metro Homecare Ltd,Home Care - Private Contractors Payment,78.12,0.00,COMMERCIAL SUPPLIER 
 02-03-2021,Adults & Health,Metro Homecare Ltd,Home Care - Private Contractors Payment,133.30,0.00,COMMERCIAL SUPPLIER 
 02-03-2021,Adults & Health,Metro Homecare Ltd,Home Care - Private Contractors Payment,575.67,0.00,COMMERCIAL SUPPLIER 
 02-03-2021,Adults & Health,Metro Homecare Ltd,Home Care - Private Contractors Payment,88.97,0.00,COMMERCIAL SUPPLIER 
 02-03-2021,Adults & Health,Metro Homecare Ltd,Home Care - Private Contractors Payment,425.63,0.00,COMMERCIAL SUPPLIER 
 02-03-2021,Adults & Health,Metro Homecare Ltd,Home Care - Private Contractors Payment,183.83,0.00,COMMERCIAL SUPPLIER 
 02-03-2021,Adults & Health,Metro Homecare Ltd,Home Care - Private Contractors Payment,355.26,0.00,COMMERCIAL SUPPLIER 
 02-03-2021,Adults & Health,Metro Homecare Ltd,Home Care - Private Contractors Payment,101.06,0.00,COMMERCIAL SUPPLIER 
 02-03-2021,Adults & Health,Metro Homecare Ltd,Home Care - Private Contractors Payment,97.03,0.00,COMMERCIAL SUPPLIER 
 02-03-2021,Adults & Health,Metro Homecare Ltd,Home Care - Private Contractors Payment,316.20,0.00,COMMERCIAL SUPPLIER 
 02-03-2021,Adults & Health,Metro Homecare Ltd,Home Care - Private Contractors Payment,128.34,0.00,COMMERCIAL SUPPLIER 
 02-03-2021,Adults & Health,Metro Homecare Ltd,Home Care - Private Contractors Payment,325.50,0.00,COMMERCIAL SUPPLIER 
 02-03-2021,Adults & Health,Metro Homecare Ltd,Home Care - Private Contractors Payment,129.89,0.00,COMMERCIAL SUPPLIER 
 02-03-2021,Adults & Health,Metro Homecare Ltd,Home Care - Private Contractors Payment,155.31,0.00,COMMERCIAL SUPPLIER 
 02-03-2021,Adults & Health,Metro Homecare Ltd,Home Care - Private Contractors Payment,166.16,0.00,COMMERCIAL SUPPLIER 
 02-03-2021,Adults & Health,Metro Homecare Ltd,Home Care - Private Contractors Payment,444.23,0.00,COMMERCIAL SUPPLIER 
 02-03-2021,Adults & Health,Metro Homecare Ltd,Home Care - Private Contractors Payment,193.75,0.00,COMMERCIAL SUPPLIER 
 02-03-2021,Adults & Health,Metro Homecare Ltd,Home Care - Private Contractors Payment,579.70,0.00,COMMERCIAL SUPPLIER 
 02-03-2021,Adults & Health,Metro Homecare Ltd,Home Care - Private Contractors Payment,70.99,0.00,COMMERCIAL SUPPLIER 
 02-03-2021,Adults & Health,Metro Homecare Ltd,Home Care - Private Contractors Payment,372.00,0.00,COMMERCIAL SUPPLIER 
 02-03-2021,Adults & Health,Metro Homecare Ltd,Home Care - Private Contractors Payment,128.65,0.00,COMMERCIAL SUPPLIER 
 02-03-2021,Adults & Health,Metro Homecare Ltd,Home Care - Private Contractors Payment,300.39,0.00,COMMERCIAL SUPPLIER 
 02-03-2021,Adults & Health,Metro Homecare Ltd,Home Care - Private Contractors Payment,121.83,0.00,COMMERCIAL SUPPLIER 
 02-03-2021,Adults & Health,Metro Homecare Ltd,Home Care - Private Contractors Payment,308.45,0.00,COMMERCIAL SUPPLIER 
 02-03-2021,Adults & Health,Metro Homecare Ltd,Home Care - Private Contractors Payment,156.55,0.00,COMMERCIAL SUPPLIER 
 02-03-2021,Adults & Health,Metro Homecare Ltd,Home Care - Private Contractors Payment,229.09,0.00,COMMERCIAL SUPPLIER 
 02-03-2021,Adults & Health,Metro Homecare Ltd,Home Care - Private Contractors Payment,192.20,0.00,COMMERCIAL SUPPLIER 
 02-03-2021,Adults & Health,Metro Homecare Ltd,Home Care - Private Contractors Payment,280.24,0.00,COMMERCIAL SUPPLIER 
 02-03-2021,Adults & Health,Metro Homecare Ltd,Home Care - Private Contractors Payment,224.13,0.00,COMMERCIAL SUPPLIER 
 02-03-2021,Adults & Health,Metro Homecare Ltd,Home Care - Private Contractors Payment,124.93,0.00,COMMERCIAL SUPPLIER 
 02-03-2021,Adults & Health,Metro Homecare Ltd,Home Care - Private Contractors Payment,268.46,0.00,COMMERCIAL SUPPLIER 
 02-03-2021,Adults & Health,Metro Homecare Ltd,Home Care - Private Contractors Payment,209.56,0.00,COMMERCIAL SUPPLIER 
 02-03-2021,Adults & Health,Metro Homecare Ltd,Home Care - Private Contractors Payment,264.74,0.00,COMMERCIAL SUPPLIER 
 02-03-2021,Adults & Health,Metro Homecare Ltd,Home Care - Private Contractors Payment,175.15,0.00,COMMERCIAL SUPPLIER 
 02-03-2021,Adults & Health,Metro Homecare Ltd,Home Care - Private Contractors Payment,204.60,0.00,COMMERCIAL SUPPLIER 
 02-03-2021,Adults & Health,Metro Homecare Ltd,Home Care - Private Contractors Payment,189.10,0.00,COMMERCIAL SUPPLIER 
 02-03-2021,Adults & Health,Metro Homecare Ltd,Home Care - Private Contractors Payment,323.33,0.00,COMMERCIAL SUPPLIER 
 02-03-2021,Adults & Health,Metro Homecare Ltd,Home Care - Private Contractors Payment,31.31,0.00,COMMERCIAL SUPPLIER 
 02-03-2021,Adults & Health,Metro Homecare Ltd,Home Care - Private Contractors Payment,162.75,0.00,COMMERCIAL SUPPLIER 
 02-03-2021,Adults & Health,Metro Homecare Ltd,Home Care - Private Contractors Payment,651.00,0.00,COMMERCIAL SUPPLIER 
 02-03-2021,Adults & Health,Metro Homecare Ltd,Home Care - Private Contractors Payment,270.01,0.00,COMMERCIAL SUPPLIER 
 02-03-2021,Adults & Health,Metro Homecare Ltd,Home Care - Private Contractors Payment,656.89,0.00,COMMERCIAL SUPPLIER 
 02-03-2021,Adults & Health,Metro Homecare Ltd,Home Care - Private Contractors Payment,240.25,0.00,COMMERCIAL SUPPLIER 
 02-03-2021,Adults & Health,Metro Homecare Ltd,Home Care - Private Contractors Payment,129.27,0.00,COMMERCIAL SUPPLIER 
 02-03-2021,Adults & Health,Metro Homecare Ltd,Home Care - Private Contractors Payment,308.76,0.00,COMMERCIAL SUPPLIER 
 02-03-2021,Adults & Health,Metro Homecare Ltd,Home Care - Private Contractors Payment,102.61,0.00,COMMERCIAL SUPPLIER 
 02-03-2021,Adults & Health,Metro Homecare Ltd,Home Care - Private Contractors Payment,540.64,0.00,COMMERCIAL SUPPLIER 
 02-03-2021,Adults & Health,Metro Homecare Ltd,Home Care - Private Contractors Payment,213.28,0.00,COMMERCIAL SUPPLIER 
 02-03-2021,Adults & Health,Metro Homecare Ltd,Home Care - Private Contractors Payment,141.67,0.00,COMMERCIAL SUPPLIER 
 02-03-2021,Adults & Health,Metro Homecare Ltd,Home Care - Private Contractors Payment,287.06,0.00,COMMERCIAL SUPPLIER 
 02-03-2021,Adults & Health,Metro Homecare Ltd,Home Care - Private Contractors Payment,36.58,0.00,COMMERCIAL SUPPLIER 
 02-03-2021,Adults & Health,Metro Homecare Ltd,Home Care - Private Contractors Payment,120.59,0.00,COMMERCIAL SUPPLIER 
 02-03-2021,Adults & Health,Metro Homecare Ltd,Home Care - Private Contractors Payment,131.75,0.00,COMMERCIAL SUPPLIER 
 02-03-2021,Adults & Health,Metro Homecare Ltd,Home Care - Private Contractors Payment,157.79,0.00,COMMERCIAL SUPPLIER 
 02-03-2021,Adults & Health,Metro Homecare Ltd,Home Care - Private Contractors Payment,151.90,0.00,COMMERCIAL SUPPLIER 
 02-03-2021,Adults & Health,Metro Homecare Ltd,Home Care - Private Contractors Payment,315.27,0.00,COMMERCIAL SUPPLIER 
 02-03-2021,Adults & Health,Metro Homecare Ltd,Home Care - Private Contractors Payment,324.26,0.00,COMMERCIAL SUPPLIER 
 02-03-2021,Adults & Health,Metro Homecare Ltd,Home Care - Private Contractors Payment,553.04,0.00,COMMERCIAL SUPPLIER 
 02-03-2021,Adults & Health,Metro Homecare Ltd,Home Care - Private Contractors Payment,385.02,0.00,COMMERCIAL SUPPLIER 
 02-03-2021,Adults & Health,Metro Homecare Ltd,Home Care - Private Contractors Payment,238.70,0.00,COMMERCIAL SUPPLIER 
 02-03-2021,Adults & Health,Metro Homecare Ltd,Home Care - Private Contractors Payment,196.54,0.00,COMMERCIAL SUPPLIER 
 02-03-2021,Adults & Health,Metro Homecare Ltd,Home Care - Private Contractors Payment,39.37,0.00,COMMERCIAL SUPPLIER 
 02-03-2021,Adults & Health,Metro Homecare Ltd,Home Care - Private Contractors Payment,276.21,0.00,COMMERCIAL SUPPLIER 
 02-03-2021,Adults & Health,Metro Homecare Ltd,Home Care - Private Contractors Payment,156.24,0.00,COMMERCIAL SUPPLIER 
 02-03-2021,Adults & Health,Metro Homecare Ltd,Home Care - Private Contractors Payment,22.32,0.00,COMMERCIAL SUPPLIER 
 02-03-2021,Adults & Health,Metro Homecare Ltd,Home Care - Private Contractors Payment,199.02,0.00,COMMERCIAL SUPPLIER 
 02-03-2021,Adults & Health,Metro Homecare Ltd,Home Care - Private Contractors Payment,607.91,0.00,COMMERCIAL SUPPLIER 
 02-03-2021,Adults & Health,Metro Homecare Ltd,Home Care - Private Contractors Payment,159.34,0.00,COMMERCIAL SUPPLIER 
 02-03-2021,Adults & Health,Metro Homecare Ltd,Home Care - Private Contractors Payment,176.08,0.00,COMMERCIAL SUPPLIER 
 02-03-2021,Adults & Health,Metro Homecare Ltd,Home Care - Private Contractors Payment,210.18,0.00,COMMERCIAL SUPPLIER 
 02-03-2021,Adults & Health,Metro Homecare Ltd,Home Care - Private Contractors Payment,391.84,0.00,COMMERCIAL SUPPLIER 
 02-03-2021,Adults & Health,Metro Homecare Ltd,Home Care - Private Contractors Payment,633.33,0.00,COMMERCIAL SUPPLIER 
 02-03-2021,Adults & Health,Metro Homecare Ltd,Home Care - Private Contractors Payment,154.07,0.00,COMMERCIAL SUPPLIER 
 02-03-2021,Adults & Health,Metro Homecare Ltd,Home Care - Private Contractors Payment,242.42,0.00,COMMERCIAL SUPPLIER 
 02-03-2021,Adults & Health,Metro Homecare Ltd,Home Care - Private Contractors Payment,253.58,0.00,COMMERCIAL SUPPLIER 
 02-03-2021,Adults & Health,Metro Homecare Ltd,Home Care - Private Contractors Payment,300.08,0.00,COMMERCIAL SUPPLIER 
 02-03-2021,Adults & Health,Metro Homecare Ltd,Home Care - Private Contractors Payment,263.50,0.00,COMMERCIAL SUPPLIER 
 02-03-2021,Adults & Health,Metro Homecare Ltd,Home Care - Private Contractors Payment,219.17,0.00,COMMERCIAL SUPPLIER 
 02-03-2021,Adults & Health,Metro Homecare Ltd,Home Care - Private Contractors Payment,330.46,0.00,COMMERCIAL SUPPLIER 
 02-03-2021,Adults & Health,Metro Homecare Ltd,Home Care - Private Contractors Payment,282.10,0.00,COMMERCIAL SUPPLIER 
 02-03-2021,Adults & Health,Metro Homecare Ltd,Home Care - Private Contractors Payment,195.92,0.00,COMMERCIAL SUPPLIER 
 02-03-2021,Adults & Health,Metro Homecare Ltd,Home Care - Private Contractors Payment,390.60,0.00,COMMERCIAL SUPPLIER 
 02-03-2021,Adults & Health,Metro Homecare Ltd,Home Care - Private Contractors Payment,168.02,0.00,COMMERCIAL SUPPLIER 
 02-03-2021,Adults & Health,Metro Homecare Ltd,Home Care - Private Contractors Payment,159.34,0.00,COMMERCIAL SUPPLIER 
 02-03-2021,Adults & Health,Metro Homecare Ltd,Home Care - Private Contractors Payment,46.50,0.00,COMMERCIAL SUPPLIER 
 02-03-2021,Adults & Health,Metro Homecare Ltd,Home Care - Private Contractors Payment,18.60,0.00,COMMERCIAL SUPPLIER 
 02-03-2021,Adults & Health,Metro Homecare Ltd,Home Care - Private Contractors Payment,99.82,0.00,COMMERCIAL SUPPLIER 
 02-03-2021,Adults & Health,Metro Homecare Ltd,Home Care - Private Contractors Payment,266.60,0.00,COMMERCIAL SUPPLIER 
 02-03-2021,Adults & Health,Metro Homecare Ltd,Home Care - Private Contractors Payment,281.48,0.00,COMMERCIAL SUPPLIER 
 02-03-2021,Adults & Health,Metro Homecare Ltd,Home Care - Private Contractors Payment,269.70,0.00,COMMERCIAL SUPPLIER 
 02-03-2021,Adults & Health,Metro Homecare Ltd,Home Care - Private Contractors Payment,266.29,0.00,COMMERCIAL SUPPLIER 
 02-03-2021,Adults & Health,Metro Homecare Ltd,Home Care - Private Contractors Payment,389.67,0.00,COMMERCIAL SUPPLIER 
 02-03-2021,Adults & Health,Metro Homecare Ltd,Home Care - Private Contractors Payment,588.69,0.00,COMMERCIAL SUPPLIER 
 02-03-2021,Adults & Health,Metro Homecare Ltd,Home Care - Private Contractors Payment,143.84,0.00,COMMERCIAL SUPPLIER 
 02-03-2021,Adults & Health,Metro Homecare Ltd,Home Care - Private Contractors Payment,508.71,0.00,COMMERCIAL SUPPLIER 
 02-03-2021,Adults & Health,Metro Homecare Ltd,Home Care - Private Contractors Payment,244.90,0.00,COMMERCIAL SUPPLIER 
 02-03-2021,Adults & Health,Metro Homecare Ltd,Home Care - Private Contractors Payment,258.85,0.00,COMMERCIAL SUPPLIER 
 02-03-2021,Adults & Health,Metro Homecare Ltd,Home Care - Private Contractors Payment,314.03,0.00,COMMERCIAL SUPPLIER 
 02-03-2021,Adults & Health,Metro Homecare Ltd,Home Care - Private Contractors Payment,226.92,0.00,COMMERCIAL SUPPLIER 
 02-03-2021,Adults & Health,Metro Homecare Ltd,Home Care - Private Contractors Payment,234.36,0.00,COMMERCIAL SUPPLIER 
 02-03-2021,Adults & Health,Metro Homecare Ltd,Home Care - Private Contractors Payment,315.58,0.00,COMMERCIAL SUPPLIER 
 02-03-2021,Adults & Health,Metro Homecare Ltd,Home Care - Private Contractors Payment,241.18,0.00,COMMERCIAL SUPPLIER 
 02-03-2021,Adults & Health,Metro Homecare Ltd,Home Care - Private Contractors Payment,255.13,0.00,COMMERCIAL SUPPLIER 
 02-03-2021,Adults & Health,Metro Homecare Ltd,Home Care - Private Contractors Payment,85.25,0.00,COMMERCIAL SUPPLIER 
 02-03-2021,Adults & Health,Metro Homecare Ltd,Home Care - Private Contractors Payment,269.08,0.00,COMMERCIAL SUPPLIER 
 02-03-2021,Adults & Health,Metro Homecare Ltd,Home Care - Private Contractors Payment,85.87,0.00,COMMERCIAL SUPPLIER 
 02-03-2021,Adults & Health,Metro Homecare Ltd,Home Care - Private Contractors Payment,777.48,0.00,COMMERCIAL SUPPLIER 
 02-03-2021,Adults & Health,Metro Homecare Ltd,Home Care - Private Contractors Payment,117.18,0.00,COMMERCIAL SUPPLIER 
 02-03-2021,Adults & Health,Metro Homecare Ltd,Home Care - Private Contractors Payment,245.52,0.00,COMMERCIAL SUPPLIER 
 02-03-2021,Adults & Health,Metro Homecare Ltd,Home Care - Private Contractors Payment,362.08,0.00,COMMERCIAL SUPPLIER 
 02-03-2021,Adults & Health,Metro Homecare Ltd,Home Care - Private Contractors Payment,96.41,0.00,COMMERCIAL SUPPLIER 
 02-03-2021,Adults & Health,Metro Homecare Ltd,Home Care - Private Contractors Payment,428.73,0.00,COMMERCIAL SUPPLIER 
 02-03-2021,Adults & Health,Metro Homecare Ltd,Home Care - Private Contractors Payment,186.62,0.00,COMMERCIAL SUPPLIER 
 02-03-2021,Adults & Health,Metro Homecare Ltd,Home Care - Private Contractors Payment,314.34,0.00,COMMERCIAL SUPPLIER 
 02-03-2021,Adults & Health,Metro Homecare Ltd,Home Care - Private Contractors Payment,44.64,0.00,COMMERCIAL SUPPLIER 
 02-03-2021,Adults & Health,Metro Homecare Ltd,Home Care - Private Contractors Payment,133.61,0.00,COMMERCIAL SUPPLIER 
 02-03-2021,Adults & Health,Metro Homecare Ltd,Home Care - Private Contractors Payment,340.38,0.00,COMMERCIAL SUPPLIER 
 02-03-2021,Adults & Health,Metro Homecare Ltd,Home Care - Private Contractors Payment,129.89,0.00,COMMERCIAL SUPPLIER 
 02-03-2021,Adults & Health,Metro Homecare Ltd,Home Care - Private Contractors Payment,250.48,0.00,COMMERCIAL SUPPLIER 
 02-03-2021,Adults & Health,Metro Homecare Ltd,Home Care - Private Contractors Payment,194.68,0.00,COMMERCIAL SUPPLIER 
 02-03-2021,Adults & Health,Metro Homecare Ltd,Home Care - Private Contractors Payment,179.49,0.00,COMMERCIAL SUPPLIER 
 02-03-2021,Adults & Health,Metro Homecare Ltd,Home Care - Private Contractors Payment,224.44,0.00,COMMERCIAL SUPPLIER 
 02-03-2021,Adults & Health,Metro Homecare Ltd,Home Care - Private Contractors Payment,41.85,0.00,COMMERCIAL SUPPLIER 
 02-03-2021,Adults & Health,Metro Homecare Ltd,Home Care - Private Contractors Payment,155.62,0.00,COMMERCIAL SUPPLIER 
 02-03-2021,Adults & Health,Metro Homecare Ltd,Home Care - Private Contractors Payment,656.58,0.00,COMMERCIAL SUPPLIER 
 02-03-2021,Adults & Health,Metro Homecare Ltd,Home Care - Private Contractors Payment,261.95,0.00,COMMERCIAL SUPPLIER 
 02-03-2021,Adults & Health,Metro Homecare Ltd,Home Care - Private Contractors Payment,353.40,0.00,COMMERCIAL SUPPLIER 
 02-03-2021,Adults & Health,Metro Homecare Ltd,Home Care - Private Contractors Payment,201.19,0.00,COMMERCIAL SUPPLIER 
 02-03-2021,Adults & Health,Metro Homecare Ltd,Home Care - Private Contractors Payment,98.27,0.00,COMMERCIAL SUPPLIER 
 02-03-2021,Adults & Health,Metro Homecare Ltd,Home Care - Private Contractors Payment,206.77,0.00,COMMERCIAL SUPPLIER 
 02-03-2021,Adults & Health,Metro Homecare Ltd,Home Care - Private Contractors Payment,319.61,0.00,COMMERCIAL SUPPLIER 
 02-03-2021,Adults & Health,Metro Homecare Ltd,Home Care - Private Contractors Payment,647.28,0.00,COMMERCIAL SUPPLIER 
 02-03-2021,Adults & Health,Metro Homecare Ltd,Home Care - Private Contractors Payment,475.85,0.00,COMMERCIAL SUPPLIER 
 02-03-2021,Adults & Health,Metro Homecare Ltd,Home Care - Private Contractors Payment,428.42,0.00,COMMERCIAL SUPPLIER 
 02-03-2021,Adults & Health,Metro Homecare Ltd,Home Care - Private Contractors Payment,368.28,0.00,COMMERCIAL SUPPLIER 
 02-03-2021,Adults & Health,Metro Homecare Ltd,Home Care - Private Contractors Payment,35.34,0.00,COMMERCIAL SUPPLIER 
 02-03-2021,Adults & Health,Metro Homecare Ltd,Home Care - Private Contractors Payment,271.25,0.00,COMMERCIAL SUPPLIER 
 02-03-2021,Adults & Health,Metro Homecare Ltd,Home Care - Private Contractors Payment,156.24,0.00,COMMERCIAL SUPPLIER 
 02-03-2021,Adults & Health,Metro Homecare Ltd,Home Care - Private Contractors Payment,78.12,0.00,COMMERCIAL SUPPLIER 
 02-03-2021,Adults & Health,Metro Homecare Ltd,Home Care - Private Contractors Payment,197.78,0.00,COMMERCIAL SUPPLIER 
 02-03-2021,Adults & Health,Metro Homecare Ltd,Home Care - Private Contractors Payment,634.88,0.00,COMMERCIAL SUPPLIER 
 02-03-2021,Adults & Health,Metro Homecare Ltd,Home Care - Private Contractors Payment,132.68,0.00,COMMERCIAL SUPPLIER 
 02-03-2021,Adults & Health,Metro Homecare Ltd,Home Care - Private Contractors Payment,476.16,0.00,COMMERCIAL SUPPLIER 
 02-03-2021,Adults & Health,Metro Homecare Ltd,Home Care - Private Contractors Payment,367.66,0.00,COMMERCIAL SUPPLIER 
 02-03-2021,Adults & Health,Metro Homecare Ltd,Home Care - Private Contractors Payment,108.19,0.00,COMMERCIAL SUPPLIER 
 02-03-2021,Adults & Health,Metro Homecare Ltd,Home Care - Private Contractors Payment,370.76,0.00,COMMERCIAL SUPPLIER 
 02-03-2021,Adults & Health,Metro Homecare Ltd,Home Care - Private Contractors Payment,593.96,0.00,COMMERCIAL SUPPLIER 
 02-03-2021,Adults & Health,Metro Homecare Ltd,Home Care - Private Contractors Payment,197.47,0.00,COMMERCIAL SUPPLIER 
 02-03-2021,Adults & Health,Metro Homecare Ltd,Home Care - Private Contractors Payment,98.27,0.00,COMMERCIAL SUPPLIER 
 02-03-2021,Adults & Health,Metro Homecare Ltd,Home Care - Private Contractors Payment,337.28,0.00,COMMERCIAL SUPPLIER 
 02-03-2021,Adults & Health,Metro Homecare Ltd,Home Care - Private Contractors Payment,99.82,0.00,COMMERCIAL SUPPLIER 
 02-03-2021,Adults & Health,Metro Homecare Ltd,Home Care - Private Contractors Payment,225.37,0.00,COMMERCIAL SUPPLIER 
 02-03-2021,Adults & Health,Metro Homecare Ltd,Home Care - Private Contractors Payment,243.66,0.00,COMMERCIAL SUPPLIER 
 02-03-2021,Adults & Health,Metro Homecare Ltd,Home Care - Private Contractors Payment,125.55,0.00,COMMERCIAL SUPPLIER 
 02-03-2021,Adults & Health,Metro Homecare Ltd,Home Care - Private Contractors Payment,190.65,0.00,COMMERCIAL SUPPLIER 
 02-03-2021,Adults & Health,Metro Homecare Ltd,Home Care - Private Contractors Payment,208.32,0.00,COMMERCIAL SUPPLIER 
 02-03-2021,Adults & Health,Metro Homecare Ltd,Home Care - Private Contractors Payment,235.60,0.00,COMMERCIAL SUPPLIER 
 02-03-2021,Adults & Health,Metro Homecare Ltd,Home Care - Private Contractors Payment,307.52,0.00,COMMERCIAL SUPPLIER 
 02-03-2021,Adults & Health,Metro Homecare Ltd,Home Care - Private Contractors Payment,699.05,0.00,COMMERCIAL SUPPLIER 
 02-03-2021,Adults & Health,Metro Homecare Ltd,Home Care - Private Contractors Payment,300.08,0.00,COMMERCIAL SUPPLIER 
 02-03-2021,Adults & Health,Metro Homecare Ltd,Home Care - Private Contractors Payment,504.68,0.00,COMMERCIAL SUPPLIER 
 02-03-2021,Adults & Health,Metro Homecare Ltd,Home Care - Private Contractors Payment,37.82,0.00,COMMERCIAL SUPPLIER 
 02-03-2021,Adults & Health,Metro Homecare Ltd,Home Care - Private Contractors Payment,131.44,0.00,COMMERCIAL SUPPLIER 
 02-03-2021,Adults & Health,Metro Homecare Ltd,Home Care - Private Contractors Payment,128.96,0.00,COMMERCIAL SUPPLIER 
 02-03-2021,Adults & Health,Metro Homecare Ltd,Home Care - Private Contractors Payment,95.79,0.00,COMMERCIAL SUPPLIER 
 02-03-2021,Adults & Health,Metro Homecare Ltd,Home Care - Private Contractors Payment,246.76,0.00,COMMERCIAL SUPPLIER 
 02-03-2021,Adults & Health,Metro Homecare Ltd,Home Care - Private Contractors Payment,196.85,0.00,COMMERCIAL SUPPLIER 
 02-03-2021,Adults & Health,Metro Homecare Ltd,Home Care - Private Contractors Payment,206.77,0.00,COMMERCIAL SUPPLIER 
 02-03-2021,Adults & Health,Metro Homecare Ltd,Home Care - Private Contractors Payment,233.12,0.00,COMMERCIAL SUPPLIER 
 02-03-2021,Adults & Health,Metro Homecare Ltd,Home Care - Private Contractors Payment,287.99,0.00,COMMERCIAL SUPPLIER 
 02-03-2021,Adults & Health,Metro Homecare Ltd,Home Care - Private Contractors Payment,702.15,0.00,COMMERCIAL SUPPLIER 
 02-03-2021,Adults & Health,Metro Homecare Ltd,Home Care - Private Contractors Payment,303.49,0.00,COMMERCIAL SUPPLIER 
 02-03-2021,Adults & Health,Metro Homecare Ltd,Home Care - Private Contractors Payment,526.07,0.00,COMMERCIAL SUPPLIER 
 02-03-2021,Adults & Health,Metro Homecare Ltd,Home Care - Private Contractors Payment,36.58,0.00,COMMERCIAL SUPPLIER 
 02-03-2021,Adults & Health,Metro Homecare Ltd,Home Care - Private Contractors Payment,303.18,0.00,COMMERCIAL SUPPLIER 
 02-03-2021,Adults & Health,Metro Homecare Ltd,Home Care - Private Contractors Payment,378.20,0.00,COMMERCIAL SUPPLIER 
 02-03-2021,Adults & Health,Metro Homecare Ltd,Home Care - Private Contractors Payment,161.82,0.00,COMMERCIAL SUPPLIER 
 02-03-2021,Adults & Health,Metro Homecare Ltd,Home Care - Private Contractors Payment,79.05,0.00,COMMERCIAL SUPPLIER 
 02-03-2021,Adults & Health,Metro Homecare Ltd,Home Care - Private Contractors Payment,255.75,0.00,COMMERCIAL SUPPLIER 
 02-03-2021,Adults & Health,Metro Homecare Ltd,Home Care - Private Contractors Payment,77.50,0.00,COMMERCIAL SUPPLIER 
 02-03-2021,Adults & Health,Metro Homecare Ltd,Home Care - Private Contractors Payment,785.85,0.00,COMMERCIAL SUPPLIER 
 02-03-2021,Adults & Health,Metro Homecare Ltd,Home Care - Private Contractors Payment,117.18,0.00,COMMERCIAL SUPPLIER 
 02-03-2021,Adults & Health,Metro Homecare Ltd,Home Care - Private Contractors Payment,490.73,0.00,COMMERCIAL SUPPLIER 
 02-03-2021,Adults & Health,Metro Homecare Ltd,Home Care - Private Contractors Payment,652.86,0.00,COMMERCIAL SUPPLIER 
 02-03-2021,Adults & Health,Metro Homecare Ltd,Home Care - Private Contractors Payment,68.82,0.00,COMMERCIAL SUPPLIER 
 02-03-2021,Adults & Health,Metro Homecare Ltd,Home Care - Private Contractors Payment,236.53,0.00,COMMERCIAL SUPPLIER 
 02-03-2021,Adults & Health,Metro Homecare Ltd,Home Care - Private Contractors Payment,131.75,0.00,COMMERCIAL SUPPLIER 
 02-03-2021,Adults & Health,Metro Homecare Ltd,Home Care - Private Contractors Payment,102.92,0.00,COMMERCIAL SUPPLIER 
 02-03-2021,Adults & Health,Metro Homecare Ltd,Home Care - Private Contractors Payment,76.26,0.00,COMMERCIAL SUPPLIER 
 02-03-2021,Adults & Health,Metro Homecare Ltd,Home Care - Private Contractors Payment,125.55,0.00,COMMERCIAL SUPPLIER 
 02-03-2021,Adults & Health,Metro Homecare Ltd,Home Care - Private Contractors Payment,568.23,0.00,COMMERCIAL SUPPLIER 
 02-03-2021,Adults & Health,Metro Homecare Ltd,Home Care - Private Contractors Payment,443.92,0.00,COMMERCIAL SUPPLIER 
 02-03-2021,Adults & Health,Metro Homecare Ltd,Home Care - Private Contractors Payment,251.10,0.00,COMMERCIAL SUPPLIER 
 02-03-2021,Adults & Health,Metro Homecare Ltd,Home Care - Private Contractors Payment,310.31,0.00,COMMERCIAL SUPPLIER 
 02-03-2021,Adults & Health,Metro Homecare Ltd,Home Care - Private Contractors Payment,139.50,0.00,COMMERCIAL SUPPLIER 
 02-03-2021,Adults & Health,Metro Homecare Ltd,Home Care - Private Contractors Payment,221.65,0.00,COMMERCIAL SUPPLIER 
 02-03-2021,Adults & Health,Metro Homecare Ltd,Home Care - Private Contractors Payment,192.82,0.00,COMMERCIAL SUPPLIER 
 02-03-2021,Adults & Health,Metro Homecare Ltd,Home Care - Private Contractors Payment,405.79,0.00,COMMERCIAL SUPPLIER 
 02-03-2021,Adults & Health,Metro Homecare Ltd,Home Care - Private Contractors Payment,106.95,0.00,COMMERCIAL SUPPLIER 
 02-03-2021,Adults & Health,Metro Homecare Ltd,Home Care - Private Contractors Payment,386.26,0.00,COMMERCIAL SUPPLIER 
 02-03-2021,Adults & Health,Metro Homecare Ltd,Home Care - Private Contractors Payment,591.79,0.00,COMMERCIAL SUPPLIER 
 02-03-2021,Adults & Health,Metro Homecare Ltd,Home Care - Private Contractors Payment,89.59,0.00,COMMERCIAL SUPPLIER 
 02-03-2021,Adults & Health,Metro Homecare Ltd,Home Care - Private Contractors Payment,106.64,0.00,COMMERCIAL SUPPLIER 
 02-03-2021,Adults & Health,Metro Homecare Ltd,Home Care - Private Contractors Payment,269.70,0.00,COMMERCIAL SUPPLIER 
 02-03-2021,Adults & Health,Metro Homecare Ltd,Home Care - Private Contractors Payment,282.10,0.00,COMMERCIAL SUPPLIER 
 02-03-2021,Adults & Health,Metro Homecare Ltd,Home Care - Private Contractors Payment,260.09,0.00,COMMERCIAL SUPPLIER 
 02-03-2021,Adults & Health,Metro Homecare Ltd,Home Care - Private Contractors Payment,270.32,0.00,COMMERCIAL SUPPLIER 
 02-03-2021,Adults & Health,Metro Homecare Ltd,Home Care - Private Contractors Payment,386.57,0.00,COMMERCIAL SUPPLIER 
 02-03-2021,Adults & Health,Metro Homecare Ltd,Home Care - Private Contractors Payment,654.41,0.00,COMMERCIAL SUPPLIER 
 02-03-2021,Adults & Health,Metro Homecare Ltd,Home Care - Private Contractors Payment,430.59,0.00,COMMERCIAL SUPPLIER 
 02-03-2021,Adults & Health,Metro Homecare Ltd,Home Care - Private Contractors Payment,111.60,0.00,COMMERCIAL SUPPLIER 
 02-03-2021,Adults & Health,Metro Homecare Ltd,Home Care - Private Contractors Payment,392.15,0.00,COMMERCIAL SUPPLIER 
 02-03-2021,Adults & Health,Metro Homecare Ltd,Home Care - Private Contractors Payment,585.59,0.00,COMMERCIAL SUPPLIER 
 02-03-2021,Adults & Health,Metro Homecare Ltd,Home Care - Private Contractors Payment,225.68,0.00,COMMERCIAL SUPPLIER 
 02-03-2021,Adults & Health,Metro Homecare Ltd,Home Care - Private Contractors Payment,618.14,0.00,COMMERCIAL SUPPLIER 
 02-03-2021,Adults & Health,Metro Homecare Ltd,Home Care - Private Contractors Payment,367.97,0.00,COMMERCIAL SUPPLIER 
 02-03-2021,Adults & Health,Metro Homecare Ltd,Home Care - Private Contractors Payment,112.22,0.00,COMMERCIAL SUPPLIER 
 02-03-2021,Adults & Health,Metro Homecare Ltd,Home Care - Private Contractors Payment,220.41,0.00,COMMERCIAL SUPPLIER 
 02-03-2021,Adults & Health,Metro Homecare Ltd,Home Care - Private Contractors Payment,160.89,0.00,COMMERCIAL SUPPLIER 
 02-03-2021,Adults & Health,Metro Homecare Ltd,Home Care - Private Contractors Payment,214.21,0.00,COMMERCIAL SUPPLIER 
 02-03-2021,Adults & Health,Metro Homecare Ltd,Home Care - Private Contractors Payment,128.96,0.00,COMMERCIAL SUPPLIER 
 02-03-2021,Adults & Health,Metro Homecare Ltd,Home Care - Private Contractors Payment,162.75,0.00,COMMERCIAL SUPPLIER 
 02-03-2021,Adults & Health,Metro Homecare Ltd,Home Care - Private Contractors Payment,168.02,0.00,COMMERCIAL SUPPLIER 
 02-03-2021,Adults & Health,Metro Homecare Ltd,Home Care - Private Contractors Payment,477.40,0.00,COMMERCIAL SUPPLIER 
 02-03-2021,Adults & Health,Metro Homecare Ltd,Home Care - Private Contractors Payment,195.30,0.00,COMMERCIAL SUPPLIER 
 02-03-2021,Adults & Health,Metro Homecare Ltd,Home Care - Private Contractors Payment,617.21,0.00,COMMERCIAL SUPPLIER 
 02-03-2021,Adults & Health,Metro Homecare Ltd,Home Care - Private Contractors Payment,66.96,0.00,COMMERCIAL SUPPLIER 
 02-03-2021,Adults & Health,Metro Homecare Ltd,Home Care - Private Contractors Payment,360.84,0.00,COMMERCIAL SUPPLIER 
 02-03-2021,Adults & Health,Metro Homecare Ltd,Home Care - Private Contractors Payment,132.06,0.00,COMMERCIAL SUPPLIER 
 02-03-2021,Adults & Health,Metro Homecare Ltd,Home Care - Private Contractors Payment,371.69,0.00,COMMERCIAL SUPPLIER 
 02-03-2021,Adults & Health,Metro Homecare Ltd,Home Care - Private Contractors Payment,233.12,0.00,COMMERCIAL SUPPLIER 
 02-03-2021,Adults & Health,Metro Homecare Ltd,Home Care - Private Contractors Payment,194.06,0.00,COMMERCIAL SUPPLIER 
 02-03-2021,Adults & Health,Metro Homecare Ltd,Home Care - Private Contractors Payment,131.75,0.00,COMMERCIAL SUPPLIER 
 02-03-2021,Adults & Health,Metro Homecare Ltd,Home Care - Private Contractors Payment,101.06,0.00,COMMERCIAL SUPPLIER 
 02-03-2021,Adults & Health,Metro Homecare Ltd,Home Care - Private Contractors Payment,78.12,0.00,COMMERCIAL SUPPLIER 
 02-03-2021,Adults & Health,Metro Homecare Ltd,Home Care - Private Contractors Payment,131.13,0.00,COMMERCIAL SUPPLIER 
 02-03-2021,Adults & Health,Metro Homecare Ltd,Home Care - Private Contractors Payment,518.01,0.00,COMMERCIAL SUPPLIER 
 02-03-2021,Adults & Health,Metro Homecare Ltd,Home Care - Private Contractors Payment,137.95,0.00,COMMERCIAL SUPPLIER 
 02-03-2021,Adults & Health,Metro Homecare Ltd,Home Care - Private Contractors Payment,75.64,0.00,COMMERCIAL SUPPLIER 
 02-03-2021,Adults & Health,Metro Homecare Ltd,Home Care - Private Contractors Payment,242.11,0.00,COMMERCIAL SUPPLIER 
 02-03-2021,Adults & Health,Metro Homecare Ltd,Home Care - Private Contractors Payment,162.75,0.00,COMMERCIAL SUPPLIER 
 02-03-2021,Adults & Health,Metro Homecare Ltd,Home Care - Private Contractors Payment,137.33,0.00,COMMERCIAL SUPPLIER 
 02-03-2021,Adults & Health,Metro Homecare Ltd,Home Care - Private Contractors Payment,26.35,0.00,COMMERCIAL SUPPLIER 
 02-03-2021,Adults & Health,Metro Homecare Ltd,Home Care - Private Contractors Payment,292.95,0.00,COMMERCIAL SUPPLIER 
 02-03-2021,Adults & Health,Metro Homecare Ltd,Home Care - Private Contractors Payment,120.90,0.00,COMMERCIAL SUPPLIER 
 02-03-2021,Adults & Health,Metro Homecare Ltd,Home Care - Private Contractors Payment,651.00,0.00,COMMERCIAL SUPPLIER 
 02-03-2021,Adults & Health,Metro Homecare Ltd,Home Care - Private Contractors Payment,270.01,0.00,COMMERCIAL SUPPLIER 
 02-03-2021,Adults & Health,Metro Homecare Ltd,Home Care - Private Contractors Payment,677.35,0.00,COMMERCIAL SUPPLIER 
 02-03-2021,Adults & Health,Metro Homecare Ltd,Home Care - Private Contractors Payment,231.57,0.00,COMMERCIAL SUPPLIER 
 02-03-2021,Adults & Health,Metro Homecare Ltd,Home Care - Private Contractors Payment,134.54,0.00,COMMERCIAL SUPPLIER 
 02-03-2021,Adults & Health,Metro Homecare Ltd,Home Care - Private Contractors Payment,300.39,0.00,COMMERCIAL SUPPLIER 
 02-03-2021,Adults & Health,Metro Homecare Ltd,Home Care - Private Contractors Payment,90.52,0.00,COMMERCIAL SUPPLIER 
 02-03-2021,Adults & Health,Metro Homecare Ltd,Home Care - Private Contractors Payment,285.20,0.00,COMMERCIAL SUPPLIER 
 02-03-2021,Adults & Health,Metro Homecare Ltd,Home Care - Private Contractors Payment,300.08,0.00,COMMERCIAL SUPPLIER 
 02-03-2021,Adults & Health,Metro Homecare Ltd,Home Care - Private Contractors Payment,232.81,0.00,COMMERCIAL SUPPLIER 
 02-03-2021,Adults & Health,Metro Homecare Ltd,Home Care - Private Contractors Payment,244.59,0.00,COMMERCIAL SUPPLIER 
 02-03-2021,Adults & Health,Metro Homecare Ltd,Home Care - Private Contractors Payment,304.73,0.00,COMMERCIAL SUPPLIER 
 02-03-2021,Adults & Health,Metro Homecare Ltd,Home Care - Private Contractors Payment,229.71,0.00,COMMERCIAL SUPPLIER 
 02-03-2021,Adults & Health,Metro Homecare Ltd,Home Care - Private Contractors Payment,232.50,0.00,COMMERCIAL SUPPLIER 
 02-03-2021,Adults & Health,Metro Homecare Ltd,Home Care - Private Contractors Payment,330.46,0.00,COMMERCIAL SUPPLIER 
 02-03-2021,Adults & Health,Metro Homecare Ltd,Home Care - Private Contractors Payment,248.62,0.00,COMMERCIAL SUPPLIER 
 02-03-2021,Adults & Health,Metro Homecare Ltd,Home Care - Private Contractors Payment,133.92,0.00,COMMERCIAL SUPPLIER 
 02-03-2021,Adults & Health,Metro Homecare Ltd,Home Care - Private Contractors Payment,164.92,0.00,COMMERCIAL SUPPLIER 
 02-03-2021,Adults & Health,Metro Homecare Ltd,Home Care - Private Contractors Payment,140.12,0.00,COMMERCIAL SUPPLIER 
 02-03-2021,Adults & Health,Metro Homecare Ltd,Home Care - Private Contractors Payment,309.69,0.00,COMMERCIAL SUPPLIER 
 02-03-2021,Adults & Health,Metro Homecare Ltd,Home Care - Private Contractors Payment,651.00,0.00,COMMERCIAL SUPPLIER 
 02-03-2021,Adults & Health,Metro Homecare Ltd,Home Care - Private Contractors Payment,267.53,0.00,COMMERCIAL SUPPLIER 
 02-03-2021,Adults & Health,Metro Homecare Ltd,Home Care - Private Contractors Payment,662.16,0.00,COMMERCIAL SUPPLIER 
 02-03-2021,Adults & Health,Metro Homecare Ltd,Home Care - Private Contractors Payment,236.53,0.00,COMMERCIAL SUPPLIER 
 02-03-2021,Adults & Health,Metro Homecare Ltd,Home Care - Private Contractors Payment,129.89,0.00,COMMERCIAL SUPPLIER 
 02-03-2021,Adults & Health,Metro Homecare Ltd,Home Care - Private Contractors Payment,307.83,0.00,COMMERCIAL SUPPLIER 
 02-03-2021,Adults & Health,Metro Homecare Ltd,Home Care - Private Contractors Payment,99.20,0.00,COMMERCIAL SUPPLIER 
 02-03-2021,Adults & Health,Metro Homecare Ltd,Home Care - Private Contractors Payment,292.95,0.00,COMMERCIAL SUPPLIER 
 02-03-2021,Adults & Health,Metro Homecare Ltd,Home Care - Private Contractors Payment,190.96,0.00,COMMERCIAL SUPPLIER 
 02-03-2021,Adults & Health,Metro Homecare Ltd,Home Care - Private Contractors Payment,389.05,0.00,COMMERCIAL SUPPLIER 
 02-03-2021,Adults & Health,Metro Homecare Ltd,Home Care - Private Contractors Payment,168.64,0.00,COMMERCIAL SUPPLIER 
 02-03-2021,Adults & Health,Metro Homecare Ltd,Home Care - Private Contractors Payment,190.96,0.00,COMMERCIAL SUPPLIER 
 02-03-2021,Adults & Health,Metro Homecare Ltd,Home Care - Private Contractors Payment,258.54,0.00,COMMERCIAL SUPPLIER 
 02-03-2021,Adults & Health,Metro Homecare Ltd,Home Care - Private Contractors Payment,281.79,0.00,COMMERCIAL SUPPLIER 
 02-03-2021,Adults & Health,Metro Homecare Ltd,Home Care - Private Contractors Payment,253.58,0.00,COMMERCIAL SUPPLIER 
 02-03-2021,Adults & Health,Metro Homecare Ltd,Home Care - Private Contractors Payment,262.88,0.00,COMMERCIAL SUPPLIER 
 02-03-2021,Adults & Health,Metro Homecare Ltd,Home Care - Private Contractors Payment,398.04,0.00,COMMERCIAL SUPPLIER 
 02-03-2021,Adults & Health,Metro Homecare Ltd,Home Care - Private Contractors Payment,684.17,0.00,COMMERCIAL SUPPLIER 
 02-03-2021,Adults & Health,Metro Homecare Ltd,Home Care - Private Contractors Payment,211.11,0.00,COMMERCIAL SUPPLIER 
 02-03-2021,Adults & Health,Metro Homecare Ltd,Home Care - Private Contractors Payment,22.32,0.00,COMMERCIAL SUPPLIER 
 02-03-2021,Adults & Health,Metro Homecare Ltd,Home Care - Private Contractors Payment,137.95,0.00,COMMERCIAL SUPPLIER 
 02-03-2021,Adults & Health,Metro Homecare Ltd,Home Care - Private Contractors Payment,287.99,0.00,COMMERCIAL SUPPLIER 
 02-03-2021,Adults & Health,Metro Homecare Ltd,Home Care - Private Contractors Payment,37.20,0.00,COMMERCIAL SUPPLIER 
 02-03-2021,Adults & Health,Metro Homecare Ltd,Home Care - Private Contractors Payment,283.34,0.00,COMMERCIAL SUPPLIER 
 02-03-2021,Adults & Health,Metro Homecare Ltd,Home Care - Private Contractors Payment,376.03,0.00,COMMERCIAL SUPPLIER 
 02-03-2021,Adults & Health,Metro Homecare Ltd,Home Care - Private Contractors Payment,298.53,0.00,COMMERCIAL SUPPLIER 
 02-03-2021,Adults & Health,Metro Homecare Ltd,Home Care - Private Contractors Payment,127.72,0.00,COMMERCIAL SUPPLIER 
 02-03-2021,Adults & Health,Metro Homecare Ltd,Home Care - Private Contractors Payment,249.55,0.00,COMMERCIAL SUPPLIER 
 02-03-2021,Adults & Health,Metro Homecare Ltd,Home Care - Private Contractors Payment,128.03,0.00,COMMERCIAL SUPPLIER 
 02-03-2021,Adults & Health,Metro Homecare Ltd,Home Care - Private Contractors Payment,618.45,0.00,COMMERCIAL SUPPLIER 
 02-03-2021,Adults & Health,Metro Homecare Ltd,Home Care - Private Contractors Payment,65.72,0.00,COMMERCIAL SUPPLIER 
 02-03-2021,Adults & Health,Metro Homecare Ltd,Home Care - Private Contractors Payment,363.32,0.00,COMMERCIAL SUPPLIER 
 02-03-2021,Adults & Health,Metro Homecare Ltd,Home Care - Private Contractors Payment,130.20,0.00,COMMERCIAL SUPPLIER 
 02-03-2021,Adults & Health,Metro Homecare Ltd,Home Care - Private Contractors Payment,355.26,0.00,COMMERCIAL SUPPLIER 
 02-03-2021,Adults & Health,Metro Homecare Ltd,Home Care - Private Contractors Payment,325.50,0.00,COMMERCIAL SUPPLIER 
 02-03-2021,Adults & Health,Metro Homecare Ltd,Home Care - Private Contractors Payment,159.34,0.00,COMMERCIAL SUPPLIER 
 02-03-2021,Adults & Health,Metro Homecare Ltd,Home Care - Private Contractors Payment,229.40,0.00,COMMERCIAL SUPPLIER 
 02-03-2021,Adults & Health,Metro Homecare Ltd,Home Care - Private Contractors Payment,671.15,0.00,COMMERCIAL SUPPLIER 
 02-03-2021,Adults & Health,Metro Homecare Ltd,Home Care - Private Contractors Payment,369.83,0.00,COMMERCIAL SUPPLIER 
 02-03-2021,Adults & Health,Metro Homecare Ltd,Home Care - Private Contractors Payment,109.43,0.00,COMMERCIAL SUPPLIER 
 02-03-2021,Adults & Health,Metro Homecare Ltd,Home Care - Private Contractors Payment,211.73,0.00,COMMERCIAL SUPPLIER 
 02-03-2021,Adults & Health,Metro Homecare Ltd,Home Care - Private Contractors Payment,147.25,0.00,COMMERCIAL SUPPLIER 
 02-03-2021,Adults & Health,Metro Homecare Ltd,Home Care - Private Contractors Payment,187.24,0.00,COMMERCIAL SUPPLIER 
 02-03-2021,Adults & Health,Metro Homecare Ltd,Home Care - Private Contractors Payment,192.51,0.00,COMMERCIAL SUPPLIER 
 02-03-2021,Adults & Health,Metro Homecare Ltd,Home Care - Private Contractors Payment,227.85,0.00,COMMERCIAL SUPPLIER 
 02-03-2021,Adults & Health,Metro Homecare Ltd,Home Care - Private Contractors Payment,236.84,0.00,COMMERCIAL SUPPLIER 
 02-03-2021,Adults & Health,Metro Homecare Ltd,Home Care - Private Contractors Payment,29.14,0.00,COMMERCIAL SUPPLIER 
 02-03-2021,Adults & Health,Metro Homecare Ltd,Home Care - Private Contractors Payment,724.16,0.00,COMMERCIAL SUPPLIER 
 02-03-2021,Adults & Health,Metro Homecare Ltd,Home Care - Private Contractors Payment,272.80,0.00,COMMERCIAL SUPPLIER 
 02-03-2021,Adults & Health,Metro Homecare Ltd,Home Care - Private Contractors Payment,360.84,0.00,COMMERCIAL SUPPLIER 
 02-03-2021,Adults & Health,Metro Homecare Ltd,Home Care - Private Contractors Payment,283.03,0.00,COMMERCIAL SUPPLIER 
 02-03-2021,Adults & Health,Metro Homecare Ltd,Home Care - Private Contractors Payment,298.22,0.00,COMMERCIAL SUPPLIER 
 02-03-2021,Adults & Health,Metro Homecare Ltd,Home Care - Private Contractors Payment,267.22,0.00,COMMERCIAL SUPPLIER 
 02-03-2021,Adults & Health,Metro Homecare Ltd,Home Care - Private Contractors Payment,396.18,0.00,COMMERCIAL SUPPLIER 
